Transaction Reference,Supplier Name,Line Value,Department,Category,Transaction Date,Year/Period,SME,Costs split between Babergh and Mid Suffolk District Councils Y/N,% of transaction apportioned to Mid Suffolk District Council
10045037,AE WHITE SURFACING,411.86,Insurance Claims,Misc Premises Costs,05-Jan-22,2122/10,SME,N,
10045340,AE WHITE SURFACING,737,"Wolsey Grange, Sproughton S106",Prof & Consultancy Fees,18-Jan-22,2122/10,SME,N,
10045152,ANGLIAN WATER,"1,381.04",Sheltered Accommodation,Stationery,04-Jan-22,2122/10,LGE,N,
10045295,ANGLIAN WATER,290.89,Other Temp Accommodation,Misc Supplies & Services Costs,29-Dec-21,2122/10,LGE,N,
10045070,ARAN SERVICES LTD,351.89,Building Services,Repairs,06-Jan-22,2122/10,SME,N,
10045166,BINDER LTD,825.11,Sewage Treatment Works,Contracted Services,10-Jan-22,2122/10,SME,N,
10045147,BLUE FLAME (COLCHESTER) LTD,"24,381.47",Planned Maint - Heating,Property Servicing,05-Jan-22,2122/10,SME,N,
20027706,BLUE FLAME (COLCHESTER) LTD,"16,435.38",Current Liabilities,Cert IBS Creditors Holding ac,05-Jan-22,2122/10,SME,N,
20027709,BLUE FLAME (COLCHESTER) LTD,"29,938.67",Current Liabilities,Cert IBS Creditors Holding ac,12-Jan-22,2122/10,SME,N,
20027720,BLUE FLAME (COLCHESTER) LTD,"7,949.40",Current Liabilities,Cert IBS Creditors Holding ac,19-Jan-22,2122/10,SME,N,
20027725,BLUE FLAME (COLCHESTER) LTD,"20,779.13",Current Liabilities,Cert IBS Creditors Holding ac,26-Jan-22,2122/10,SME,N,
10045024,BOTTOMLINE TECHNOLOGIES,667.8,ICT,Software Licnse (Line of Bus) ,31-Dec-21,2122/10,LGE,Y,50%
10045112,BOWER FULLER,434.08,Tenancy Services,Repairs,31-Dec-21,2122/10,SME,N,
10045113,BOWER FULLER,390.33,Temporary Accommodation,Repairs,31-Dec-21,2122/10,SME,N,
10045114,BOWER FULLER,440.05,Tenancy Services,Fire Prevention,31-Dec-21,2122/10,SME,N,
10045116,BOWER FULLER,318,Assets & Development,Repairs,31-Dec-21,2122/10,SME,N,
10045117,BOWER FULLER,354.04,Sheltered Accommodation,Electricity,31-Dec-21,2122/10,SME,N,
10045118,BOWER FULLER,"1,858.20",Sheltered Accommodation,Fire Prevention,31-Dec-21,2122/10,SME,N,
10045108,CHEQUERS HOTEL LTD,292.5,Homelessness Private Sector,B&B Costs,03-Jan-22,2122/10,SME,N,
10045137,CHEQUERS HOTEL LTD,325,Homelessness Private Sector,B&B Costs,03-Jan-22,2122/10,SME,N,
10045140,CHEQUERS HOTEL LTD,682.5,Homelessness Private Sector,B&B Costs,03-Jan-22,2122/10,SME,N,
10045141,CHEQUERS HOTEL LTD,910,Homelessness Private Sector,B&B Costs,03-Jan-22,2122/10,SME,N,
10045142,CHEQUERS HOTEL LTD,910,Homelessness Private Sector,B&B Costs,03-Jan-22,2122/10,SME,N,
10045143,CHEQUERS HOTEL LTD,780,Homelessness Private Sector,B&B Costs,03-Jan-22,2122/10,SME,N,
10045039,CHIPSIDE LTD,281.83,Sudb C Parks,Contracted Services,31-Dec-21,2122/10,SME,N,
10044778,D W ADAMS LTD,602,Building Services,Repairs,17-Dec-21,2122/10,SME,N,
10044780,D W ADAMS LTD,602,Building Services,Repairs,17-Dec-21,2122/10,SME,N,
10045079,D W ADAMS LTD,"4,294.00",Council House Adaptions,Improvements,07-Jan-22,2122/10,SME,N,
10045145,D W ADAMS LTD,"1,252.00",Building Services,Repairs,10-Jan-22,2122/10,SME,N,
10045222,D W ADAMS LTD,602,Building Services,Repairs,13-Jan-22,2122/10,SME,N,
10045233,D W ADAMS LTD,"4,508.00",Council House Adaptions,Improvements,13-Jan-22,2122/10,SME,N,
10045225,DMA HEALTH AND SAFETY LTD,316,Planned Maint - Heating,Property Servicing,13-Jan-22,2122/10,SME,Y,50%
10045185,DOLPHIN STAIRLIFTS (EAST ANGLIA) LTD,"6,045.00",Mand Disabled Facilities Grant,Grants,12-Jan-22,2122/10,SME,N,
10045163,CIVICA ELECTION SERVICES,324.92,Electoral Registration,Commercial Printing,15-Dec-21,2122/10,LGE,N,
10045414,CIVICA ELECTION SERVICES,"1,259.76",Electoral Registration,Commercial Printing,10-Nov-21,2122/10,LGE,N,
10045359,ENGLISH SECURITY,236.9,Chilton Depot,Fire Prevention,19-Jan-22,2122/10,SME,Y,50%
10045359,ENGLISH SECURITY,460.93,Headquarters General,Fire Prevention,19-Jan-22,2122/10,SME,N,
10045359,ENGLISH SECURITY,175,Old School House,Fire Prevention,19-Jan-22,2122/10,SME,N,
10045359,ENGLISH SECURITY,"1,231.16",Sheltered Accommodation,Fire Prevention,19-Jan-22,2122/10,SME,N,
10045359,ENGLISH SECURITY,423.95,Temporary Accommodation,Fire Prevention,19-Jan-22,2122/10,SME,N,
10045359,ENGLISH SECURITY,"3,376.65",Tenancy Services,Fire Prevention,19-Jan-22,2122/10,SME,N,
10045359,ENGLISH SECURITY,133.9,Wenham Depot,Fire Prevention,19-Jan-22,2122/10,SME,Y,50%
10045007,ENVIROVENT LTD,460,Building Services,Repairs,30-Nov-21,2122/10,SME,N,
10045008,ENVIROVENT LTD,460,Building Services,Repairs,30-Nov-21,2122/10,SME,N,
10045026,FELGAINS CARE CENTRE,"3,913.00",Council House Adaptions,Improvements,10-Dec-21,2122/10,SME,N,
10045027,FELGAINS CARE CENTRE,"1,020.00",Council House Adaptions,Improvements,20-Dec-21,2122/10,SME,N,
10044824,FELLBRIDGE BUILDING SERVICES,"8,608.49",Building Services,Repairs,20-Dec-21,2122/10,SME,N,
10045061,FELLBRIDGE BUILDING SERVICES,"2,148.90",Building Services,Repairs,06-Jan-22,2122/10,SME,N,
10045062,FELLBRIDGE BUILDING SERVICES,"3,339.37",Building Services,Repairs,06-Jan-22,2122/10,SME,N,
10045063,FELLBRIDGE BUILDING SERVICES,560.41,Building Services,Repairs,06-Jan-22,2122/10,SME,N,
10045136,FELLBRIDGE BUILDING SERVICES,"6,244.67",Council House Adaptions,Improvements,10-Jan-22,2122/10,SME,N,
10045228,FELLBRIDGE BUILDING SERVICES,364.36,Building Services,Repairs,13-Jan-22,2122/10,SME,N,
10045230,FELLBRIDGE BUILDING SERVICES,728.27,Building Services,Repairs,13-Jan-22,2122/10,SME,N,
10045231,FELLBRIDGE BUILDING SERVICES,345.01,Building Services,Repairs,13-Jan-22,2122/10,SME,N,
10045232,FELLBRIDGE BUILDING SERVICES,"1,332.69",Building Services,Repairs,13-Jan-22,2122/10,SME,N,
10045282,FELLBRIDGE BUILDING SERVICES,"2,470.28",Building Services,Repairs,17-Jan-22,2122/10,SME,N,
10045283,FELLBRIDGE BUILDING SERVICES,"3,425.86",Building Services,Repairs,17-Jan-22,2122/10,SME,N,
10045360,FELLBRIDGE BUILDING SERVICES,345.86,Building Services,Repairs,20-Jan-22,2122/10,SME,N,
10045361,FELLBRIDGE BUILDING SERVICES,315.66,Building Services,Repairs,20-Jan-21,2122/10,SME,N,
10045378,FELLBRIDGE BUILDING SERVICES,"1,073.24",Building Services,Repairs,20-Jan-22,2122/10,SME,N,
10044977,FORE-MOST GARAGE DOORS LTD,428.19,Building Services,Repairs,31-Dec-21,2122/10,SME,N,
10045017,GB ADAPTIONS LTD,"5,569.00",Mand Disabled Facilities Grant,Grants,05-Jan-22,2122/10,SME,N,
10045071,GB ADAPTIONS LTD,"2,018.00",Mand Disabled Facilities Grant,Grants,06-Jan-22,2122/10,SME,N,
10044976,GLASDON UK LTD,"15,787.80",RHSSF,Bins,31-Dec-21,2122/10,LGE,N,
10044668,HAYES DIGGINS BUILDERS,"6,955.00",Pld Maint/Enhncmts-Kingfisher,Repairs,13-Dec-21,2122/10,SME,N,
10045339,HAYES DIGGINS BUILDERS,"2,935.00",Kingfisher Leisure Centre,Repairs,19-Jan-22,2122/10,SME,N,
10045387,KEN GRIME & SON LTD,583.88,Building Services,Repairs,21-Jan-22,2122/10,SME,N,
10045280,KENDA-CLEAN,14,Chilton Depot,Window Cleaning,16-Jan-22,2122/10,SME,Y,50%
10045280,KENDA-CLEAN,954,Sheltered Accommodation,Window Cleaning,16-Jan-22,2122/10,SME,N,
10045280,KENDA-CLEAN,93,Temporary Accommodation,Window Cleaning,16-Jan-22,2122/10,SME,N,
10045280,KENDA-CLEAN,431,Tenancy Services,Window Cleaning,16-Jan-22,2122/10,SME,N,
10044885,MALJON TIMBER PRESERVATION LTD,629,Dampness & Condensation,Repairs,21-Dec-21,2122/10,SME,N,
10045067,MATERIAL CHANGE COMPOSTING LTD,"2,129.41",Open Spaces,Waste Disposal,31-Dec-21,2122/10,LGE,N,
10044106,MB TREES (EAST ANGLIA) LTD,"2,400.00",Neighbourhood Services,Grounds & Site Maintenance,18-Nov-21,2122/10,SME,N,
10045158,MB TREES (EAST ANGLIA) LTD,"3,920.00",Open Spaces,Tree felling/maintenance,11-Jan-22,2122/10,SME,N,
10045087,MERCURY BUILDING SERVICES LTD,"1,268.77",Kingfisher Leisure Centre,Repairs,07-Jan-22,2122/10,SME,N,
10045087,MERCURY BUILDING SERVICES LTD,577.5,Hadleigh Pool,Repairs,07-Jan-22,2122/10,SME,N,
10045285,MERCURY BUILDING SERVICES LTD,"4,065.00",Kingfisher Leisure Centre,Repairs,17-Jan-22,2122/10,SME,N,
10045218,MIXBROW LTD,"15,833.28",Council House Adaptions,Improvements,12-Jan-22,2122/10,SME,N,
10045277,MONTHIND CLEAN LTD,624.43,Jnt Waste Contract,General Cleaning,15-Jan-22,2122/10,LGE,Y,50%
10045043,ORWELL HOUSING ASSOCIATION LTD,"4,375.00",Other Temp Accommodation,Contracted Services,31-Dec-21,2122/10,LGE,N,
10045111,ORWELL HOUSING ASSOCIATION LTD,545.52,Sheltered Accommodation,Contracted Services,31-Dec-21,2122/10,LGE,N,
10045162,ORWELL HOUSING ASSOCIATION LTD,353.48,Sheltered Accommodation,Horticultural Purchases,31-Dec-21,2122/10,LGE,N,
10045297,ORWELL HOUSING ASSOCIATION LTD,471.32,Sheltered Accommodation,Horticultural Purchases,31-Oct-21,2122/10,LGE,N,
10045298,ORWELL HOUSING ASSOCIATION LTD,471.32,Sheltered Accommodation,Horticultural Purchases,31-Oct-21,2122/10,LGE,N,
10045299,ORWELL HOUSING ASSOCIATION LTD,353.48,Sheltered Accommodation,Horticultural Purchases,31-Oct-21,2122/10,LGE,N,
10045300,ORWELL HOUSING ASSOCIATION LTD,353.48,Sheltered Accommodation,Horticultural Purchases,31-Oct-21,2122/10,LGE,N,
10045057,PAPERWORK (UK) LTD,880.84,Sudb C Parks,Ticketing,06-Jan-22,2122/10,SME,N,
10044671,PITMAN BROTHERS (DECORATORS) LTD,"2,280.00",Building Services,Repairs,13-Dec-21,2122/10,SME,N,
10045015,PLASUFIX LTD,"33,662.11",Roofing,Major Contracts,30-Nov-21,2122/10,SME,N,
10045016,PLASUFIX LTD,"13,303.23",Roofing,Major Contracts,31-Dec-21,2122/10,SME,N,
10045155,PLASUFIX LTD,"1,617.00",Major Imps,BMBS Repairs Work,31-Dec-21,2122/10,SME,N,
10045156,PLASUFIX LTD,"2,330.00",Major Imps,BMBS Repairs Work,31-Dec-21,2122/10,SME,N,
10044791,PRO-FLAT SPECIALIST SERVICES LTD,"4,107.60",Major Imps,Improvements,17-Dec-21,2122/10,SME,N,
10044906,REID PLUMBING & HEATING CONTRACTORS LTD,"4,657.67",Central Heating,Major Contracts,22-Dec-21,2122/10,SME,N,
10044936,REID PLUMBING & HEATING CONTRACTORS LTD,"1,069.30",Central Heating,Improvements,22-Dec-21,2122/10,SME,N,
10045320,REID PLUMBING & HEATING CONTRACTORS LTD,"14,782.40",Central Heating,Major Contracts,19-Jan-22,2122/10,SME,N,
10045351,REID PLUMBING & HEATING CONTRACTORS LTD,"18,523.43",Central Heating,Major Contracts,18-Jan-22,2122/10,SME,N,
10045013,RICOH UK LTD,665.97,ICT,Photocopying,05-Nov-21,2122/10,LGE,Y,50%
10045012,SEAGER HOME SOLUTIONS,"5,260.00",Mand Disabled Facilities Grant,Grants,05-Jan-22,2122/10,SME,N,
10045582,SOLACE GROUP LTD,"1,725.00",Financial Servs,Training,17-Jan-22,2122/10,SME,Y,50%
10044870,SOLUTIONS ON SECURITY SERVICES,430,Sheltered Accommodation,Annual Bldg Maint Contracts,20-Dec-21,2122/10,SME,N,
10045255,SUREFIX,950,Building Services,Repairs,07-Jan-22,2122/10,SME,N,
10045257,SUREFIX,850,Building Services,Repairs,13-Jan-22,2122/10,SME,N,
10045259,SUREFIX,932.63,Building Services,Repairs,13-Jan-22,2122/10,SME,N,
10045260,SUREFIX,"6,750.00",Building Services,Repairs,14-Jan-22,2122/10,SME,N,
10045397,SUREFIX,750,Building Services,Repairs,20-Dec-21,2122/10,SME,N,
10045399,SUREFIX,"2,227.67",Building Services,Repairs,21-Dec-21,2122/10,SME,N,
10044171,THERMATECH,875,Tenancy Services,Fire Prevention,22-Nov-21,2122/10,SME,N,
10044171,THERMATECH,700,Sheltered Accommodation,Fire Prevention,22-Nov-21,2122/10,SME,N,
10044258,THERMATECH,475,Sheltered Accommodation,Fire Prevention,26-Nov-21,2122/10,SME,N,
10044008,VALUATION OFFICE AGENCY,"1,750.00",Devt Management -Applications,Viability,12-Nov-21,2122/10,LGE,N,
10045528,VODAFONE CORPORATE LTD,465,ICT,Telephone Costs,25-Jan-22,2122/10,LGE,N,
10044775,WINDIMAN LTD,804.72,Building Services,Repairs,25-Nov-21,2122/10,SME,N,
10045302,ARCHANT COMMUNITY MEDIA LTD,472.77,Devt Management -Applications,Advertising&mkting (non-staff),27-Nov-21,2122/10,LGE,N,
10044772,MITIE PROPERTY SERVICES (UK) LTD,"7,350.86",Planned Maint - Ext Painting,External Painting,16-Dec-21,2122/10,SME,N,
10045481,ESSEX COUNTY COUNCIL,"5,561.00",Devt Management -Applications,Ecology Consultancy,24-Jan-22,2122/10,LGE,N,
10045482,ESSEX COUNTY COUNCIL,"7,443.00",Devt Management -Applications,Ecology Consultancy,24-Jan-22,2122/10,LGE,N,
10044927,CHUBB FIRE & SECURITY LTD,"6,202.76",Tenancy Services,Community Alarm Costs,20-Dec-21,2122/10,LGE,N,
10044930,CIPFA BUSINESS LTD,495,Financial Servs,Books & Periodicals,09-Dec-21,2122/10,LGE,Y,50%
10044967,BUILDBASE,639.94,Public Realm TransitionProject,Plant & Vehicle - Other costs,31-Dec-21,2122/10,LGE,N,
10044968,BUILDBASE,324.3,Assets & Development,Repairs,31-Dec-21,2122/10,LGE,N,
10044969,BUILDBASE,310.2,Assets & Development,Repairs,31-Dec-21,2122/10,LGE,N,
10045357,EDF ENERGY,10.78,Headquarters General,Electricity,14-Jan-22,2122/10,LGE,N,
10045357,EDF ENERGY,204.01,Belle Vue House,Electricity,14-Jan-22,2122/10,LGE,N,
10045357,EDF ENERGY,15.03,Hadl Market,Electricity,14-Jan-22,2122/10,LGE,N,
10045357,EDF ENERGY,827.67,HQ Energy,Electricity,14-Jan-22,2122/10,LGE,N,
10045357,EDF ENERGY,6.62,Wenham Depot,Electricity,14-Jan-22,2122/10,LGE,Y,50%
10045357,EDF ENERGY,"1,075.31",Chilton Depot,Electricity,14-Jan-22,2122/10,LGE,Y,50%
10045357,EDF ENERGY,3.78,Calais St Depot,Electricity,14-Jan-22,2122/10,LGE,N,
10045357,EDF ENERGY,"4,336.16",Hadleigh Pool,Electricity,14-Jan-22,2122/10,LGE,N,
10045357,EDF ENERGY,87.61,Community Safety-CCTV,Electricity,14-Jan-22,2122/10,LGE,N,
10045357,EDF ENERGY,522.77,Climate Change and Sustainabil,Electricity,14-Jan-22,2122/10,LGE,N,
10045357,EDF ENERGY,156.56,Public Conveniences,Electricity,14-Jan-22,2122/10,LGE,N,
10045357,EDF ENERGY,903.47,C Parks General,Electricity,14-Jan-22,2122/10,LGE,N,
10045357,EDF ENERGY,128.12,Sewage Treatment Works,Electricity,14-Jan-22,2122/10,LGE,N,
10045357,EDF ENERGY,174.36,SP Comm Alarms (Non-SH),Electricity,14-Jan-22,2122/10,LGE,N,
10045357,EDF ENERGY,"10,063.32",Sheltered Accommodation,Electricity,14-Jan-22,2122/10,LGE,N,
10045357,EDF ENERGY,405.31,Temporary Accommodation,Electricity,14-Jan-22,2122/10,LGE,N,
10045357,EDF ENERGY,"2,948.38",Tenancy Services,Electricity,14-Jan-22,2122/10,LGE,N,
10045278,ERNST & YOUNG LLP,"16,316.00",Ext Audit,Audit Fees,06-Jan-22,2122/10,LGE,N,
10045296,ERNST & YOUNG LLP,"31,938.00",Ext Audit,Audit Fees,06-Jan-22,2122/10,LGE,N,
20027719,GPC BARCLAYS,"5,101.02",Current Assets,Barclaycard Control,16-Jan-22,2122/10,LGE,Y,7%
20027722,COMPUTERSHARE ,636,Current Assets,ChildCare Vouchers-Control,24-Jan-22,2122/10,LGE,N,
20027730,TALK TALK BUSINESS,653.4,ICT,Telephone Costs,10-Jan-22,2122/10,LGE,N,
20027711,BURES ST MARY PARISH COUNCIL,347.49,Street & Major Road Cleansing,Contributions & Donations,18-Jan-22,2122/10,SME,N,
20027713,EAST BERGHOLT PARISH COUNCIL,"1,158.30",Street & Major Road Cleansing,Contributions & Donations,18-Jan-22,2122/10,SME,N,
20027714,HOLBROOK PARISH COUNCIL,752.9,Street & Major Road Cleansing,Contributions & Donations,18-Jan-22,2122/10,SME,N,
10045504,LAVENHAM PARISH COUNCIL,"3,284.00",CIL Funded REFCUS,Grants,25-Jan-22,2122/10,SME,N,
10045505,LAVENHAM PARISH COUNCIL,"7,122.44",CIL Funded REFCUS,Grants,25-Jan-22,2122/10,SME,N,
20027716,LAVENHAM PARISH COUNCIL,"2,432.43",Street & Major Road Cleansing,Contributions & Donations,18-Jan-22,2122/10,SME,N,
20027717,LONG MELFORD PARISH COUNCIL,"1,042.47",Street & Major Road Cleansing,Contributions & Donations,18-Jan-22,2122/10,SME,N,
20027715,STRATFORD ST MARY PARISH COUNCIL,289.58,Street & Major Road Cleansing,Contributions & Donations,18-Jan-22,2122/10,SME,N,
10045188,SUDBURY TOWN COUNCIL,500,Grants & Contrbns,Contributions & Donations,12-Jan-22,2122/10,SME,N,
10045305,SUDBURY TOWN COUNCIL,288.4,Sheltered Accommodation,General Cleaning,18-Jan-22,2122/10,SME,N,
10045306,SUDBURY TOWN COUNCIL,267.8,Sheltered Accommodation,General Cleaning,18-Jan-22,2122/10,SME,N,
10044799,SUFFOLK COUNTY COUNCIL,511.78,ICT,Desktop Software,17-Dec-21,2122/10,LGE,N,
10044801,SUFFOLK COUNTY COUNCIL,629.59,ICT,Desktop Software,17-Dec-21,2122/10,LGE,Y,50%
10044982,SUFFOLK COUNTY COUNCIL,393.41,ICT,Desktop Software,31-Dec-21,2122/10,LGE,Y,50%
10045244,SUFFOLK COUNTY COUNCIL,"10,849.17",Domestic Waste,MRF Disposal,13-Jan-22,2122/10,LGE,Y,50%
10045244,SUFFOLK COUNTY COUNCIL,"13,410.14",Garden Waste,Garden Waste Disposal,13-Jan-22,2122/10,LGE,N,
10045384,SUFFOLK COUNTY COUNCIL,"13,272.29",Domestic Waste,MRF Disposal,20-Jan-22,2122/10,LGE,N,
10045384,SUFFOLK COUNTY COUNCIL,"11,830.53",Garden Waste,Garden Waste Disposal,20-Jan-22,2122/10,LGE,N,
10044809,REED SPECIALIST RECRUITMENT LTD,707.3,Governance,Agency Staff,17-Dec-21,2122/10,LGE,Y,50%
10044810,REED SPECIALIST RECRUITMENT LTD,858.03,Governance,Agency Staff,17-Dec-21,2122/10,LGE,Y,50%
10044937,REED SPECIALIST RECRUITMENT LTD,777.2,Financial Servs,Agency Staff,10-Dec-21,2122/10,LGE,Y,50%
10044938,REED SPECIALIST RECRUITMENT LTD,696.15,Financial Servs,Agency Staff,10-Dec-21,2122/10,LGE,Y,50%
10044939,REED SPECIALIST RECRUITMENT LTD,696.15,Financial Servs,Agency Staff,24-Dec-21,2122/10,LGE,Y,50%
10044940,REED SPECIALIST RECRUITMENT LTD,776.87,Governance,Agency Staff,24-Dec-21,2122/10,LGE,Y,50%
10044941,REED SPECIALIST RECRUITMENT LTD,896.76,Governance,Agency Staff,24-Dec-21,2122/10,LGE,Y,50%
10044942,REED SPECIALIST RECRUITMENT LTD,858.03,Governance,Agency Staff,24-Dec-21,2122/10,LGE,Y,50%
10044944,REED SPECIALIST RECRUITMENT LTD,515.98,Governance,Agency Staff,24-Dec-21,2122/10,LGE,Y,50%
10044970,REED SPECIALIST RECRUITMENT LTD,716.04,Financial Servs,Agency Staff,24-Dec-21,2122/10,LGE,Y,50%
10044971,REED SPECIALIST RECRUITMENT LTD,858.03,Governance,Agency Staff,24-Dec-21,2122/10,LGE,Y,50%
10044972,REED SPECIALIST RECRUITMENT LTD,869.63,Governance,Agency Staff,24-Dec-21,2122/10,LGE,Y,50%
10044973,REED SPECIALIST RECRUITMENT LTD,805.85,Governance,Agency Staff,24-Dec-21,2122/10,LGE,Y,50%
10045262,REED SPECIALIST RECRUITMENT LTD,636.88,Financial Servs,Agency Staff,07-Jan-22,2122/10,LGE,Y,50%
10045263,REED SPECIALIST RECRUITMENT LTD,521.78,Governance,Agency Staff,07-Jan-22,2122/10,LGE,Y,50%
10045264,REED SPECIALIST RECRUITMENT LTD,858.03,Governance,Agency Staff,07-Jan-22,2122/10,LGE,Y,50%
10045265,REED SPECIALIST RECRUITMENT LTD,695.7,Governance,Agency Staff,07-Jan-22,2122/10,LGE,Y,50%
10045425,REED SPECIALIST RECRUITMENT LTD,735.93,Financial Servs,Agency Staff,14-Jan-22,2122/10,LGE,Y,50%
10045429,REED SPECIALIST RECRUITMENT LTD,858.03,Bus Imp (Corp),Agency Staff,14-Jan-22,2122/10,LGE,Y,50%
10045474,REED SPECIALIST RECRUITMENT LTD,765.27,Bus Imp (Corp),Agency Staff,14-Jan-22,2122/10,LGE,Y,50%
10044962,TELEFONICA UK LIMITED - O2,368.59,ICT,Telephone Costs,27-Dec-21,2122/10,LGE,Y,50%
10045545,TELEFONICA UK LIMITED - O2,358.27,ICT,Telephone Costs,27-Jan-22,2122/10,LGE,Y,50%
10045345,EAST OF ENGLAND CO-OPERATIVE SOCIETY LTD,"7,230.00",Events & Awards,Food & Drink,01-Dec-21,2122/10,LGE,Y,50%
20027724,GAZPROM ENERGY,212.01,Belle Vue House,Gas,21-Jan-22,2122/10,SME,N,
20027724,GAZPROM ENERGY,68.55,HQ Energy,Gas,21-Jan-22,2122/10,SME,N,
20027724,GAZPROM ENERGY,72.78,Hadleigh Pool,Gas,21-Jan-22,2122/10,SME,N,
20027724,GAZPROM ENERGY,115.83,Kingfisher Leisure Centre,Gas,21-Jan-22,2122/10,SME,N,
20027724,GAZPROM ENERGY,"2,579.37",Sheltered Accommodation,Gas,21-Jan-22,2122/10,SME,N,
20027724,GAZPROM ENERGY,271.45,Temporary Accommodation,Gas,21-Jan-22,2122/10,SME,N,
10044826,WHYBROW PROPERTY SOLUTIONS LTD,"7,045.66",Council House Adaptions,Improvements,15-Dec-21,2122/10,SME,N,
10044827,WHYBROW PROPERTY SOLUTIONS LTD,"2,588.26",Building Services,Repairs,15-Dec-21,2122/10,SME,N,
10044910,WHYBROW PROPERTY SOLUTIONS LTD,"8,888.51",Building Services,Repairs,21-Dec-21,2122/10,SME,N,
10045190,WHYBROW PROPERTY SOLUTIONS LTD,"7,000.00",Building Services,Repairs,10-Jan-22,2122/10,SME,N,
10045240,WHYBROW PROPERTY SOLUTIONS LTD,"1,250.00",Building Services,Repairs,10-Jan-22,2122/10,SME,N,
10045347,WHYBROW PROPERTY SOLUTIONS LTD,"8,100.00",Building Services,Repairs,19-Jan-22,2122/10,SME,N,
10045348,WHYBROW PROPERTY SOLUTIONS LTD,"5,000.00",Building Services,Repairs,19-Jan-22,2122/10,SME,N,
10044888,L A C CLEANING CONTRACTORS LIMITED,867.49,Wenham Depot TDP,General Cleaning,20-Dec-21,2122/10,SME,Y,50%
10045410,L A C CLEANING CONTRACTORS LIMITED,"1,560.25",Building Services,Repairs,20-Jan-22,2122/10,SME,N,
10044700,ARMSTRONG YORK ASBESTOS ENVIRONMENTAL,"10,766.38",Asbestos Survey & Reinspection,Prof & Consultancy Fees,30-Nov-21,2122/10,SME,N,
10045088,ARMSTRONG YORK ASBESTOS ENVIRONMENTAL,"7,439.54",Asbestos Survey & Reinspection,Prof & Consultancy Fees,31-Dec-21,2122/10,SME,N,
10044777,DMP TRAINING (UK),403.75,Street & Major Road Cleansing,Training,06-Dec-21,2122/10,SME,N,
10045237,BAREFOOT & GILLES LTD,300,Assets & Development,Prof & Consultancy Fees,23-Nov-21,2122/10,SME,N,
10044988,OPUS PEOPLE SOLUTIONS LTD,838.38,Current Liabilities,Agency Staff Holding A/C,23-Dec-21,2122/10,SME,N,
10044989,OPUS PEOPLE SOLUTIONS LTD,649.82,Current Liabilities,Agency Staff Holding A/C,30-Dec-21,2122/10,SME,N,
10045129,OPUS PEOPLE SOLUTIONS LTD,296.93,Current Liabilities,Agency Staff Holding A/C,06-Jan-22,2122/10,SME,N,
10045281,OPUS PEOPLE SOLUTIONS LTD,502.75,Current Liabilities,Agency Staff Holding A/C,13-Jan-22,2122/10,SME,N,
10045441,OPUS PEOPLE SOLUTIONS LTD,"1,215.33",Current Liabilities,Agency Staff Holding A/C,20-Jan-22,2122/10,SME,N,
10045417,CORNERSTONE BARRISTERS,"11,775.00",Devt Policy & Local Plans,Misc Legal Expenses,22-Dec-21,2122/10,SME,Y,50%
10045473,CORNERSTONE BARRISTERS,"14,040.00","Alc,Ents&Late Night Refreshmt",Legal Expenses,24-Jan-22,2122/10,SME,N,
10045019,VERTAS GROUP LTD,"4,972.32",Central Postal Serv,Postage,31-Dec-21,2122/10,SME,Y,50%
10045164,VERTAS GROUP LTD,"11,750.40",Unapportionable Central OHs,Security Systems,31-Dec-21,2122/10,SME,N,
10045454,VERTAS GROUP LTD,"10,368.00",Unapportionable Central OHs,Security Systems,14-Dec-21,2122/10,SME,N,
10044807,COLLINS SKIP HIRE,812.49,Building Services,Waste Disposal,20-Dec-21,2122/10,SME,Y,50%
10044978,COLLINS SKIP HIRE,812.49,Building Services,Waste Disposal,31-Dec-21,2122/10,SME,Y,50%
10045094,COLLINS SKIP HIRE,541.66,Building Services,Waste Disposal,10-Jan-22,2122/10,SME,Y,50%
10045266,COLLINS SKIP HIRE,541.66,Building Services,Waste Disposal,17-Jan-22,2122/10,SME,Y,50%
10045077,POSTURITE LTD,"1,689.77",ICT,Computer Equpt Purchases,06-Jan-22,2122/10,SME,Y,50%
10045004,4PRINCIPLES CONSTRUCTION LTD,"4,701.27",Mand Disabled Facilities Grant,Grants,05-Jan-22,2122/10,SME,N,
10045167,FORESOLUTIONS LTD,610,Street & Major Road Cleansing,"Equipment, Tools & Materials",11-Jan-22,2122/10,SME,N,
10044928,"DUNCAN, CAMERON AND HUTCHINSON LTD","95,950.00","11-12 Ipswich, Brantham",Major Contracts,21-Dec-21,2122/10,SME,N,
10045476,"DUNCAN, CAMERON AND HUTCHINSON LTD","120,050.00","11-12 Ipswich, Brantham",Major Contracts,20-Jan-22,2122/10,SME,N,
10044951,BROWNE JACOBSON LLP,"3,010.00",GF - Misc Capital Receipts,Prof & Consultancy Fees,22-Dec-21,2122/10,SME,N,
10045144,BROWNE JACOBSON LLP,"3,987.00",GF - Misc Capital Receipts,Legal Expenses,07-Jan-22,2122/10,SME,N,
10045134,SUFFOLK MARKET EVENTS,500,Economy & Business,Prof & Consultancy Fees,11-Jan-22,2122/10,SME,N,
10045354,SUFFOLK MARKET EVENTS,500,Economy & Business,Prof & Consultancy Fees,20-Jan-22,2122/10,SME,N,
10045541,SUFFOLK MARKET EVENTS,416.56,RHSSF,"Equipment, Tools & Materials",26-Jan-22,2122/10,SME,Y,50%
10045541,SUFFOLK MARKET EVENTS,416.74,Innovate Local SIGIF,Misc Supplies & Services Costs,26-Jan-22,2122/10,SME,Y,50%
10045541,SUFFOLK MARKET EVENTS,166.7,BRRP-MarketTownVision&Invest,Prof & Consultancy Fees,26-Jan-22,2122/10,SME,Y,50%
10045506,PRESTON ST MARY VILLAGE HALL COMMITTEE,"21,614.88",CIL Funded REFCUS,Grants,25-Jan-22,2122/10,SME,N,
10044949,HAYS SPECIALIST RECRUITMENT LTD,378,Financial Servs,Agency Staff,29-Dec-21,2122/10,LGE,Y,50%
10045001,HAYS SPECIALIST RECRUITMENT LTD,"1,084.66",HRA Accountancy,Agency Staff,04-Jan-22,2122/10,LGE,Y,50%
10045002,HAYS SPECIALIST RECRUITMENT LTD,"1,008.00",Financial Servs,Agency Staff,04-Jan-22,2122/10,LGE,Y,50%
10045002,HAYS SPECIALIST RECRUITMENT LTD,"1,512.00",HRA Accountancy,Agency Staff,04-Jan-22,2122/10,LGE,Y,50%
10045025,HAYS SPECIALIST RECRUITMENT LTD,"1,080.23",HRA Accountancy,Agency Staff,05-Jan-22,2122/10,LGE,Y,50%
10045174,HAYS SPECIALIST RECRUITMENT LTD,"1,008.00",Financial Servs,Agency Staff,11-Jan-22,2122/10,LGE,Y,50%
10045174,HAYS SPECIALIST RECRUITMENT LTD,"1,512.00",HRA Accountancy,Agency Staff,11-Jan-22,2122/10,LGE,Y,50%
10045192,HAYS SPECIALIST RECRUITMENT LTD,"1,512.00",Financial Servs,Agency Staff,12-Jan-22,2122/10,LGE,Y,50%
10045319,HAYS SPECIALIST RECRUITMENT LTD,"1,120.00",Financial Servs,Agency Staff,18-Jan-22,2122/10,LGE,Y,50%
10045319,HAYS SPECIALIST RECRUITMENT LTD,"1,680.00",HRA Accountancy,Agency Staff,18-Jan-22,2122/10,LGE,Y,50%
10045424,HAYS SPECIALIST RECRUITMENT LTD,"1,890.00",Financial Servs,Agency Staff,21-Jan-22,2122/10,LGE,Y,50%
10045484,HAYS SPECIALIST RECRUITMENT LTD,"1,120.00",Financial Servs,Agency Staff,24-Jan-22,2122/10,LGE,Y,50%
10045484,HAYS SPECIALIST RECRUITMENT LTD,"1,680.00",HRA Accountancy,Agency Staff,24-Jan-22,2122/10,LGE,Y,50%
10045544,HAYS SPECIALIST RECRUITMENT LTD,"1,890.00",Financial Servs,Agency Staff,26-Jan-22,2122/10,LGE,Y,50%
10044979,RICHARD UTTING ASSOCIATES LLP,"1,889.18",Waldingfield Rd S106 Andersons,Prof & Consultancy Fees,31-Dec-21,2122/10,SME,N,
10045202,PUBLIC SEWER SERVICES,300,Building Services,Repairs,30-Sep-21,2122/10,SME,N,
10045364,PUBLIC SEWER SERVICES,741.34,Building Services,Repairs,31-Dec-21,2122/10,SME,N,
10044961,PRIVATE LANDLORD,650,Guaranteed Rent Scheme,Rent Payable,04-Jan-22,2122/10,SME,N,
10045096,ASPECT CONTRACTS LTD,"4,547.00",Asbestos,Improvements,31-Dec-21,2122/10,LGE,N,
10044952,SUPERSTRUCTURES LTD,575,Structural Works,Prof & Consultancy Fees,22-Dec-21,2122/10,SME,N,
10044953,SUPERSTRUCTURES LTD,425,Structural Works,Prof & Consultancy Fees,21-Dec-21,2122/10,SME,N,
10044954,SUPERSTRUCTURES LTD,425,Structural Works,Prof & Consultancy Fees,21-Dec-21,2122/10,SME,N,
20027708,RIX PETROLEUM (EAST ANGLIA) LTD,226.09,Wenham Depot,Heating Oil,05-Jan-22,2122/10,SME,Y,50%
20027708,RIX PETROLEUM (EAST ANGLIA) LTD,"1,199.22",Tenancy Services,Heating Oil,05-Jan-22,2122/10,SME,N,
10044539,SUDBURY PRINT GROUP LTD,"2,143.00",General/Supervision & Mgmt,Contracted Services,24-Aug-21,2122/10,SME,Y,50%
10044883,NORTHUMBRIAN WATER LTD,63.05,Chilton Depot,Legionella Testing,21-Dec-21,2122/10,LGE,Y,50%
10044883,NORTHUMBRIAN WATER LTD,34.15,HQ Energy,Legionella Testing,21-Dec-21,2122/10,LGE,N,
10044883,NORTHUMBRIAN WATER LTD,202.31,Public Conveniences,Legionella Testing,21-Dec-21,2122/10,LGE,N,
10044883,NORTHUMBRIAN WATER LTD,28.9,Responsive maintenance,Legionella Testing,21-Dec-21,2122/10,LGE,N,
10044883,NORTHUMBRIAN WATER LTD,266.38,Sheltered Accommodation,Legionella Testing,21-Dec-21,2122/10,LGE,N,
10044883,NORTHUMBRIAN WATER LTD,91.95,Temporary Accommodation,Legionella Testing,21-Dec-21,2122/10,LGE,N,
10044883,NORTHUMBRIAN WATER LTD,18.9,Wenham Depot,Legionella Testing,21-Dec-21,2122/10,LGE,Y,50%
10045493,NORTHUMBRIAN WATER LTD,63.05,Chilton Depot,Legionella Testing,25-Jan-22,2122/10,LGE,Y,50%
10045493,NORTHUMBRIAN WATER LTD,34.15,HQ Energy,Legionella Testing,25-Jan-22,2122/10,LGE,N,
10045493,NORTHUMBRIAN WATER LTD,28.9,Old School House,Legionella Testing,25-Jan-22,2122/10,LGE,N,
10045493,NORTHUMBRIAN WATER LTD,202.31,Public Conveniences,Legionella Testing,25-Jan-22,2122/10,LGE,N,
10045493,NORTHUMBRIAN WATER LTD,28.9,Responsive maintenance,Legionella Testing,25-Jan-22,2122/10,LGE,N,
10045493,NORTHUMBRIAN WATER LTD,266.38,Sheltered Accommodation,Legionella Testing,25-Jan-22,2122/10,LGE,N,
10045493,NORTHUMBRIAN WATER LTD,63.05,Temporary Accommodation,Legionella Testing,25-Jan-22,2122/10,LGE,N,
10045493,NORTHUMBRIAN WATER LTD,18.9,Wenham Depot,Legionella Testing,25-Jan-22,2122/10,LGE,Y,50%
10044541,STORETEC SERVICES LTD,718.3,ICT,"Equipment, Tools & Materials",30-Nov-21,2122/10,SME,Y,50%
10044987,AIRMAX REMOTE LTD,441.61,Building Services,Plant & Vehicle - Other costs,31-Dec-21,2122/10,SME,Y,50%
10045286,DOCUSIGN INC,"11,396.00",Tenancy Services,Software Licnse (Line of Bus) ,10-Nov-21,2122/10,SME,Y,50%
10044986,JOHN FORD GROUP LTD,"5,121.18",Mand Disabled Facilities Grant,Grants,04-Jan-22,2122/10,SME,N,
10045107,RESIDENTIALLY CHARTERED SURVEYORS,400,Bourne Hill Wherstead S106 acq,Prof & Consultancy Fees,10-Jan-22,2122/10,SME,N,
10044511,TOP FLOORS (EAST ANGLIA) LTD,582.9,Building Services,Repairs,30-Nov-21,2122/10,SME,N,
10045276,SUDBURYS,440,Guaranteed Rent Scheme,Rent Payable,17-Jan-22,2122/10,SME,N,
10045081,COASTLINE GRAPHICS LTD,"1,465.00",Open Spaces,Plant & Vehicle - Other costs,09-Dec-21,2122/10,SME,N,
10045103,WILLIAM H BROWN ESTATE AGENTS - SUDBURY,725,Guaranteed Rent Scheme,Rent Payable,10-Jan-22,2122/10,SME,N,
10045059,PORTAL PLAN QUEST LTD,924,Devt Management -Applications,Planning Fees,06-Jan-22,2122/10,SME,N,
10045423,PORTAL PLAN QUEST LTD,924,Devt Management -Applications,Planning Fees,24-Jan-22,2122/10,SME,N,
10045478,PORTAL PLAN QUEST LTD,"2,310.00",Devt Management -Applications,Planning Fees,25-Jan-22,2122/10,SME,N,
10045135,ABBEYCROFT LEISURE,"17,778.94",Hadleigh Pool,Major Contracts,10-Jan-22,2122/10,LGE,N,
10045135,ABBEYCROFT LEISURE,"8,033.97",New Hadl Pl & Leisure Centre,Major Contracts,10-Jan-22,2122/10,LGE,N,
10045135,ABBEYCROFT LEISURE,"34,924.09",Kingfisher Leisure Centre,Major Contracts,10-Jan-22,2122/10,LGE,N,
10045130,BELLWAY HOMES LIMITED (ESSEX DIVISION),"78,186.41",Bourne Hill Wherstead S106 acq,Prof & Consultancy Fees,06-Jan-22,2122/10,LGE,N,
10045316,GOVERNMENT EVENTS,399,Financial Servs,Conference Expenses,11-Jan-22,2122/10,SME,Y,50%
10045005,HAMSON BARRON SMITH LTD,"1,250.00",New Bld/acquisition,Prof & Consultancy Fees,31-Dec-21,2122/10,LGE,N,
10044922,DAVID STAGG & ASSOCIATES LTD T/A DSA ELE,"43,117.96",Rewiring,Major Contracts,17-Dec-21,2122/10,SME,N,
10045274,3 POINT PROPERTY MANAGEMENT LTD,550,Guaranteed Rent Scheme,Rent Payable,17-Jan-22,2122/10,SME,N,
10045496,NORSE EASTERN LTD,"1,940.00",Mand Disabled Facilities Grant,Grants,25-Jan-22,2122/10,LGE,N,
10045377,EAST SUFFOLK COUNCIL,"5,742.00",Policy & Strategy (H & W),Contributions & Donations,20-Jan-22,2122/10,LGE,Y,50%
10045497,DG ACCESSIBLE DESIGNS,"1,319.29",Mand Disabled Facilities Grant,Grants,25-Jan-22,2122/10,SME,N,
10044955,APTL ENTERPRISES LTD,"4,648.00",PV Panels,Contracted Services,31-Dec-21,2122/10,SME,Y,44%
10044956,APTL ENTERPRISES LTD,"3,652.00",PV Panels,Contracted Services,31-Dec-21,2122/10,SME,Y,44%
10045060,APTL ENTERPRISES LTD,"6,020.00",PV Panels,Repairs,06-Jan-22,2122/10,SME,N,
10044828,ANGLIA COMMERCIAL FLOORING LTD,445.11,Building Services,Repairs,20-Dec-21,2122/10,SME,N,
10044830,ANGLIA COMMERCIAL FLOORING LTD,265.65,Building Services,Repairs,20-Dec-21,2122/10,SME,N,
10044831,ANGLIA COMMERCIAL FLOORING LTD,893.92,Building Services,Repairs,20-Dec-21,2122/10,SME,N,
10044837,ANGLIA COMMERCIAL FLOORING LTD,367.18,Building Services,Repairs,20-Dec-21,2122/10,SME,N,
10044838,ANGLIA COMMERCIAL FLOORING LTD,"1,111.03",Council House Adaptions,Improvements,20-Dec-21,2122/10,SME,N,
10044840,ANGLIA COMMERCIAL FLOORING LTD,337.72,Wenham Depot,Repairs,20-Dec-21,2122/10,SME,Y,50%
10044841,ANGLIA COMMERCIAL FLOORING LTD,468.7,Building Services,Repairs,20-Dec-21,2122/10,SME,N,
10044843,ANGLIA COMMERCIAL FLOORING LTD,482.09,Building Services,Repairs,20-Dec-21,2122/10,SME,N,
10044844,ANGLIA COMMERCIAL FLOORING LTD,474.7,Building Services,Repairs,21-Dec-21,2122/10,SME,N,
10044845,ANGLIA COMMERCIAL FLOORING LTD,550.97,Building Services,Repairs,20-Dec-21,2122/10,SME,N,
10044850,ANGLIA COMMERCIAL FLOORING LTD,590.33,Building Services,Repairs,20-Dec-21,2122/10,SME,N,
10044863,ANGLIA COMMERCIAL FLOORING LTD,288.36,Building Services,Repairs,20-Dec-21,2122/10,SME,N,
10044864,ANGLIA COMMERCIAL FLOORING LTD,272.88,Building Services,Repairs,20-Dec-21,2122/10,SME,N,
10044865,ANGLIA COMMERCIAL FLOORING LTD,493.19,Building Services,Repairs,20-Dec-21,2122/10,SME,N,
10044867,ANGLIA COMMERCIAL FLOORING LTD,903.53,Building Services,Repairs,20-Dec-21,2122/10,SME,N,
10044869,ANGLIA COMMERCIAL FLOORING LTD,340.29,Building Services,Repairs,20-Dec-21,2122/10,SME,N,
10044882,ANGLIA COMMERCIAL FLOORING LTD,459.91,Building Services,Repairs,20-Dec-21,2122/10,SME,N,
10045105,ANGLIA COMMERCIAL FLOORING LTD,491.94,Building Services,Repairs,20-Dec-21,2122/10,SME,N,
10045226,ANGLIA COMMERCIAL FLOORING LTD,272.88,Building Services,Repairs,12-Jan-22,2122/10,SME,N,
10045227,ANGLIA COMMERCIAL FLOORING LTD,461.38,Building Services,Repairs,12-Jan-22,2122/10,SME,N,
10045241,FLOWBIRD SMART CITY UK LIMITED,263,Hadl C Parks,Repairs,12-Jan-22,2122/10,SME,N,
10045349,FLOWBIRD SMART CITY UK LIMITED,704.6,Hadl C Parks,Repairs,18-Jan-22,2122/10,SME,N,
10045350,FLOWBIRD SMART CITY UK LIMITED,415.2,Sudb C Parks,Repairs,18-Jan-22,2122/10,SME,N,
10045358,ANGLIAN WATER BUS (NAT) LTD T/A WAVE,37.91,Belle Vue House,Water Rates - Metered,12-Jan-22,2122/10,LGE,N,
10045358,ANGLIAN WATER BUS (NAT) LTD T/A WAVE,4.06,C Parks General,Water Rates - Metered,12-Jan-22,2122/10,LGE,N,
10045358,ANGLIAN WATER BUS (NAT) LTD T/A WAVE,316.21,C Parks General,Water Rates - Unmetered,12-Jan-22,2122/10,LGE,N,
10045358,ANGLIAN WATER BUS (NAT) LTD T/A WAVE,636.14,Chilton Depot,Water Rates - Metered,12-Jan-22,2122/10,LGE,Y,50%
10045358,ANGLIAN WATER BUS (NAT) LTD T/A WAVE,4.06,Friars Meadow Sudb,Water Rates - Metered,12-Jan-22,2122/10,LGE,N,
10045358,ANGLIAN WATER BUS (NAT) LTD T/A WAVE,96.52,General Rechargeable Works,Misc Supplies & Services Costs,12-Jan-22,2122/10,LGE,N,
10045358,ANGLIAN WATER BUS (NAT) LTD T/A WAVE,-77.3,HQ Energy,Water Rates - Metered,12-Jan-22,2122/10,LGE,N,
10045358,ANGLIAN WATER BUS (NAT) LTD T/A WAVE,79.03,Old School House,Water Rates - Metered,12-Jan-22,2122/10,LGE,N,
10045358,ANGLIAN WATER BUS (NAT) LTD T/A WAVE,-630.02,Public Conveniences,Water Rates - Metered,12-Jan-22,2122/10,LGE,N,
10045358,ANGLIAN WATER BUS (NAT) LTD T/A WAVE,"7,248.88",Sheltered Accommodation,Water Rates - Metered,12-Jan-22,2122/10,LGE,N,
10045358,ANGLIAN WATER BUS (NAT) LTD T/A WAVE,38.89,Temporary Accommodation,Water Rates - Other Charges,12-Jan-22,2122/10,LGE,N,
10045358,ANGLIAN WATER BUS (NAT) LTD T/A WAVE,141.77,Tenancy Services,Water Rates - Metered,12-Jan-22,2122/10,LGE,N,
10044808,TAYLOR WIMPEY EAST ANGLIA,"52,301.16",Property Acquisition,Prof & Consultancy Fees,17-Dec-21,2122/10,SME,N,
10044808,TAYLOR WIMPEY EAST ANGLIA,"41,040.59","Wolsey Grange, Sproughton S106",Purchase of Land & Buildings,17-Dec-21,2122/10,SME,N,
10045011,STUDLEY CAPITAL LIMITED,"2,250.00","BRRP-Hamilton,Boreham&BelleVue",Prof & Consultancy Fees,05-Jan-22,2122/10,ST,N,
10044884,GREENACRE RECRUITMENT LTD,"1,860.00",Building Services,Agency Staff,15-Dec-21,2122/10,SME,Y,50%
10044905,GREENACRE RECRUITMENT LTD,"1,860.00",Building Services,Agency Staff,22-Dec-21,2122/10,SME,Y,50%
10044983,GREENACRE RECRUITMENT LTD,"1,240.00",Building Services,Agency Staff,31-Dec-21,2122/10,SME,Y,50%
10045183,GREENACRE RECRUITMENT LTD,"2,480.00",Building Services,Agency Staff,12-Jan-22,2122/10,SME,Y,50%
10045337,GREENACRE RECRUITMENT LTD,"3,100.00",Building Services,Agency Staff,19-Jan-22,2122/10,SME,Y,50%
10045217,CROSS MEDIA PRINT& DIGITAL SOLUTIONS LTD,"1,577.83",Building Services,Commercial Printing,31-Dec-21,2122/10,SME,Y,50%
10045006,WILLIS LIMITED,"1,000.00",Financial Servs,Prof & Consultancy Fees,05-Jan-22,2122/10,LGE,N,
10045444,SELBORNE CHAMBERS,750,Devt Management -Applications,Prof & Consultancy Fees,30-Sep-21,2122/10,SME,N,
10045023,TIAA LTD,"4,275.50",Internal Audit,Contracted Services,05-Jan-22,2122/10,SME,Y,50%
10045341,DEMOCRACY COUNTS LTD,"5,750.00",Electoral Registration,Computer Equpt Purchases,30-Nov-21,2122/10,SME,N,
10045342,DEMOCRACY COUNTS LTD,"10,925.00",Electoral Registration,Software Licnse (Line of Bus) ,30-Nov-21,2122/10,SME,N,
10045189,LAND USE CONSULTANTS LTD,"1,500.00",Nghbrhd Plan Designations,Prof & Consultancy Fees,31-Dec-21,2122/10,SME,N,
10045066,INFORM COMMUNICATIONS LTD,"29,432.00",ICT-Hardware/Software Refresh,Prof & Consultancy Fees,31-Dec-21,2122/10,SME,Y,50%
10045471,REEFER PROPERTIES LTD,695,Guaranteed Rent Scheme,Rent Payable,25-Jan-22,2122/10,SME,N,
10044493,PENTACO CONSTRUCTION LTD,"12,805.00","Angel Court, Hadleigh",Major Contracts,02-Dec-21,2122/10,SME,N,
10044992,HADLEIGH FOODBANK,"2,850.00",Holiday Activity Funding,"Equipment, Tools & Materials",04-Jan-22,2122/10,SME,N,
10044948,WADDINGTON BROWN LTD,562.95,Organisational Devt,Agency Staff,27-Dec-21,2122/10,SME,Y,50%
10045184,WADDINGTON BROWN LTD,425.34,Organisational Devt,Agency Staff,10-Jan-22,2122/10,SME,Y,50%
10045327,WADDINGTON BROWN LTD,750.6,Organisational Devt,Agency Staff,17-Jan-21,2122/10,SME,Y,50%
10045540,WADDINGTON BROWN LTD,750.6,Organisational Devt,Agency Staff,24-Jan-22,2122/10,SME,Y,50%
10045472,PRIVATE LANDLORD,675,Guaranteed Rent Scheme,Rent Payable,25-Jan-22,2122/10,ST,N,
20027707,PRIVATE LANDLORD,448.98,Guaranteed Rent Scheme,Rent Payable,06-Jan-22,2122/10,ST,N,
10045273,PRIVATE LANDLORD,650,Guaranteed Rent Scheme,Rent Payable,17-Jan-22,2122/10,SME,N,
10045275,PRIVATE LANDLORD,"1,198.00",Guaranteed Rent Scheme,Rent Payable,17-Jan-22,2122/10,ST,N,
10045498,GOULD ADAPTIONS LTD,"6,147.96",Mand Disabled Facilities Grant,Grants,25-Jan-22,2122/10,SME,N,
10044223,CAPITA BUSINESS SERVICES LTD (PAY360),"10,500.00",ICT costs rltd to Jnt wkg w/MS,Desktop Software,24-Nov-21,2122/10,LGE,Y,50%
10045159,CAPITA BUSINESS SERVICES LTD (PAY360),"3,249.32",Bank Chgs,Bank Charges,11-Jan-22,2122/10,LGE,N,
10045292,CAPITA BUSINESS SERVICES LTD (PAY360),"1,167.53",Bank Chgs,Bank Charges,17-Jan-22,2122/10,LGE,N,
10045421,SEQUENCE UK LTD (WILLIAM H BROWN),700,Guaranteed Rent Scheme,Rent Payable,24-Jan-22,2122/10,LGE,N,
10045422,PRIVATE LANDLORD,700,Guaranteed Rent Scheme,Rent Payable,24-Jan-22,2122/10,ST,N,
10044960,PRIVATE LANDLORD,490,Guaranteed Rent Scheme,Rent Payable,04-Jan-22,2122/10,SME,N,
10045161,EWS LIMITED,"1,971.57",Tenancy Services,Other Service Charges,15-Dec-21,2122/10,SME,N,
10044710,AMPLIS CONSTRUCTION LTD,"20,695.38","Fences, Gates and Walls",Major Contracts,14-Dec-21,2122/10,SME,N,
10045331,AMPLIS CONSTRUCTION LTD,"9,523.57","Fences, Gates and Walls",Improvements,19-Jan-22,2122/10,SME,N,
10044958,PRIVATE LANDLORD,786.5,Guaranteed Rent Scheme,Rent Payable,04-Jan-22,2122/10,ST,N,
10045132,PRIVATE LANDLORD,650,Guaranteed Rent Scheme,Rent Payable,11-Jan-22,2122/10,ST,N,
10044998,CORENERGY LIMITED,"15,234.20",Public Sector Decarbonisation,Contracted Services,31-Dec-21,2122/10,SME,N,
10044999,CORENERGY LIMITED,"6,621.00",Public Sector Decarbonisation,Contracted Services,31-Dec-21,2122/10,SME,N,
10045000,CORENERGY LIMITED,"7,292.00",Public Sector Decarbonisation,Contracted Services,31-Dec-21,2122/10,SME,N,
10044945,ANDERSON DESIGN & BUILD LIMITED,"158,979.31",Waldingfield Rd S106 Andersons,Prof & Consultancy Fees,22-Dec-21,2122/10,SME,N,
10044347,DGL QUALITY MANAGEMENT LTD,560,"1-3 Queensland, Shotley",Prof & Consultancy Fees,30-Nov-21,2122/10,SME,N,
10045092,DGL QUALITY MANAGEMENT LTD,560,"11-12 Ipswich, Brantham",Prof & Consultancy Fees,31-Dec-21,2122/10,SME,N,
10045097,PRIVATE LANDLORD,650,Guaranteed Rent Scheme,Rent Payable,10-Jan-22,2122/10,ST,N,
10045098,PRIVATE LANDLORD,800,Guaranteed Rent Scheme,Rent Payable,10-Jan-22,2122/10,SME,N,
10044692,ARAN INSULATION LTD,"1,023.24",Major Imps,Improvements,13-Dec-21,2122/10,SME,N,
10044914,ARAN INSULATION LTD,"12,018.98",Insulation Imps,Improvements,21-Dec-21,2122/10,SME,N,
10044932,ARAN INSULATION LTD,"85,658.81",Insulation Imps,Major Contracts,23-Dec-21,2122/10,SME,N,
10045261,CIPFA (COURSES),495,Financial Servs,Books & Periodicals,11-Jan-22,2122/10,LGE,Y,50%
10045181,P TUCKWELL LTD,"3,650.00",Street & Major Road Cleansing,"Equipment, Tools & Materials",20-Dec-21,2122/10,SME,N,
10045010,IAN BOOTH CONSULTANT ENGINEER LTD,739.4,Roads and Paths,Improvements,31-Dec-21,2122/10,SME,Y,50%
10045157,NWES PROPERTY SERVICES LTD,620,Major Imps,Rent Payable,04-Jan-22,2122/10,SME,N,
10044959,PRIVATE LANDLORD,"1,200.00",Guaranteed Rent Scheme,Rent Payable,04-Jan-22,2122/10,SME,N,
10045193,E.ON NEXT,134.34,Tenancy Services,Electricity,31-Dec-21,2122/10,LGE,N,
10045193,E.ON NEXT,134.34,Tenancy Services,Gas,31-Dec-21,2122/10,LGE,N,
10044985,IPSERV LTD,190.5,Central Printing,Commercial Printing,04-Jan-22,2122/10,SME,N,
10044985,IPSERV LTD,482.05,Communications,Commercial Printing,04-Jan-22,2122/10,SME,N,
10045325,SSE,277.62,Voids Maintenance,Gas,31-Dec-21,2122/10,LGE,N,
10045326,SSE,508.22,Voids Maintenance,Electricity,31-Dec-21,2122/10,LGE,N,
10045074,JACKSON LIFT SERVICES LTD,"1,041.65",Sheltered Accommodation,Plant Maintenance,06-Jan-22,2122/10,LGE,N,
10045101,DAVID BURR LETTINGS,700,Guaranteed Rent Scheme,Rent Payable,10-Jan-22,2122/10,SME,N,
10044862,GREENGRASS COMMERCIAL LTD,"3,145.00",Wenham Depot,Repairs,17-Dec-21,2122/10,SME,Y,50%
10044812,AJ PRODUCTS (UK) LTD,"1,599.00",Building Services,"Equipment, Tools & Materials",20-Dec-21,2122/10,SME,Y,50%
10045084,FOURWAYS VEHICLE SOLUTIONS LTD,511,Building Services,Lease Cars - Payment,21-Dec-21,2122/10,SME,Y,50%
10045495,FOURWAYS VEHICLE SOLUTIONS LTD,511,Building Services,Lease Cars - Payment,17-Jan-22,2122/10,SME,Y,50%
10045590,FOURWAYS VEHICLE SOLUTIONS LTD,511,Building Services,Lease Cars - Payment,26-Jan-22,2122/10,SME,Y,50%
10045287,START AFRESH CLEANING LTD,515.67,Street & Major Road Cleansing,General Cleaning,31-Dec-21,2122/10,SME,N,
10045363,REGENCY GUARDING & EVENTS LTD,620,Open Spaces,Contracted Services,13-Jan-22,2122/10,SME,N,
10045133,PRIVATE LANDLORD,715,Guaranteed Rent Scheme,Rent Payable,11-Jan-22,2122/10,SME,N,
10045075,BADENOCH & CLARK LTD T/A ADECCO,"2,440.00",Commissioning & Procurement,Agency Staff,05-Jan-22,2122/10,SME,Y,50%
10045076,BADENOCH & CLARK LTD T/A ADECCO,488,Commissioning & Procurement,Agency Staff,05-Jan-22,2122/10,SME,Y,50%
10045153,BADENOCH & CLARK LTD T/A ADECCO,"1,952.00",Commissioning & Procurement,Agency Staff,10-Jan-22,2122/10,SME,Y,50%
10045323,BADENOCH & CLARK LTD T/A ADECCO,"2,440.00",Commissioning & Procurement,Agency Staff,18-Jan-22,2122/10,SME,Y,50%
10045547,BADENOCH & CLARK LTD T/A ADECCO,"2,440.00",Commissioning & Procurement,Agency Staff,24-Jan-22,2122/10,SME,Y,50%
10044957,SHJ HOMES LTD,500,Guaranteed Rent Scheme,Rent Payable,04-Jan-22,2122/10,SME,N,
10045428,BOURNE & CO PROPERTY LET & MANAGE LTD,525,Guaranteed Rent Scheme,Rent Payable,24-Jan-22,2122/10,SME,N,
10045427,PRIVATE LANDLORD,500,Guaranteed Rent Scheme,Rent Payable,24-Jan-22,2122/10,ST,N,
10044923,BD SOLUTIONS LTD,"2,500.00","Churchfield, Monks Eleigh S106",Prof & Consultancy Fees,23-Dec-21,2122/10,SME,N,
10045267,PREMIER EDUCATION,"2,592.00",Holiday Activity Funding,"Equipment, Tools & Materials",09-Dec-21,2122/10,SME,N,
10045451,HSM HOMES LTD,325.47,Rent Deposit Scheme,Misc Premises Costs,24-Jan-22,2122/10,SME,N,
20027721,PRIVATE LANDLORD,675,Guaranteed Rent Scheme,Rent Payable,20-Jan-22,2122/10,ST,N,
20027721,PRIVATE LANDLORD,750,Guaranteed Rent Scheme,Misc Supplies & Services Costs,20-Jan-22,2122/10,ST,N,
10044935,PRECISE MEDIA MONITORING LIMITED,"3,400.00",Communications,Subscriptions,30-Nov-21,2122/10,LGE,Y,50%
10045284,KH LANDSCAPES & GARDEN MAINTENANCE,600,Mand Disabled Facilities Grant,Grants,17-Jan-22,2122/10,SME,N,
10045415,PRIVATE LANDLORD,650,Guaranteed Rent Scheme,Rent Payable,21-Jan-22,2122/10,ST,N,
10045415,PRIVATE LANDLORD,"1,500.00",Guaranteed Rent Scheme,Misc Supplies & Services Costs,21-Jan-22,2122/10,ST,N,
10045104,THERMATECH,-525,Tenancy Services,Fire Prevention,10-Jan-22,2122/10,SME,N,
20027628,ANGLIAN WATER BUS (NAT) LTD T/A WAVE,28.01,General Rechargeable Works,Misc Supplies & Services Costs,13-Oct-21,2122/10,LGE,N,
20027628,ANGLIAN WATER BUS (NAT) LTD T/A WAVE,81.38,C Parks General,Water Rates - Metered,13-Oct-21,2122/10,LGE,N,
20027628,ANGLIAN WATER BUS (NAT) LTD T/A WAVE,"-3,785.41",Chilton Depot,Water Rates - Metered,13-Oct-21,2122/10,LGE,Y,50%
20027628,ANGLIAN WATER BUS (NAT) LTD T/A WAVE,3.93,Friars Meadow Sudb,Water Rates - Metered,13-Oct-21,2122/10,LGE,N,
20027628,ANGLIAN WATER BUS (NAT) LTD T/A WAVE,55.91,HQ Energy,Water Rates - Metered,13-Oct-21,2122/10,LGE,N,
20027628,ANGLIAN WATER BUS (NAT) LTD T/A WAVE,81.76,Old School House,Water Rates - Metered,13-Oct-21,2122/10,LGE,N,
20027628,ANGLIAN WATER BUS (NAT) LTD T/A WAVE,640.3,Public Conveniences,Water Rates - Metered,13-Oct-21,2122/10,LGE,N,
20027628,ANGLIAN WATER BUS (NAT) LTD T/A WAVE,"1,130.00",Sheltered Accommodation,Water Rates - Metered,13-Oct-21,2122/10,LGE,N,
20027628,ANGLIAN WATER BUS (NAT) LTD T/A WAVE,41.02,Temporary Accommodation,Water Rates - Other Charges,13-Oct-21,2122/10,LGE,N,
20027628,ANGLIAN WATER BUS (NAT) LTD T/A WAVE,16.04,Tenancy Services,Water Rates - Unmetered,13-Oct-21,2122/10,LGE,N,
20027628,ANGLIAN WATER BUS (NAT) LTD T/A WAVE,118.47,Tenancy Services,Water Rates - Metered,13-Oct-21,2122/10,LGE,N,
10045522,SSE,0.29,Tenancy Services,Gas,14-Jan-22,2122/10,LGE,N,
10045522,SSE,-6.01,Tenancy Services,Electricity,14-Jan-22,2122/10,LGE,N,
10045523,SSE,20.7,Tenancy Services,Gas,13-Jan-22,2122/10,LGE,N,
10045523,SSE,-70.73,Tenancy Services,Electricity,13-Jan-22,2122/10,LGE,N,
10045787,AE WHITE SURFACING,411.85,Insurance Claims,Misc Premises Costs,31-Jan-22,2122/11,SME,N,
10046288,AE WHITE SURFACING,675,"Angel Court, Hadleigh",Prof & Consultancy Fees,23-Feb-22,2122/11,SME,N,
10045789,ANGLIAN WATER,276.91,Water Sampling,Sampling & Analysis,03-Feb-22,2122/11,LGE,N,
10045790,ANGLIAN WATER,276.22,Water Sampling,Sampling & Analysis,03-Feb-22,2122/11,LGE,N,
10046108,BIFFA WASTE SERVICES LTD,498.32,Comm Devt Grants,Grants,15-Feb-22,2122/11,LGE,N,
10045650,BINDER LTD,509,Tenancy Services,Repairs,18-Jan-22,2122/11,SME,N,
10046005,BINDER LTD,311,Sewage Treatment Works,Contracted Services,08-Feb-22,2122/11,SME,N,
10046319,BINDER LTD,311,Sewage Treatment Works,Contracted Services,18-Feb-22,2122/11,SME,N,
10046319,BINDER LTD,2.9,Sewage Treatment Works,Repairs,18-Feb-22,2122/11,SME,N,
20027738,BLUE FLAME (COLCHESTER) LTD,"12,957.09",Current Liabilities,Cert IBS Creditors Holding ac,02-Feb-22,2122/11,SME,N,
20027741,BLUE FLAME (COLCHESTER) LTD,"21,598.21",Current Liabilities,Cert IBS Creditors Holding ac,09-Feb-22,2122/11,SME,N,
20027749,BLUE FLAME (COLCHESTER) LTD,"28,579.57",Current Liabilities,Cert IBS Creditors Holding ac,16-Feb-22,2122/11,SME,N,
20027759,BLUE FLAME (COLCHESTER) LTD,"50,350.69",Current Liabilities,Cert IBS Creditors Holding ac,23-Feb-22,2122/11,SME,N,
10045785,BOTTOMLINE TECHNOLOGIES,667.8,ICT,Software Licnse (Line of Bus) ,31-Jan-22,2122/11,LGE,Y,50%
10045920,BOWER FULLER,"1,700.52",Temporary Accommodation,Fire Prevention,31-Jan-22,2122/11,SME,N,
10045923,BOWER FULLER,280.15,Open Spaces,"Equipment, Tools & Materials",31-Jan-22,2122/11,SME,N,
10045928,BOWER FULLER,641.63,Sheltered Units-Gen.Imp,Improvements,31-Jan-22,2122/11,SME,N,
10045929,BOWER FULLER,694.2,Tenancy Services,Fire Prevention,31-Jan-22,2122/11,SME,N,
10045930,BOWER FULLER,"1,285.23",Assets & Development,Repairs,31-Jan-22,2122/11,SME,N,
10045932,BOWER FULLER,"4,984.20",Tenancy Services,Fire Prevention,31-Jan-22,2122/11,SME,N,
10045934,BOWER FULLER,418.2,Sheltered Accommodation,Fire Prevention,31-Jan-22,2122/11,SME,N,
10045935,BOWER FULLER,"3,174.60",Sheltered Accommodation,Fire Prevention,31-Jan-22,2122/11,SME,N,
10045938,BOWER FULLER,253.29,Temporary Accommodation,Repairs,31-Jan-22,2122/11,SME,N,
10045940,BOWER FULLER,361.8,Open Spaces,"Equipment, Tools & Materials",31-Jan-22,2122/11,SME,N,
10045457,CAPITA BUSINESS SERVICES LTD,"4,237.47",ICT,Desktop Software,12-Jan-22,2122/11,LGE,Y,50%
10045617,AQUASAMPLERS,260,Water Sampling,Sampling & Analysis,31-Dec-21,2122/11,SME,N,
10046042,AQUASAMPLERS,454,Water Sampling,Sampling & Analysis,31-Jan-22,2122/11,SME,N,
10045722,CHEQUERS HOTEL LTD,292.5,Homelessness Private Sector,B&B Costs,06-Dec-21,2122/11,SME,N,
10045723,CHEQUERS HOTEL LTD,"1,105.00",Homelessness Private Sector,B&B Costs,06-Dec-21,2122/11,SME,N,
10045724,CHEQUERS HOTEL LTD,"1,137.50",Homelessness Private Sector,B&B Costs,06-Dec-21,2122/11,SME,N,
10045725,CHEQUERS HOTEL LTD,325,Homelessness Private Sector,B&B Costs,06-Dec-21,2122/11,SME,N,
10045726,CHEQUERS HOTEL LTD,"1,137.50",Homelessness Private Sector,B&B Costs,06-Dec-21,2122/11,SME,N,
10045728,CHEQUERS HOTEL LTD,450,Homelessness Private Sector,B&B Costs,01-Nov-21,2122/11,SME,N,
10045729,CHEQUERS HOTEL LTD,910,Homelessness Private Sector,B&B Costs,01-Nov-21,2122/11,SME,N,
10045730,CHEQUERS HOTEL LTD,260,Homelessness Private Sector,B&B Costs,01-Nov-21,2122/11,SME,N,
10045732,CHEQUERS HOTEL LTD,682.5,Homelessness Private Sector,B&B Costs,01-Nov-21,2122/11,SME,N,
10045866,CHEQUERS HOTEL LTD,617.5,Homelessness Private Sector,B&B Costs,31-Jan-22,2122/11,SME,N,
10045867,CHEQUERS HOTEL LTD,910,Homelessness Private Sector,B&B Costs,31-Jan-22,2122/11,SME,N,
10045868,CHEQUERS HOTEL LTD,910,Homelessness Private Sector,B&B Costs,31-Jan-22,2122/11,SME,N,
10045869,CHEQUERS HOTEL LTD,"1,820.00",Homelessness Private Sector,B&B Costs,31-Jan-22,2122/11,SME,N,
10045871,CHEQUERS HOTEL LTD,390,Homelessness Private Sector,B&B Costs,02-Feb-22,2122/11,SME,N,
10045872,CHEQUERS HOTEL LTD,422.5,Homelessness Private Sector,B&B Costs,31-Jan-22,2122/11,SME,N,
10045873,CHEQUERS HOTEL LTD,455,Homelessness Private Sector,B&B Costs,31-Jan-22,2122/11,SME,N,
10045874,CHEQUERS HOTEL LTD,390,Homelessness Private Sector,B&B Costs,05-Feb-22,2122/11,SME,N,
10045748,CHIPSIDE LTD,275.92,Sudb C Parks,Contracted Services,31-Jan-22,2122/11,SME,N,
10045943,D ADAMS CARPENTRY,"7,371.32",Mand Disabled Facilities Grant,Grants,09-Feb-22,2122/11,SME,N,
10045500,D W ADAMS LTD,"1,546.00",Building Services,Repairs,26-Jan-22,2122/11,SME,N,
10045558,D W ADAMS LTD,"3,587.00",Council House Adaptions,Improvements,27-Jan-22,2122/11,SME,N,
10045784,D W ADAMS LTD,"5,008.00",Council House Adaptions,Improvements,04-Feb-22,2122/11,SME,N,
10046153,DOLPHIN STAIRLIFTS (EAST ANGLIA) LTD,"2,574.00",Mand Disabled Facilities Grant,Grants,17-Feb-22,2122/11,SME,N,
10046156,DOLPHIN STAIRLIFTS (EAST ANGLIA) LTD,"2,178.00",Mand Disabled Facilities Grant,Grants,17-Feb-22,2122/11,SME,N,
20027743,ELMHURST ENERGY SYSTEMS LTD,300,Bldg Regs Chargeable Serv,Training,15-Dec-21,2122/11,SME,Y,50%
10045416,ENER-G SWITCH2 LTD,451.78,Temporary Accommodation,Repairs,11-Jan-22,2122/11,SME,N,
10045899,ENER-G SWITCH2 LTD,451.78,Temporary Accommodation,Repairs,07-Feb-22,2122/11,SME,N,
10045442,FELLBRIDGE BUILDING SERVICES,"9,789.68",Building Services,Repairs,20-Jan-21,2122/11,SME,N,
10045459,FELLBRIDGE BUILDING SERVICES,"6,462.11",Building Services,Repairs,24-Dec-21,2122/11,SME,N,
10045583,FELLBRIDGE BUILDING SERVICES,"6,336.56",Building Services,Repairs,27-Jan-22,2122/11,SME,N,
10045584,FELLBRIDGE BUILDING SERVICES,"1,410.95",Building Services,Repairs,27-Jan-22,2122/11,SME,N,
10045585,FELLBRIDGE BUILDING SERVICES,373.98,Building Services,Repairs,27-Jan-22,2122/11,SME,N,
10046047,FELLBRIDGE BUILDING SERVICES,345.25,Building Services,Repairs,14-Feb-22,2122/11,SME,N,
10046154,FELLBRIDGE BUILDING SERVICES,288,Building Services,Repairs,17-Feb-22,2122/11,SME,N,
10045438,G & G SIGNS,322.9,Street Naming & Numbering,Signs,21-Jan-22,2122/11,SME,N,
10045525,GB ADAPTIONS LTD,"6,938.76",Mand Disabled Facilities Grant,Grants,26-Jan-22,2122/11,SME,N,
10045470,HAYES DIGGINS BUILDERS,350,Hadleigh Pool,Repairs,24-Jan-22,2122/11,SME,N,
10046106,HAYES DIGGINS BUILDERS,"2,350.50",Building Services,Repairs,31-Jan-22,2122/11,SME,N,
10045615,KEN GRIME & SON LTD,548.28,Building Services,Repairs,31-Jan-22,2122/11,SME,N,
10045997,KEN GRIME & SON LTD,504.15,Building Services,Repairs,11-Feb-22,2122/11,SME,N,
10045699,KEYWAYS THE LOCKSMITHS LTD,418,Homelessness Private Sector,Misc Premises Costs,02-Feb-22,2122/11,SME,N,
10045966,LOCAL GOVERNMENT INFORMATION UNIT,"2,269.00",Management Team,Subscriptions,03-Jan-22,2122/11,LGE,N,
10045876,M & H CIVIL ENGINEERING LTD,"1,348.80",Building Services,Repairs,21-Dec-21,2122/11,SME,N,
10045883,MALJON TIMBER PRESERVATION LTD,"2,179.00",Building Services,Repairs,01-Feb-22,2122/11,SME,N,
10045639,MATERIAL CHANGE COMPOSTING LTD,"2,391.94",Open Spaces,Waste Disposal,31-Jan-22,2122/11,LGE,N,
10046067,MERCURY BUILDING SERVICES LTD,243,Hadleigh Pool,Repairs,15-Feb-22,2122/11,SME,N,
10046067,MERCURY BUILDING SERVICES LTD,"1,550.00",Kingfisher Leisure Centre,Repairs,15-Feb-22,2122/11,SME,N,
10046016,MONTHIND CLEAN LTD,624.43,Jnt Waste Contract,General Cleaning,15-Feb-22,2122/11,LGE,Y,50%
10045795,ORWELL HOUSING ASSOCIATION LTD,545.52,Sheltered Accommodation,Contracted Services,27-Jan-22,2122/11,LGE,N,
10045967,ORWELL HOUSING ASSOCIATION LTD,471.32,Sheltered Accommodation,Horticultural Purchases,31-Dec-21,2122/11,LGE,N,
10045548,PAPERWORK (UK) LTD,577.6,Sudb C Parks,Ticketing,27-Jan-22,2122/11,SME,N,
10045426,PITMAN BROTHERS (DECORATORS) LTD,"1,480.00",Building Services,Repairs,21-Jan-22,2122/11,SME,N,
10045538,PITMAN BROTHERS (DECORATORS) LTD,"1,480.00",Building Services,Repairs,25-Jan-22,2122/11,SME,N,
10046031,PITMAN BROTHERS (DECORATORS) LTD,"1,250.00",Building Services,Repairs,14-Feb-22,2122/11,SME,N,
10045898,PLASUFIX LTD,"11,681.72",Roofing,Major Contracts,31-Jan-22,2122/11,SME,N,
10045485,REID PLUMBING & HEATING CONTRACTORS LTD,"25,579.83",Central Heating,Major Contracts,25-Jan-22,2122/11,SME,N,
10045633,REID PLUMBING & HEATING CONTRACTORS LTD,"9,594.43",Central Heating,Major Contracts,31-Jan-22,2122/11,SME,N,
10045698,REID PLUMBING & HEATING CONTRACTORS LTD,"24,406.52",Central Heating,Major Contracts,02-Feb-22,2122/11,SME,N,
10046120,REID PLUMBING & HEATING CONTRACTORS LTD,"9,383.50",Central Heating,Major Contracts,15-Feb-22,2122/11,SME,N,
10045877,RICOH UK LTD,"1,042.90",ICT,Photocopying,06-Feb-22,2122/11,LGE,Y,50%
10046281,RICOH UK LTD,665.97,ICT,Photocopying,06-Feb-22,2122/11,LGE,Y,50%
10045711,SANDY LANE NURSERY,"3,300.00",Public Tree Programme,Horticultural Purchases,03-Feb-22,2122/11,SME,N,
10045644,SOLUTIONS ON SECURITY SERVICES,"2,408.38",Sheltered Units-Gen.Imp,Improvements,31-Jan-22,2122/11,SME,N,
10045396,SUREFIX,850,Building Services,Repairs,17-Dec-21,2122/11,SME,N,
10045398,SUREFIX,850,Building Services,Repairs,20-Dec-21,2122/11,SME,N,
10045400,SUREFIX,494.44,Building Services,Repairs,21-Dec-21,2122/11,SME,N,
10045606,SUREFIX,966.44,Building Services,Repairs,24-Jan-22,2122/11,SME,N,
10045832,SUREFIX,316.44,Building Services,Repairs,01-Feb-22,2122/11,SME,N,
10046161,SUREFIX,850,Building Services,Repairs,10-Feb-22,2122/11,SME,N,
10046162,SUREFIX,775,Major Imps,Improvements,09-Feb-22,2122/11,SME,N,
10046163,SUREFIX,"1,300.00",Building Services,Repairs,08-Feb-22,2122/11,SME,N,
10046169,SUREFIX,750,Major Imps,Improvements,11-Feb-22,2122/11,SME,N,
10046170,SUREFIX,"1,350.00",Major Imps,Improvements,10-Feb-22,2122/11,SME,N,
10046185,SUREFIX,475,Major Imps,Improvements,15-Feb-22,2122/11,SME,N,
10046186,SUREFIX,"1,050.00",Major Imps,Improvements,15-Feb-22,2122/11,SME,N,
10046187,SUREFIX,850,Building Services,Repairs,16-Feb-22,2122/11,SME,N,
10046188,SUREFIX,750,Major Imps,Improvements,16-Feb-22,2122/11,SME,N,
10045437,TANKCHANGE LTD,345,Central Heating,Improvements,31-Dec-21,2122/11,SME,N,
10045447,TANKCHANGE LTD,"2,200.00",Central Heating,Improvements,31-Dec-21,2122/11,SME,N,
10045475,TANKCHANGE LTD,345,Central Heating,Improvements,31-Dec-21,2122/11,SME,N,
10045799,THERMATECH,"10,480.00",Sheltered Accommodation,Fire Prevention,04-Feb-22,2122/11,SME,N,
10045800,THERMATECH,275,Tenancy Services,Fire Prevention,04-Feb-22,2122/11,SME,N,
10045801,THERMATECH,"3,600.00",Sheltered Accommodation,Fire Prevention,04-Feb-22,2122/11,SME,N,
10046341,THERMATECH,"2,700.00","Churchfield, Monks Eleigh S106",Prof & Consultancy Fees,15-Feb-22,2122/11,SME,N,
10045740,VALUATION OFFICE AGENCY,750,Devt Management -Applications,Viability,02-Feb-22,2122/11,LGE,N,
10045987,WINDIMAN LTD,400,Building Services,Repairs,10-Feb-22,2122/11,SME,N,
10045526,ARCHANT COMMUNITY MEDIA LTD,640.9,Devt Management -Applications,Advertising&mkting (non-staff),22-Jan-22,2122/11,LGE,N,
10045901,ARCHANT COMMUNITY MEDIA LTD,957.9,Devt Management -Applications,Advertising&mkting (non-staff),15-Jan-22,2122/11,LGE,N,
10045974,ARCHANT COMMUNITY MEDIA LTD,648.9,Devt Management -Applications,Advertising&mkting (non-staff),05-Feb-22,2122/11,LGE,N,
10046129,ARCHANT COMMUNITY MEDIA LTD,275.4,Devt Management -Applications,Advertising&mkting (non-staff),12-Feb-22,2122/11,LGE,N,
10046178,ARCHANT COMMUNITY MEDIA LTD,260.02,RHSSF,Advertising&mkting (non-staff),10-Feb-22,2122/11,LGE,N,
10046296,ARCHANT COMMUNITY MEDIA LTD,679.8,Devt Management -Applications,Advertising&mkting (non-staff),19-Feb-22,2122/11,LGE,N,
10045483,ESSEX COUNTY COUNCIL,756,Pre App Charging,Ecology Consultancy,24-Jan-22,2122/11,LGE,N,
10046145,ESSEX COUNTY COUNCIL,"4,078.00",Conservation,Prof & Consultancy Fees,16-Feb-22,2122/11,LGE,N,
10045861,CIPFA BUSINESS LTD,345,Financial Servs,Books & Periodicals,09-Dec-21,2122/11,LGE,Y,50%
10045637,BUILDBASE,296.1,Assets & Development,Repairs,31-Jan-22,2122/11,LGE,N,
10046148,IPSWICH BOROUGH COUNCIL,"258,350.75",Shared Revenues Partnership,Major Contracts,16-Feb-22,2122/11,LGE,N,
20027753,EDF ENERGY,128.26,Belle Vue House,Electricity,14-Feb-22,2122/11,LGE,N,
20027753,EDF ENERGY,905.4,C Parks General,Electricity,14-Feb-22,2122/11,LGE,N,
20027753,EDF ENERGY,3.94,Calais St Depot,Electricity,14-Feb-22,2122/11,LGE,N,
20027753,EDF ENERGY,"1,199.81",Chilton Depot,Electricity,14-Feb-22,2122/11,LGE,Y,50%
20027753,EDF ENERGY,471.81,Climate Change and Sustainabil,Electricity,14-Feb-22,2122/11,LGE,N,
20027753,EDF ENERGY,87.79,Community Safety-CCTV,Electricity,14-Feb-22,2122/11,LGE,N,
20027753,EDF ENERGY,16.42,Hadl Market,Electricity,14-Feb-22,2122/11,LGE,N,
20027753,EDF ENERGY,"4,239.39",Hadleigh Pool,Electricity,14-Feb-22,2122/11,LGE,N,
20027753,EDF ENERGY,10.78,Headquarters General,Electricity,14-Feb-22,2122/11,LGE,N,
20027753,EDF ENERGY,914.28,HQ Energy,Electricity,14-Feb-22,2122/11,LGE,N,
20027753,EDF ENERGY,"29,411.19",Kingfisher Leisure Centre,Electricity,14-Feb-22,2122/11,LGE,N,
20027753,EDF ENERGY,270.76,Public Conveniences,Electricity,14-Feb-22,2122/11,LGE,N,
20027753,EDF ENERGY,143.06,Sewage Treatment Works,Electricity,14-Feb-22,2122/11,LGE,N,
20027753,EDF ENERGY,"10,165.54",Sheltered Accommodation,Electricity,14-Feb-22,2122/11,LGE,N,
20027753,EDF ENERGY,193.23,SP Comm Alarms (Non-SH),Electricity,14-Feb-22,2122/11,LGE,N,
20027753,EDF ENERGY,544.35,Temporary Accommodation,Electricity,14-Feb-22,2122/11,LGE,N,
20027753,EDF ENERGY,"4,420.54",Tenancy Services,Electricity,14-Feb-22,2122/11,LGE,N,
20027753,EDF ENERGY,7.07,Wenham Depot,Electricity,14-Feb-22,2122/11,LGE,Y,50%
20027752,GPC BARCLAYS,"6,467.00",Current Assets,Barclaycard Control,16-Feb-22,2122/11,LGE,Y,13%
10045976,ALPHETON PARISH COUNCIL,300,Grants & Contrbns,Contributions & Donations,10-Feb-22,2122/11,SME,N,
10046020,ASSINGTON PARISH COUNCIL,500,Grants & Contrbns,Contributions & Donations,11-Feb-22,2122/11,SME,N,
10045911,BURES ST MARY PARISH COUNCIL,804,Grants & Contrbns,Contributions & Donations,08-Feb-22,2122/11,SME,N,
10045999,GLEMSFORD PARISH COUNCIL,"5,000.00",General/Supervision & Mgmt,Prof & Consultancy Fees,11-Feb-22,2122/11,SME,N,
10046211,GLEMSFORD PARISH COUNCIL,"8,393.05",S106 Open Spaces Expenditure,Grants,21-Feb-22,2122/11,SME,N,
10045659,GREAT CORNARD PARISH COUNCIL,"6,000.00",Grants & Contrbns,Contributions & Donations,01-Feb-22,2122/11,SME,N,
10045697,GREAT WALDINGFIELD BOWLS & SOCIAL CLUB,360,Grants & Contrbns,Contributions & Donations,02-Feb-22,2122/11,SME,N,
10045875,LAVENHAM PARISH COUNCIL,"39,394.40",CIL Funded REFCUS,Grants,07-Feb-22,2122/11,SME,N,
10046100,LAVENHAM PARISH COUNCIL,"46,899.97",CIL Funded REFCUS,Grants,15-Feb-22,2122/11,SME,N,
10045909,LITTLE CORNARD PARISH COUNCIL,750,Grants & Contrbns,Contributions & Donations,08-Feb-22,2122/11,SME,N,
10045663,LONG MELFORD PARISH COUNCIL,300,Grants & Contrbns,Contributions & Donations,01-Feb-22,2122/11,SME,N,
10045968,LONG MELFORD PARISH COUNCIL,300,Grants & Contrbns,Contributions & Donations,10-Feb-22,2122/11,SME,N,
10045969,LONG MELFORD PARISH COUNCIL,800,Grants & Contrbns,Contributions & Donations,10-Feb-22,2122/11,SME,N,
10045910,NEWTON PARISH COUNCIL,500,Grants & Contrbns,Contributions & Donations,08-Feb-22,2122/11,SME,N,
10045905,SUDBURY TOWN COUNCIL,525,Grants & Contrbns,Contributions & Donations,08-Feb-22,2122/11,SME,N,
10045311,SUFFOLK COUNTY COUNCIL,978.58,ICT,Contracted Services,17-Jan-22,2122/11,LGE,Y,50%
10045334,SUFFOLK COUNTY COUNCIL,"1,015.00",Land Chgs,Contracted Services,18-Jan-22,2122/11,LGE,N,
10045440,SUFFOLK COUNTY COUNCIL,425.03,ICT,Desktop Software,21-Jan-22,2122/11,LGE,Y,50%
10045516,SUFFOLK COUNTY COUNCIL,510,Pre App Charging,Highways  Consultancy,25-Jan-22,2122/11,LGE,N,
10045517,SUFFOLK COUNTY COUNCIL,420,Pre App Charging,Prof & Consultancy Fees,25-Jan-22,2122/11,LGE,N,
10045618,SUFFOLK COUNTY COUNCIL,"18,966.00",ICT,Computer Equpt Purchases,28-Jan-22,2122/11,LGE,Y,50%
10045782,SUFFOLK COUNTY COUNCIL,692.12,General Rechargeable Works,Misc Supplies & Services Costs,04-Feb-22,2122/11,LGE,N,
10045864,SUFFOLK COUNTY COUNCIL,441.04,ICT,Desktop Software,04-Feb-22,2122/11,LGE,Y,50%
10046149,SUFFOLK COUNTY COUNCIL,"8,089.00",Mand Disabled Facilities Grant,Contracted Services,16-Feb-22,2122/11,LGE,N,
10046150,SUFFOLK COUNTY COUNCIL,"1,000.00",Policy & Strategy (H & W),Contributions & Donations,03-Feb-22,2122/11,LGE,Y,50%
10046259,SUFFOLK COUNTY COUNCIL,"384,581.00",ICT-Hardware/Software Refresh,Computer Equpt Purchases,21-Feb-22,2122/11,LGE,Y,50%
10046298,SUFFOLK COUNTY COUNCIL,432.65,ICT,Desktop Software,23-Feb-22,2122/11,LGE,Y,50%
10045643,FENN WRIGHT LLP,"1,125.00",General/Supervision & Mgmt,Prof & Consultancy Fees,31-Jan-22,2122/11,SME,N,
10046201,ROYAL MAIL,706.96,Electoral Registration,Postage,21-Feb-22,2122/11,LGE,Y,100%
10045593,REED SPECIALIST RECRUITMENT LTD,745.88,Financial Servs,Agency Staff,21-Jan-22,2122/11,LGE,Y,50%
10045594,REED SPECIALIST RECRUITMENT LTD,904.41,Bus Imp (Corp),Agency Staff,21-Jan-22,2122/11,LGE,Y,50%
10045595,REED SPECIALIST RECRUITMENT LTD,858.03,Bus Imp (Corp),Agency Staff,21-Jan-22,2122/11,LGE,Y,50%
10045596,REED SPECIALIST RECRUITMENT LTD,904.41,Bus Imp (Corp),Agency Staff,21-Jan-22,2122/11,LGE,Y,50%
10045802,REED SPECIALIST RECRUITMENT LTD,696.15,Financial Servs,Agency Staff,28-Jan-22,2122/11,LGE,Y,50%
10045803,REED SPECIALIST RECRUITMENT LTD,881.22,Bus Imp (Corp),Agency Staff,28-Jan-22,2122/11,LGE,Y,50%
10045804,REED SPECIALIST RECRUITMENT LTD,858.03,Bus Imp (Corp),Agency Staff,28-Jan-22,2122/11,LGE,Y,50%
10045805,REED SPECIALIST RECRUITMENT LTD,742.08,Bus Imp (Corp),Agency Staff,28-Jan-22,2122/11,LGE,Y,50%
10046022,REED SPECIALIST RECRUITMENT LTD,745.88,Financial Servs,Agency Staff,11-Feb-22,2122/11,LGE,Y,50%
10046023,REED SPECIALIST RECRUITMENT LTD,858.03,Bus Imp (Corp),Agency Staff,11-Feb-22,2122/11,LGE,Y,50%
10046024,REED SPECIALIST RECRUITMENT LTD,742.08,Bus Imp (Corp),Agency Staff,11-Feb-22,2122/11,LGE,Y,50%
10046025,REED SPECIALIST RECRUITMENT LTD,892.82,Bus Imp (Corp),Agency Staff,11-Feb-22,2122/11,LGE,Y,50%
10046209,REED SPECIALIST RECRUITMENT LTD,507.2,Financial Servs,Agency Staff,11-Feb-22,2122/11,LGE,Y,50%
10046210,REED SPECIALIST RECRUITMENT LTD,858.03,Bus Imp (Corp),Agency Staff,11-Feb-22,2122/11,LGE,Y,50%
20027758,REED SPECIALIST RECRUITMENT LTD,730.49,Bus Imp (Corp),Agency Staff,14-Jan-22,2122/11,LGE,Y,50%
10046052,COPDOCK & WASHBROOK VILLAGE HALL,"2,500.00",Suffolk Community Restart Fund,Grants,14-Feb-22,2122/11,SME,N,
10045706,ZURICH MUNICIPAL,"1,835.11",Insurance Premiums,Premises Insurance,27-Jan-22,2122/11,LGE,N,
10045707,ZURICH MUNICIPAL,"7,603.18",Insurance Premiums,Miscellaneous Insurances,27-Jan-22,2122/11,LGE,N,
10045708,ZURICH MUNICIPAL,"102,482.31",Insurance Premiums,Premises Insurance,27-Jan-22,2122/11,LGE,N,
10045708,ZURICH MUNICIPAL,"24,899.53",Insurance Premiums,Vehicle/Lease Car Insurance,27-Jan-22,2122/11,LGE,N,
10045708,ZURICH MUNICIPAL,"135,121.57",Insurance Premiums,Employees Insurances,27-Jan-22,2122/11,LGE,N,
10045708,ZURICH MUNICIPAL,"6,895.11",Insurance Premiums,Miscellaneous Insurances,27-Jan-22,2122/11,LGE,N,
10046112,BT PAYMENT SERVICES,"5,065.27",ICT,Telephone Costs,04-Feb-22,2122/11,LGE,Y,50%
20027763,GAZPROM ENERGY,282.04,Belle Vue House,Gas,25-Feb-22,2122/11,SME,N,
20027763,GAZPROM ENERGY,68.55,HQ Energy,Gas,25-Feb-22,2122/11,SME,N,
20027763,GAZPROM ENERGY,"4,828.98",Sheltered Accommodation,Gas,25-Feb-22,2122/11,SME,N,
20027763,GAZPROM ENERGY,321.45,Temporary Accommodation,Gas,25-Feb-22,2122/11,SME,N,
10046134,SUDBURY & DISTRICT CAB,"26,750.00",Grants & Contrbns,Grants,16-Feb-22,2122/11,SME,N,
10045904,GREENWAYS COUNTRYSIDE PROJECT,"5,700.00",Open Spaces,Horticultural Purchases,02-Feb-22,2122/11,SME,N,
10045346,WHYBROW PROPERTY SOLUTIONS LTD,"5,457.33",Estate Imps/parking areas,Improvements,19-Jan-22,2122/11,SME,N,
10045537,WHYBROW PROPERTY SOLUTIONS LTD,"4,334.02",Major Imps,Improvements,15-Dec-21,2122/11,SME,N,
10045555,WHYBROW PROPERTY SOLUTIONS LTD,756.43,Building Services,Prof & Consultancy Fees,26-Jan-22,2122/11,SME,N,
10045646,WHYBROW PROPERTY SOLUTIONS LTD,"8,822.70",Kitchens/Bathrooms,Improvements,24-Nov-21,2122/11,SME,N,
10045647,WHYBROW PROPERTY SOLUTIONS LTD,"9,263.33",Kitchens/Bathrooms,Improvements,15-Dec-21,2122/11,SME,N,
10045655,WHYBROW PROPERTY SOLUTIONS LTD,"8,566.52",Kitchens/Bathrooms,Improvements,24-Nov-21,2122/11,SME,N,
10045665,WHYBROW PROPERTY SOLUTIONS LTD,"1,796.00",Building Services,Repairs,31-Jan-22,2122/11,SME,N,
10045702,WHYBROW PROPERTY SOLUTIONS LTD,"9,933.00",Council House Adaptions,Improvements,31-Jan-22,2122/11,SME,N,
10045715,WHYBROW PROPERTY SOLUTIONS LTD,"5,000.00",Building Services,Repairs,03-Feb-22,2122/11,SME,N,
10045773,WHYBROW PROPERTY SOLUTIONS LTD,"1,194.43",Sheltered Accommodation,Repairs,31-Jan-22,2122/11,SME,N,
10045774,WHYBROW PROPERTY SOLUTIONS LTD,643,Building Services,BMBS Repairs Work,31-Jan-22,2122/11,SME,N,
10045889,WHYBROW PROPERTY SOLUTIONS LTD,"7,000.00",Building Services,Repairs,07-Feb-22,2122/11,SME,N,
10046117,WHYBROW PROPERTY SOLUTIONS LTD,"5,501.09",Building Services,Repairs,14-Feb-22,2122/11,SME,N,
10046118,WHYBROW PROPERTY SOLUTIONS LTD,"11,767.93",Building Services,Repairs,14-Feb-22,2122/11,SME,N,
10046135,WHYBROW PROPERTY SOLUTIONS LTD,"7,077.10",Kitchens/Bathrooms,Improvements,11-Nov-21,2122/11,SME,N,
10045507,L A C CLEANING CONTRACTORS LIMITED,687.98,Wenham Depot TDP,General Cleaning,24-Jan-22,2122/11,SME,Y,50%
10045515,L A C CLEANING CONTRACTORS LIMITED,"4,890.50",Building Services,Repairs,25-Jan-22,2122/11,SME,N,
10045886,L A C CLEANING CONTRACTORS LIMITED,257.5,Building Services,Repairs,07-Feb-22,2122/11,SME,N,
10046204,L A C CLEANING CONTRACTORS LIMITED,633.33,Sheltered Accommodation,General Cleaning,21-Feb-22,2122/11,SME,N,
10045865,ARMSTRONG YORK ASBESTOS ENVIRONMENTAL,"7,448.52",Asbestos Survey & Reinspection,Prof & Consultancy Fees,31-Jan-22,2122/11,SME,N,
10045993,TRADITION (UK) LTD,"3,471.23",Treasury Management,Prof & Consultancy Fees,31-Jan-22,2122/11,LGE,N,
10046144,WEST SUFFOLK COLLEGE,"3,000.00",Organisational Devt,Post-Entry Training,02-Dec-21,2122/11,LGE,Y,50%
10046017,CAPEL COMMUNITY TRUST,"2,000.00",Grants & Contrbns,Contributions & Donations,11-Feb-22,2122/11,SME,N,
10045640,OPUS PEOPLE SOLUTIONS LTD,979.05,Current Liabilities,Agency Staff Holding A/C,27-Jan-22,2122/11,SME,N,
10045882,OPUS PEOPLE SOLUTIONS LTD,938.72,Current Liabilities,Agency Staff Holding A/C,03-Feb-22,2122/11,SME,N,
10046044,OPUS PEOPLE SOLUTIONS LTD,889.25,Current Liabilities,Agency Staff Holding A/C,10-Feb-22,2122/11,SME,N,
10046230,OPUS PEOPLE SOLUTIONS LTD,"1,036.32",Current Liabilities,Agency Staff Holding A/C,17-Feb-22,2122/11,SME,N,
10045600,ECOSYSTEMS TREE & GROUNDS CARE,"1,070.00",Public Tree Programme,Tree felling/maintenance,30-Jan-22,2122/11,SME,N,
10045601,ECOSYSTEMS TREE & GROUNDS CARE,575,Public Tree Programme,Tree felling/maintenance,30-Jan-22,2122/11,SME,N,
10045602,ECOSYSTEMS TREE & GROUNDS CARE,725,Amenity Areas,Tree felling/maintenance,30-Jan-22,2122/11,SME,N,
10045671,ECOSYSTEMS TREE & GROUNDS CARE,535,Sheltered Accommodation,Tree felling/maintenance,30-Jan-22,2122/11,SME,N,
10045672,ECOSYSTEMS TREE & GROUNDS CARE,"1,835.00",Amenity Areas,Tree felling/maintenance,30-Jan-22,2122/11,SME,N,
10045673,ECOSYSTEMS TREE & GROUNDS CARE,975,Amenity Areas,Tree felling/maintenance,30-Jan-22,2122/11,SME,N,
10045674,ECOSYSTEMS TREE & GROUNDS CARE,535,Public Tree Programme,Tree felling/maintenance,30-Jan-22,2122/11,SME,N,
10045675,ECOSYSTEMS TREE & GROUNDS CARE,"1,070.00",Public Tree Programme,Tree felling/maintenance,30-Jan-22,2122/11,SME,N,
10045678,ECOSYSTEMS TREE & GROUNDS CARE,325,Amenity Areas,Tree felling/maintenance,30-Jan-22,2122/11,SME,N,
10045679,ECOSYSTEMS TREE & GROUNDS CARE,275,Public Tree Programme,Tree felling/maintenance,30-Jan-22,2122/11,SME,N,
10045680,ECOSYSTEMS TREE & GROUNDS CARE,535,Open Spaces,Tree felling/maintenance,30-Jan-22,2122/11,SME,N,
10045681,ECOSYSTEMS TREE & GROUNDS CARE,535,Public Tree Programme,Tree felling/maintenance,30-Jan-22,2122/11,SME,N,
10045682,ECOSYSTEMS TREE & GROUNDS CARE,"1,550.00",Public Tree Programme,Tree felling/maintenance,30-Jan-22,2122/11,SME,N,
10045808,ECOSYSTEMS TREE & GROUNDS CARE,535,Public Tree Programme,Tree felling/maintenance,05-Feb-22,2122/11,SME,N,
10045809,ECOSYSTEMS TREE & GROUNDS CARE,"1,070.00",Public Tree Programme,Tree felling/maintenance,05-Feb-22,2122/11,SME,N,
10045810,ECOSYSTEMS TREE & GROUNDS CARE,295,Public Tree Programme,Tree felling/maintenance,05-Feb-22,2122/11,SME,N,
10045811,ECOSYSTEMS TREE & GROUNDS CARE,745,Tenancy Services,Grounds & Site Maintenance,05-Feb-22,2122/11,SME,N,
10045812,ECOSYSTEMS TREE & GROUNDS CARE,675,Amenity Areas,Tree felling/maintenance,05-Feb-22,2122/11,SME,N,
10045814,ECOSYSTEMS TREE & GROUNDS CARE,575,Amenity Areas,Tree felling/maintenance,05-Feb-22,2122/11,SME,N,
10045815,ECOSYSTEMS TREE & GROUNDS CARE,300,Amenity Areas,Tree felling/maintenance,05-Feb-22,2122/11,SME,N,
10045816,ECOSYSTEMS TREE & GROUNDS CARE,"1,050.00",Public Tree Programme,Tree felling/maintenance,05-Feb-22,2122/11,SME,N,
10045817,ECOSYSTEMS TREE & GROUNDS CARE,800,Public Tree Programme,Tree felling/maintenance,05-Feb-22,2122/11,SME,N,
10045821,ECOSYSTEMS TREE & GROUNDS CARE,350,Amenity Areas,Tree felling/maintenance,05-Feb-22,2122/11,SME,N,
10045828,ECOSYSTEMS TREE & GROUNDS CARE,325,Public Tree Programme,Tree felling/maintenance,05-Feb-22,2122/11,SME,N,
10045833,ECOSYSTEMS TREE & GROUNDS CARE,535,Public Tree Programme,Tree felling/maintenance,05-Feb-22,2122/11,SME,N,
10045838,ECOSYSTEMS TREE & GROUNDS CARE,400,Public Tree Programme,Tree felling/maintenance,05-Feb-22,2122/11,SME,N,
10045840,ECOSYSTEMS TREE & GROUNDS CARE,535,Public Tree Programme,Tree felling/maintenance,05-Feb-22,2122/11,SME,N,
10045841,ECOSYSTEMS TREE & GROUNDS CARE,535,Public Tree Programme,Tree felling/maintenance,05-Feb-22,2122/11,SME,N,
10045842,ECOSYSTEMS TREE & GROUNDS CARE,400,Public Tree Programme,Tree felling/maintenance,05-Feb-22,2122/11,SME,N,
10045843,ECOSYSTEMS TREE & GROUNDS CARE,535,Public Tree Programme,Tree felling/maintenance,05-Feb-22,2122/11,SME,N,
10045844,ECOSYSTEMS TREE & GROUNDS CARE,675,Amenity Areas,Tree felling/maintenance,05-Feb-22,2122/11,SME,N,
10045845,ECOSYSTEMS TREE & GROUNDS CARE,535,Amenity Areas,Tree felling/maintenance,05-Feb-22,2122/11,SME,N,
10045847,ECOSYSTEMS TREE & GROUNDS CARE,"2,200.00",Public Tree Programme,Tree felling/maintenance,06-Feb-22,2122/11,SME,N,
10045848,ECOSYSTEMS TREE & GROUNDS CARE,"2,300.00",Amenity Areas,Tree felling/maintenance,06-Feb-22,2122/11,SME,N,
10045849,ECOSYSTEMS TREE & GROUNDS CARE,800,Public Tree Programme,Tree felling/maintenance,06-Feb-22,2122/11,SME,N,
10046010,ECOSYSTEMS TREE & GROUNDS CARE,535,Public Tree Programme,Tree felling/maintenance,11-Feb-22,2122/11,SME,N,
10046012,ECOSYSTEMS TREE & GROUNDS CARE,"2,025.00",Amenity Areas,Tree felling/maintenance,11-Feb-22,2122/11,SME,N,
10046026,ECOSYSTEMS TREE & GROUNDS CARE,935,Public Tree Programme,Tree felling/maintenance,12-Feb-22,2122/11,SME,N,
10046027,ECOSYSTEMS TREE & GROUNDS CARE,"1,100.00",Public Tree Programme,Tree felling/maintenance,12-Feb-22,2122/11,SME,N,
10046028,ECOSYSTEMS TREE & GROUNDS CARE,300,Public Tree Programme,Tree felling/maintenance,12-Feb-22,2122/11,SME,N,
10046029,ECOSYSTEMS TREE & GROUNDS CARE,350,Public Tree Programme,Tree felling/maintenance,12-Feb-22,2122/11,SME,N,
10046030,ECOSYSTEMS TREE & GROUNDS CARE,275,Public Tree Programme,Tree felling/maintenance,12-Feb-22,2122/11,SME,N,
10046093,ECOSYSTEMS TREE & GROUNDS CARE,535,Public Tree Programme,Tree felling/maintenance,14-Feb-22,2122/11,SME,N,
10046097,ECOSYSTEMS TREE & GROUNDS CARE,575,Amenity Areas,Tree felling/maintenance,14-Feb-22,2122/11,SME,N,
10046121,ECOSYSTEMS TREE & GROUNDS CARE,535,Tenancy Services,Tree felling/maintenance,15-Feb-22,2122/11,SME,N,
10046141,ECOSYSTEMS TREE & GROUNDS CARE,375,Public Tree Programme,Tree felling/maintenance,16-Feb-22,2122/11,SME,N,
10045343,CORNERSTONE BARRISTERS,"11,375.00",Environmental Protection,Prof & Consultancy Fees,13-Jan-22,2122/11,SME,N,
10045985,CORNERSTONE BARRISTERS,450,Devt Management -Applications,Legal Expenses,27-Oct-21,2122/11,SME,N,
10045572,VERTAS GROUP LTD,"4,173.58",Central Postal Serv,Postage,28-Jan-22,2122/11,SME,Y,50%
10045434,COLLINS SKIP HIRE,541.66,Building Services,Waste Disposal,24-Jan-22,2122/11,SME,Y,50%
10045605,COLLINS SKIP HIRE,270.83,Building Services,Waste Disposal,31-Jan-22,2122/11,SME,Y,50%
10045917,COLLINS SKIP HIRE,545.83,Building Services,Waste Disposal,07-Feb-22,2122/11,SME,Y,50%
10045684,POSTURITE LTD,403.51,Health & Safety,"Equipment, Tools & Materials",01-Feb-22,2122/11,SME,Y,50%
10046122,POSTURITE LTD,267.71,Health & Safety,Furniture,15-Feb-22,2122/11,SME,Y,50%
10045704,4PRINCIPLES CONSTRUCTION LTD,"6,221.85",Mand Disabled Facilities Grant,Grants,02-Feb-22,2122/11,SME,N,
10046292,MATT ALLMAN LTD T/A MOVEITCLEARITFINDIT,783.33,Homeless Prevention Fund,Removal Expenses,20-Feb-22,2122/11,SME,N,
20027732,FROST AND PARTNERS,500,Guaranteed Rent Scheme,Rent Payable,31-Jan-22,2122/11,SME,N,
20027732,FROST AND PARTNERS,250,Guaranteed Rent Scheme,Misc Supplies & Services Costs,31-Jan-22,2122/11,SME,N,
10045718,ADVANCE SUPPLIES,384.72,Sheltered Accommodation,Cleaning Materials,01-Feb-22,2122/11,SME,N,
10046041,ADVANCE SUPPLIES,311.76,Sheltered Accommodation,Cleaning Materials,10-Feb-22,2122/11,SME,N,
10046103,PRESTON ST MARY VILLAGE HALL COMMITTEE,"4,718.12",Comm Devt Grants,Grants,15-Feb-22,2122/11,SME,N,
10046254,PRESTON ST MARY VILLAGE HALL COMMITTEE,"10,000.00",CIL Funded REFCUS,Grants,22-Feb-22,2122/11,SME,N,
10045683,HAYS SPECIALIST RECRUITMENT LTD,"5,802.12",HRA Accountancy,Agency Staff,01-Feb-22,2122/11,LGE,N,
10045716,HAYS SPECIALIST RECRUITMENT LTD,"1,890.00",Financial Servs,Agency Staff,02-Feb-22,2122/11,LGE,Y,50%
10045989,HAYS SPECIALIST RECRUITMENT LTD,973.4,HRA Accountancy,Agency Staff,10-Feb-22,2122/11,LGE,Y,50%
10045990,HAYS SPECIALIST RECRUITMENT LTD,942,HRA Accountancy,Agency Staff,10-Feb-22,2122/11,LGE,Y,50%
10045991,HAYS SPECIALIST RECRUITMENT LTD,"1,036.20",HRA Accountancy,Agency Staff,10-Feb-22,2122/11,LGE,Y,50%
10045992,HAYS SPECIALIST RECRUITMENT LTD,753.6,HRA Accountancy,Agency Staff,10-Feb-22,2122/11,LGE,Y,50%
10046146,HAYS SPECIALIST RECRUITMENT LTD,"1,890.00",Financial Servs,Agency Staff,16-Feb-22,2122/11,LGE,Y,50%
10046245,HAYS SPECIALIST RECRUITMENT LTD,"1,890.00",Financial Servs,Agency Staff,21-Feb-22,2122/11,LGE,Y,50%
10046293,HAYS SPECIALIST RECRUITMENT LTD,"1,512.00",Financial Servs,Agency Staff,23-Feb-22,2122/11,LGE,Y,50%
10045712,RICHARD UTTING ASSOCIATES LLP,"1,889.18",Waldingfield Rd S106 Andersons,Prof & Consultancy Fees,31-Jan-22,2122/11,SME,N,
10046139,RICHARD UTTING ASSOCIATES LLP,"2,890.00",Bourne Hill Wherstead S106 acq,Prof & Consultancy Fees,14-Feb-22,2122/11,SME,N,
10045491,PUBLIC SEWER SERVICES,"1,000.00",Public Conveniences,Repairs,08-Oct-21,2122/11,SME,N,
10045563,PUBLIC SEWER SERVICES,300,Building Services,Repairs,27-Jan-22,2122/11,SME,N,
10045630,PRIVATE LANDLORD,650,Guaranteed Rent Scheme,Rent Payable,01-Feb-22,2122/11,SME,N,
10045761,THE STOWMARKET GLASS COMPANY LTD,264.76,Building Services,Repairs,20-Jan-22,2122/11,SME,N,
10045881,ASPECT CONTRACTS LTD,"5,435.00",Asbestos,Improvements,07-Feb-22,2122/11,LGE,N,
10046113,THE OFFSHOOT FOUNDATION,"2,119.00",Suffolk Community Restart Fund,Grants,15-Feb-22,2122/11,SME,N,
20027739,RIX PETROLEUM (EAST ANGLIA) LTD,"2,482.46",Tenancy Services,Heating Oil,02-Feb-22,2122/11,SME,N,
20027739,RIX PETROLEUM (EAST ANGLIA) LTD,70,Wenham Depot,Heating Oil,02-Feb-22,2122/11,SME,Y,50%
10045658,NEIL ANDREW OFFICE SOLUTIONS LTD,"2,303.00",Kingfisher Leisure Centre,Repairs,12-Jan-22,2122/11,SME,N,
10045879,KNOWLES ASSOCIATES TFM LTD,"3,042.00",Building Services,Plant & Vehicle - Other costs,28-Jan-22,2122/11,SME,N,
10045912,KNOWLES ASSOCIATES TFM LTD,"1,042.00",Public Realm TransitionProject,"Equipment, Tools & Materials",04-Feb-22,2122/11,SME,N,
10045913,KNOWLES ASSOCIATES TFM LTD,"1,042.00",Public Realm TransitionProject,"Equipment, Tools & Materials",28-Jan-22,2122/11,SME,N,
10046236,KNOWLES ASSOCIATES TFM LTD,"105,515.12",Vehicle and Plant Renewals,Plant & Vehicle - Purchase,21-Feb-22,2122/11,SME,N,
10046158,NORTHUMBRIAN WATER LTD,63.05,Chilton Depot,Legionella Testing,17-Feb-22,2122/11,LGE,Y,50%
10046158,NORTHUMBRIAN WATER LTD,34.15,HQ Energy,Legionella Testing,17-Feb-22,2122/11,LGE,N,
10046158,NORTHUMBRIAN WATER LTD,202.31,Public Conveniences,Legionella Testing,17-Feb-22,2122/11,LGE,N,
10046158,NORTHUMBRIAN WATER LTD,28.9,Responsive maintenance,Legionella Testing,17-Feb-22,2122/11,LGE,N,
10046158,NORTHUMBRIAN WATER LTD,266.38,Sheltered Accommodation,Legionella Testing,17-Feb-22,2122/11,LGE,N,
10046158,NORTHUMBRIAN WATER LTD,91.95,Temporary Accommodation,Legionella Testing,17-Feb-22,2122/11,LGE,N,
10046158,NORTHUMBRIAN WATER LTD,18.9,Wenham Depot,Legionella Testing,17-Feb-22,2122/11,LGE,Y,50%
10045175,STORETEC SERVICES LTD,548.88,ICT,"Equipment, Tools & Materials",31-Dec-21,2122/11,SME,Y,50%
20027760,SOLO HOUSING (EAST ANGLIA) LTD,"2,000.00",Homeless Prevention Fund,Misc Supplies & Services Costs,23-Feb-22,2122/11,SME,N,
10045687,AIRMAX REMOTE LTD,459.24,Building Services,Plant & Vehicle - Other costs,31-Jan-22,2122/11,SME,Y,50%
20027756,CABOODLE TECHNOLGY LIMITED,636,Organisational Devt,Misc Employee Costs,24-Jan-22,2122/11,SME,N,
10045338,ENGIE REGENERATION LTD,"64,812.59",Major Imps,Major Contracts,19-Jan-22,2122/11,LGE,N,
10045376,ENGIE REGENERATION LTD,"2,447.20",Major Imps,Major Contracts,20-Jan-22,2122/11,LGE,N,
10045746,SKYGUARD LTD T/A PEOPLESAFE,"23,730.00",Health & Safety,"Equipment, Tools & Materials",26-Jan-22,2122/11,SME,Y,50%
10046142,SKYGUARD LTD T/A PEOPLESAFE,360,Health & Safety,"Equipment, Tools & Materials",03-Nov-21,2122/11,SME,Y,50%
10045652,JOHN FORD GROUP LTD,"6,230.65",Mand Disabled Facilities Grant,Grants,01-Feb-22,2122/11,SME,N,
10045638,CC2I LIMITED,"1,205.00",Info Mgmt,Misc Supplies & Services Costs,01-Feb-22,2122/11,SME,Y,50%
10046250,SUDBURYS,440,Guaranteed Rent Scheme,Rent Payable,22-Feb-22,2122/11,SME,N,
10045853,WILLIAM H BROWN ESTATE AGENTS - SUDBURY,725,Guaranteed Rent Scheme,Rent Payable,07-Feb-22,2122/11,SME,N,
10045998,BELLWAY HOMES LIMITED (ESSEX DIVISION),"165,783.67",Bourne Hill Wherstead S106 acq,Prof & Consultancy Fees,04-Feb-22,2122/11,LGE,N,
10045949,EARTH ANCHORS LTD,"1,065.00",RHSSF,"Equipment, Tools & Materials",09-Feb-22,2122/11,SME,N,
10045735,A C LEIGH (NORWICH) LTD,316.88,Building Services,"Equipment, Tools & Materials",28-Jan-22,2122/11,SME,N,
10045693,DAVID STAGG & ASSOCIATES LTD T/A DSA ELE,"8,385.12",Rewiring,Major Contracts,28-Jan-22,2122/11,SME,N,
10045694,DAVID STAGG & ASSOCIATES LTD T/A DSA ELE,"4,114.26",Rewiring,Major Contracts,28-Jan-22,2122/11,SME,N,
10045956,3 POINT PROPERTY MANAGEMENT LTD,550,Guaranteed Rent Scheme,Rent Payable,10-Feb-22,2122/11,SME,N,
10046234,FLAGSHIP HOUSING GROUP LTD-RENT ACCOUNT,838.17,Homeless Prevention Fund,Misc Supplies & Services Costs,21-Feb-22,2122/11,LGE,N,
10045524,NORSE EASTERN LTD,"4,250.00",Mand Disabled Facilities Grant,Grants,26-Jan-22,2122/11,LGE,N,
10045651,DG ACCESSIBLE DESIGNS,"1,046.75",Mand Disabled Facilities Grant,Grants,01-Feb-22,2122/11,SME,N,
10046152,DG ACCESSIBLE DESIGNS,"1,533.53",Mand Disabled Facilities Grant,Grants,14-Jan-22,2122/11,SME,N,
10045953,HUGHES TRADE,467.6,Homelessness Private Sector,Furniture,09-Feb-22,2122/11,LGE,N,
10045621,APTL ENTERPRISES LTD,"10,210.00",PV Panels,Repairs,31-Jan-22,2122/11,SME,N,
10045622,APTL ENTERPRISES LTD,"3,652.00",PV Panels,Contracted Services,31-Jan-22,2122/11,SME,Y,44%
10045623,APTL ENTERPRISES LTD,"4,648.00",PV Panels,Contracted Services,31-Jan-22,2122/11,SME,Y,44%
10045580,ANGLIA COMMERCIAL FLOORING LTD,772.35,Building Services,Repairs,25-Jan-22,2122/11,SME,N,
10045664,LONG MELFORD COMMUNITY SPORTS TRUST,300,Grants & Contrbns,Contributions & Donations,01-Feb-22,2122/11,SME,N,
10045786,FLOWBIRD SMART CITY UK LIMITED,263,Hadl C Parks,Repairs,02-Feb-22,2122/11,SME,N,
20027746,FLOWBIRD SMART CITY UK LIMITED,385,Pin Mill C Park,Contracted Services,14-Feb-22,2122/11,SME,N,
20027746,FLOWBIRD SMART CITY UK LIMITED,770,Hadl C Parks,Contracted Services,14-Feb-22,2122/11,SME,N,
20027746,FLOWBIRD SMART CITY UK LIMITED,"3,080.00",Sudb C Parks,Contracted Services,14-Feb-22,2122/11,SME,N,
20027754,ANGLIAN WATER BUS (NAT) LTD T/A WAVE,"-1,725.94",Belle Vue House,Water Rates - Metered,12-Feb-22,2122/11,LGE,N,
20027754,ANGLIAN WATER BUS (NAT) LTD T/A WAVE,123.18,C Parks General,Water Rates - Metered,12-Feb-22,2122/11,LGE,N,
20027754,ANGLIAN WATER BUS (NAT) LTD T/A WAVE,677.86,Chilton Depot,Water Rates - Metered,12-Feb-22,2122/11,LGE,Y,50%
20027754,ANGLIAN WATER BUS (NAT) LTD T/A WAVE,4.06,Friars Meadow Sudb,Water Rates - Metered,12-Feb-22,2122/11,LGE,N,
20027754,ANGLIAN WATER BUS (NAT) LTD T/A WAVE,40.07,General Rechargeable Works,Misc Supplies & Services Costs,12-Feb-22,2122/11,LGE,N,
20027754,ANGLIAN WATER BUS (NAT) LTD T/A WAVE,53.79,HQ Energy,Water Rates - Metered,12-Feb-22,2122/11,LGE,N,
20027754,ANGLIAN WATER BUS (NAT) LTD T/A WAVE,698.69,Public Conveniences,Water Rates - Metered,12-Feb-22,2122/11,LGE,N,
20027754,ANGLIAN WATER BUS (NAT) LTD T/A WAVE,"2,094.87",Sheltered Accommodation,Water Rates - Metered,12-Feb-22,2122/11,LGE,N,
20027754,ANGLIAN WATER BUS (NAT) LTD T/A WAVE,120.9,Temporary Accommodation,Water Rates - Metered,12-Feb-22,2122/11,LGE,N,
20027754,ANGLIAN WATER BUS (NAT) LTD T/A WAVE,240.08,Tenancy Services,Water Rates - Metered,12-Feb-22,2122/11,LGE,N,
10045186,THE SLEEP PEOPLE LTD,"3,956.00",Temporary Accommodation,Furniture,02-Dec-21,2122/11,SME,N,
20027736,IMSERV EUROPE LTD,413.82,Wenham Depot,Electricity,25-Jan-22,2122/11,LGE,Y,50%
10045642,STUDLEY CAPITAL LIMITED,"3,600.00","BRRP-Hamilton,Boreham&BelleVue",Prof & Consultancy Fees,01-Feb-22,2122/11,ST,N,
10045533,GREENACRE RECRUITMENT LTD,"3,100.00",Building Services,Agency Staff,26-Jan-22,2122/11,SME,Y,50%
10045713,GREENACRE RECRUITMENT LTD,"3,100.00",Building Services,Agency Staff,02-Feb-22,2122/11,SME,Y,50%
10045948,GREENACRE RECRUITMENT LTD,"2,480.00",Building Services,Agency Staff,09-Feb-22,2122/11,SME,Y,50%
10046136,GREENACRE RECRUITMENT LTD,"3,100.00",Building Services,Agency Staff,16-Feb-22,2122/11,SME,Y,50%
10045959,CROSS MEDIA PRINT& DIGITAL SOLUTIONS LTD,"1,052.57",Building Services,Commercial Printing,09-Feb-22,2122/11,SME,Y,50%
10045908,STUTTON COMMUNITY ASSOCIATION,"1,000.00",Grants & Contrbns,Contributions & Donations,09-Feb-22,2122/11,SME,N,
10045656,TIAA LTD,"4,275.50",Internal Audit,Contracted Services,01-Feb-22,2122/11,SME,Y,50%
10046235,REEFER PROPERTIES LTD,695,Guaranteed Rent Scheme,Rent Payable,21-Feb-22,2122/11,SME,N,
10046102,HADLEIGH FOODBANK,"1,000.00",Grants & Contrbns,Grants,15-Feb-22,2122/11,SME,N,
10045710,WADDINGTON BROWN LTD,750.6,Organisational Devt,Agency Staff,31-Jan-22,2122/11,SME,Y,50%
10045945,WADDINGTON BROWN LTD,688.05,Organisational Devt,Agency Staff,07-Feb-22,2122/11,SME,Y,50%
10046124,WADDINGTON BROWN LTD,750.6,Organisational Devt,Agency Staff,14-Feb-22,2122/11,SME,Y,50%
10046276,WADDINGTON BROWN LTD,750.6,Organisational Devt,Agency Staff,23-Feb-22,2122/11,SME,Y,50%
10045626,LEE SMITHS SCRAP METALS LTD,350,Abandoned Vehicles,"Collection,Disp & Enf",31-Jan-22,2122/11,SME,N,
10046115,SUDBURY (SUFFOLK) & DIST CRICKET CLB CIC,"1,570.00",Suffolk Community Restart Fund,Grants,15-Feb-22,2122/11,SME,N,
10045628,PRIVATE LANDLORD,490,Guaranteed Rent Scheme,Rent Payable,01-Feb-22,2122/11,SME,N,
10046255,PRIVATE LANDLORD,675,Guaranteed Rent Scheme,Rent Payable,22-Feb-22,2122/11,ST,N,
10046253,PRIVATE LANDLORD,650,Guaranteed Rent Scheme,Rent Payable,22-Feb-22,2122/11,SME,N,
10045686,NOVUS PROPERTY SOLUTIONS LTD,"23,470.00",Sheltered Units-Gen.Imp,Improvements,31-Jan-22,2122/11,LGE,N,
10046247,PRIVATE LANDLORD,"1,198.00",Guaranteed Rent Scheme,Rent Payable,22-Feb-22,2122/11,ST,N,
10045304,PLUG-N-GO-LIMITED,175.36,Environmental Protection,Contracted Services,01-Jan-22,2122/11,SME,N,
10045304,PLUG-N-GO-LIMITED,237.11,Climate Change and Sustainabil,Misc Supplies & Services Costs,01-Jan-22,2122/11,SME,N,
10046049,CAPITA BUSINESS SERVICES LTD (PAY360),"3,822.66",Bank Chgs,Bank Charges,14-Feb-22,2122/11,LGE,N,
10046223,SEQUENCE UK LTD (WILLIAM H BROWN),700,Guaranteed Rent Scheme,Rent Payable,21-Feb-22,2122/11,LGE,N,
10046252,PRIVATE LANDLORD,550,Guaranteed Rent Scheme,Rent Payable,22-Feb-22,2122/11,ST,N,
20027731,PRIVATE LANDLORD,550,Guaranteed Rent Scheme,Rent Payable,31-Jan-22,2122/11,ST,N,
10046256,PRIVATE LANDLORD,700,Guaranteed Rent Scheme,Rent Payable,22-Feb-22,2122/11,ST,N,
10045631,PRIVATE LANDLORD,490,Guaranteed Rent Scheme,Rent Payable,01-Feb-22,2122/11,SME,N,
10045557,SUFFOLK DOORS & WINDOWS LTD,"4,300.00",Roofing,Improvements,24-Jan-22,2122/11,SME,N,
10045660,BRANTHAM BUGLE,750,Grants & Contrbns,Contributions & Donations,01-Feb-22,2122/11,SME,N,
10045855,PRIVATE LANDLORD,786.5,Guaranteed Rent Scheme,Rent Payable,07-Feb-22,2122/11,ST,N,
10045957,PRIVATE LANDLORD,650,Guaranteed Rent Scheme,Rent Payable,10-Feb-22,2122/11,ST,N,
10046197,COUNTRYSTYLE RECYCLING LTD,"5,330.03",Bring Sites,Contracted Services,18-Feb-22,2122/11,SME,N,
10045662,ANDERSON DESIGN & BUILD LIMITED,"148,216.54",Waldingfield Rd S106 Andersons,Prof & Consultancy Fees,26-Jan-22,2122/11,SME,N,
10045625,DGL QUALITY MANAGEMENT LTD,560,"11-12 Ipswich, Brantham",Prof & Consultancy Fees,31-Jan-22,2122/11,SME,N,
20027742,PRIVATE LANDLORD,650,Guaranteed Rent Scheme,Rent Payable,11-Feb-22,2122/11,ST,N,
10045854,PRIVATE LANDLORD,800,Guaranteed Rent Scheme,Rent Payable,07-Feb-22,2122/11,SME,N,
10045486,ARAN INSULATION LTD,"3,144.43",Insulation Imps,Improvements,24-Jan-22,2122/11,SME,N,
10045488,ARAN INSULATION LTD,"1,700.84",Insulation Imps,Improvements,25-Jan-22,2122/11,SME,N,
10045719,ARAN INSULATION LTD,983.01,Insulation Imps,Improvements,03-Feb-22,2122/11,SME,N,
10045772,ARAN INSULATION LTD,"139,162.72",Insulation Imps,Major Contracts,03-Feb-22,2122/11,SME,N,
10046301,ARAN INSULATION LTD,"1,112.12",Renovation/Home Repair Grants,Grants,24-Feb-22,2122/11,SME,N,
10046320,ARAN INSULATION LTD,"1,387.95",Renovation/Home Repair Grants,Grants,25-Feb-22,2122/11,SME,N,
10046321,ARAN INSULATION LTD,"3,783.32",Renovation/Home Repair Grants,Grants,25-Feb-22,2122/11,SME,N,
10046325,ARAN INSULATION LTD,"1,139.90",Renovation/Home Repair Grants,Grants,25-Feb-22,2122/11,SME,N,
10045819,CIPFA (COURSES),720,Financial Servs,Books & Periodicals,25-Jan-22,2122/11,LGE,Y,50%
10045947,CIPFA (COURSES),555,Financial Servs,Books & Periodicals,08-Feb-22,2122/11,LGE,Y,50%
10046228,PRIVATE LANDLORD,550,Guaranteed Rent Scheme,Rent Payable,21-Feb-22,2122/11,ST,N,
10046229,PRIVATE LANDLORD,550,Guaranteed Rent Scheme,Rent Payable,21-Feb-22,2122/11,ST,N,
10045780,IAN BOOTH CONSULTANT ENGINEER LTD,280,Roads and Paths,Improvements,03-Feb-22,2122/11,SME,Y,50%
10046140,RIGHTMOVE GROUP LTD,541.94,"Melford Rd, Lavenham S106",Prof & Consultancy Fees,31-Dec-21,2122/11,LGE,N,
10045692,NWES PROPERTY SERVICES LTD,620,Major Imps,Rent Payable,01-Feb-22,2122/11,SME,N,
10045632,PRIVATE LANDLORD,"1,200.00",Guaranteed Rent Scheme,Rent Payable,01-Feb-22,2122/11,SME,N,
10045629,PRIVATE LANDLORD,550,Guaranteed Rent Scheme,Rent Payable,01-Feb-22,2122/11,ST,N,
10045897,POLYSOLAR LTD,"118,897.21",Public Sector Decarbonisation,Contracted Services,21-Dec-21,2122/11,SME,N,
10045645,IPSERV LTD,608.05,Communications,Commercial Printing,01-Feb-22,2122/11,SME,N,
10045645,IPSERV LTD,195.48,Central Printing,Commercial Printing,01-Feb-22,2122/11,SME,N,
10045896,BOND TURNER,"1,250.00",Building Services,Payments to Tenants,08-Feb-22,2122/11,SME,N,
10045455,AGENTS MUTUAL LTD,645,"Angel Court, Hadleigh",Prof & Consultancy Fees,31-Dec-21,2122/11,SME,N,
10046123,AGENTS MUTUAL LTD,645,"Angel Court, Hadleigh",Prof & Consultancy Fees,31-Jan-22,2122/11,SME,N,
10045450,EAST BERGHOLT TENNIS CLUB,"8,000.00",Comm Devt Grants,Grants,24-Jan-22,2122/11,SME,N,
10045894,DAVID BURR LETTINGS,700,Guaranteed Rent Scheme,Rent Payable,08-Feb-22,2122/11,SME,N,
10045950,RICHARD WILLS TRAINING ASSOCIATES LTD,610,Governance,Prof & Consultancy Fees,07-Feb-22,2122/11,ST,N,
10046179,FOURWAYS VEHICLE SOLUTIONS LTD,511,Building Services,Lease Cars - Payment,15-Feb-22,2122/11,SME,Y,50%
10046326,FOURWAYS VEHICLE SOLUTIONS LTD,511,Building Services,Lease Cars - Payment,21-Feb-22,2122/11,SME,Y,50%
10045691,START AFRESH CLEANING LTD,570.17,Street & Major Road Cleansing,General Cleaning,31-Jan-22,2122/11,SME,N,
10045890,REGENCY GUARDING & EVENTS LTD,620,Open Spaces,Contracted Services,07-Feb-22,2122/11,SME,N,
10046051,LAVENHAM YOUTH FC,"2,500.00",Suffolk Community Restart Fund,Grants,14-Feb-22,2122/11,SME,N,
10045955,PRIVATE LANDLORD,715,Guaranteed Rent Scheme,Rent Payable,10-Feb-22,2122/11,SME,N,
10045695,BADENOCH & CLARK LTD T/A ADECCO,"2,440.00",Commissioning & Procurement,Agency Staff,31-Jan-22,2122/11,SME,Y,50%
10045961,BADENOCH & CLARK LTD T/A ADECCO,"2,440.00",Commissioning & Procurement,Agency Staff,07-Feb-22,2122/11,SME,Y,50%
10046071,BADENOCH & CLARK LTD T/A ADECCO,"2,440.00",Commissioning & Procurement,Agency Staff,14-Feb-22,2122/11,SME,Y,50%
10046279,BADENOCH & CLARK LTD T/A ADECCO,"2,440.00",Commissioning & Procurement,Agency Staff,21-Feb-22,2122/11,SME,Y,50%
10045895,SHJ HOMES LTD,500,Guaranteed Rent Scheme,Rent Payable,08-Feb-22,2122/11,SME,N,
10046237,BOURNE & CO PROPERTY LET & MANAGE LTD,525,Guaranteed Rent Scheme,Rent Payable,21-Feb-22,2122/11,SME,N,
10046248,PRIVATE LANDLORD,500,Guaranteed Rent Scheme,Rent Payable,22-Feb-22,2122/11,ST,N,
10045994,NAGELS UK LTD,"1,360.00",C Parks General,Ticketing,10-Feb-22,2122/11,SME,N,
10045995,PRIVATE LANDLORD,675,Guaranteed Rent Scheme,Rent Payable,11-Feb-22,2122/11,ST,N,
20027755,PRIVATE LANDLORD,"1,250.00",Guaranteed Rent Scheme,Rent Payable,21-Feb-22,2122/11,ST,N,
10045445,LEAVENHEATH SCOUT GROUP,525,Suffolk Community Restart Fund,Contributions & Donations,24-Jan-22,2122/11,SME,N,
20027751,LANDEX LTD,"1,998.88",Tenancy Services,Other Service Charges,15-Feb-22,2122/11,SME,N,
10045996,PRIVATE LANDLORD,650,Guaranteed Rent Scheme,Rent Payable,11-Feb-22,2122/11,ST,N,
10045449,ACTON CRICKET CLUB,"2,500.00",Suffolk Community Restart Fund,Contributions & Donations,24-Jan-22,2122/11,SME,N,
10045972,FIFIELD TRAINING LTD,"1,419.70",Cost of Democracy,Training,16-Dec-21,2122/11,SME,Y,50%
10046251,PRIVATE LANDLORD,650,Guaranteed Rent Scheme,Rent Payable,22-Feb-22,2122/11,ST,N,
20027733,PRIVATE LANDLORD,750,Guaranteed Rent Scheme,Misc Supplies & Services Costs,31-Jan-22,2122/11,ST,N,
10045648,ABLEWORLD,"3,295.00",Mand Disabled Facilities Grant,Grants,01-Feb-22,2122/11,SME,N,
10045958,HADLEIGH AMATEUR DRAMATIC SOCIETY,"1,295.00",Grants & Contrbns,Contributions & Donations,09-Feb-22,2122/11,SME,N,
10046019,CHELMONDISTON PLAYING FIELDS COMMITTEE,406.24,Grants & Contrbns,Contributions & Donations,11-Feb-22,2122/11,SME,N,
10046114,LADYBIRDS PRE-SCHOOL LEAVENHEATH,"2,500.00",Suffolk Community Restart Fund,Grants,15-Feb-22,2122/11,SME,N,
10046133,EAST BERGHOLT UTD FC JUNIORS & WOMENS,"2,228.00",Suffolk Community Restart Fund,Grants,16-Feb-22,2122/11,SME,N,
10046176,SANCTUARY HOUSING ASSOCIATION,525.48,Homeless Prevention Fund,Misc Supplies & Services Costs,15-Feb-22,2122/11,SME,N,
10046287,THE KITCHEN SHOWROOM LTD,"4,109.45",Mand Disabled Facilities Grant,Grants,23-Feb-22,2122/11,SME,N,
10046300,R RUSSELL PLUMBING & HEATING LTD,"6,750.00",Mand Disabled Facilities Grant,Grants,24-Feb-22,2122/11,SME,N,
226,REED SPECIALIST RECRUITMENT LTD,-730.49,Governance,Agency Staff,24-Feb-22,2122/11,LGE,N,
10045900,NORTHERN HOUSING CONSORTIUM,-573.51,General/Supervision & Mgmt,Subscriptions,08-Feb-22,2122/11,SME,N,
225,CABOODLE TECHNOLGY LIMITED,-636,Organisational Devt,Misc Employee Costs,24-Feb-22,2122/11,SME,N,
995,CABOODLE TECHNOLGY LIMITED,63.56,Current Assets,LLOYDS GENERAL PAYMENTS,21-Feb-22,2122/11,SME,N,
996,CABOODLE TECHNOLGY LIMITED,-63.56,Organisational Devt,Misc Employee Costs,21-Feb-22,2122/11,SME,N,
DDT0101974,CABOODLE TECHNOLGY LIMITED,63.56,Current Assets,LLOYDS GENERAL PAYMENTS,21-Feb-22,2122/11,SME,N,
10046401,AARON SERVICES LTD,"27,286.09",Planned Maint - Heating,Property Servicing,28-Feb-22,2122/12,SME,N,
10046559,ADVANCED CONTROLS & MANAGEMENT SYSTEMS L,867.48,Kingfisher Leisure Centre,Repairs,25-Feb-22,2122/12,SME,N,
10046518,AE WHITE SURFACING,"40,045.00",Public Realm TransitionProject,"Equipment, Tools & Materials",02-Mar-22,2122/12,SME,N,
10046668,AE WHITE SURFACING,372,Insurance Claims,Misc Premises Costs,28-Feb-22,2122/12,SME,N,
10046495,ALPHETON GARAGE LTD,300,Taxi & Private Hire Licensing,Contracted Services,02-Mar-22,2122/12,SME,N,
10047030,ANGLIAN WATER,"1,612.77",Sheltered Accommodation,Water Rates - Metered,15-Mar-22,2122/12,LGE,N,
10046928,ANTALIS LTD,303.02,Devt Management -Applications,Stationery,17-Mar-22,2122/12,SME,N,
10046567,ARAN SERVICES LTD,"20,167.01",Insulation Imps,Improvements,28-Feb-22,2122/12,SME,N,
10047100,BEN BURGESS GARDEN EQUIPMENT,"138,355.00",Vehicle and Plant Renewals,"Equipment, Tools & Materials",28-Mar-22,2122/12,SME,N,
10046408,BINDER LTD,124,Sewage Treatment Works,Contracted Services,24-Feb-22,2122/12,SME,N,
10046408,BINDER LTD,187,Sewage Treatment Works,Contracted Services,24-Feb-22,2122/12,SME,N,
10046408,BINDER LTD,20.44,Sewage Treatment Works,Repairs,24-Feb-22,2122/12,SME,N,
10046920,BINDER LTD,465.52,Sewage Treatment Works,Contracted Services,10-Mar-22,2122/12,SME,N,
10046331,BLUE FLAME (COLCHESTER) LTD,"2,175.00",Hadleigh TDP,Operating Lease Payments,02-Oct-20,2122/12,SME,Y,50%
10046332,BLUE FLAME (COLCHESTER) LTD,"2,175.00",Hadleigh TDP,Operating Lease Payments,29-Nov-21,2122/12,SME,Y,50%
10046333,BLUE FLAME (COLCHESTER) LTD,"2,175.00",Hadleigh TDP,Operating Lease Payments,31-Mar-21,2122/12,SME,Y,50%
10046334,BLUE FLAME (COLCHESTER) LTD,"2,175.00",Hadleigh TDP,Operating Lease Payments,29-Nov-21,2122/12,SME,Y,50%
10046335,BLUE FLAME (COLCHESTER) LTD,"2,175.00",Hadleigh TDP,Operating Lease Payments,29-Nov-21,2122/12,SME,Y,50%
10046384,BLUE FLAME (COLCHESTER) LTD,"11,228.15",Planned Maint - Heating,Property Servicing,17-Feb-22,2122/12,SME,Y,50%
10046425,BLUE FLAME (COLCHESTER) LTD,"3,414.46",Planned Maint - Heating,Property Servicing,19-Feb-22,2122/12,SME,Y,50%
10046614,BLUE FLAME (COLCHESTER) LTD,"24,381.47",Planned Maint - Heating,Property Servicing,26-Jan-22,2122/12,SME,N,
20027768,BLUE FLAME (COLCHESTER) LTD,"26,789.15",Current Liabilities,Cert IBS Creditors Holding ac,02-Mar-22,2122/12,SME,N,
20027809,BLUE FLAME (COLCHESTER) LTD,"34,976.37",Current Liabilities,Cert IBS Creditors Holding ac,09-Mar-22,2122/12,SME,N,
20027857,BLUE FLAME (COLCHESTER) LTD,"5,824.40",Current Liabilities,Cert IBS Creditors Holding ac,30-Mar-22,2122/12,SME,N,
10046233,BORDER FLOORING,"3,788.00",Kingfisher Leisure Centre,Repairs,20-Feb-22,2122/12,SME,N,
10046845,BORDER FLOORING,431.11,Kingfisher Leisure Centre,Repairs,11-Mar-22,2122/12,SME,N,
10046526,BOTTOMLINE TECHNOLOGIES,667.8,ICT,Software Licnse (Line of Bus) ,28-Feb-22,2122/12,LGE,Y,50%
10046734,BOWER FULLER,"3,698.53",Sheltered Accommodation,Fire Prevention,28-Feb-22,2122/12,SME,N,
10046739,BOWER FULLER,499.28,Temporary Accommodation,Fire Prevention,28-Feb-22,2122/12,SME,N,
10046743,BOWER FULLER,"1,267.61",Assets & Development,Repairs,28-Feb-22,2122/12,SME,N,
10046745,BOWER FULLER,258.04,Sheltered Accommodation,Repairs,28-Feb-22,2122/12,SME,N,
10046748,BOWER FULLER,449.65,Conversions & Adaptations,Prof & Consultancy Fees,28-Feb-22,2122/12,SME,N,
10046851,AQUASAMPLERS,880,Water Sampling,Sampling & Analysis,28-Feb-22,2122/12,SME,N,
10047175,CHASSIS-CAB LTD,329.06,Street & Major Road Cleansing,Plant & Vehicle - Other costs,29-Mar-22,2122/12,SME,N,
10046636,CHEQUERS HOTEL LTD,455,Homelessness Private Sector,B&B Costs,28-Feb-22,2122/12,SME,N,
10046653,CHEQUERS HOTEL LTD,357.5,Homelessness Private Sector,B&B Costs,28-Feb-22,2122/12,SME,N,
10046654,CHEQUERS HOTEL LTD,910,Homelessness Private Sector,B&B Costs,28-Feb-22,2122/12,SME,N,
10046655,CHEQUERS HOTEL LTD,390,Homelessness Private Sector,B&B Costs,28-Feb-22,2122/12,SME,N,
10046657,CHEQUERS HOTEL LTD,292.5,Homelessness Private Sector,B&B Costs,28-Feb-22,2122/12,SME,N,
10046658,CHEQUERS HOTEL LTD,910,Homelessness Private Sector,B&B Costs,28-Feb-22,2122/12,SME,N,
10046659,CHEQUERS HOTEL LTD,"1,820.00",Homelessness Private Sector,B&B Costs,28-Feb-22,2122/12,SME,N,
10047178,CHEQUERS HOTEL LTD,520,Homelessness Private Sector,B&B Costs,28-Mar-22,2122/12,SME,N,
10047179,CHEQUERS HOTEL LTD,715,Homelessness Private Sector,B&B Costs,28-Mar-22,2122/12,SME,N,
10047180,CHEQUERS HOTEL LTD,650,Homelessness Private Sector,B&B Costs,28-Mar-22,2122/12,SME,N,
10047181,CHEQUERS HOTEL LTD,500,Homelessness Private Sector,B&B Costs,28-Mar-22,2122/12,SME,N,
10047182,CHEQUERS HOTEL LTD,682.5,Homelessness Private Sector,B&B Costs,28-Mar-22,2122/12,SME,N,
10047183,CHEQUERS HOTEL LTD,"1,820.00",Homelessness Private Sector,B&B Costs,28-Mar-22,2122/12,SME,N,
10047185,CHEQUERS HOTEL LTD,260,Homelessness Private Sector,B&B Costs,28-Mar-22,2122/12,SME,N,
10047186,CHEQUERS HOTEL LTD,455,Homelessness Private Sector,B&B Costs,28-Mar-22,2122/12,SME,N,
10046514,CHIPSIDE LTD,270.42,Sudb C Parks,Contracted Services,28-Feb-22,2122/12,SME,N,
10046416,CLARKE FENCING LTD,"1,525.00",Open Spaces,"Equipment, Tools & Materials",24-Feb-22,2122/12,SME,N,
10046417,CLARKE FENCING LTD,819.48,Open Spaces,"Equipment, Tools & Materials",24-Feb-22,2122/12,SME,N,
10046435,CLARKE FENCING LTD,437.36,Open Spaces,"Equipment, Tools & Materials",22-Jan-22,2122/12,SME,N,
10047068,CLARKE FENCING LTD,322.54,Open Spaces,"Equipment, Tools & Materials",24-Mar-22,2122/12,SME,N,
10047132,CLARKE FENCING LTD,603.6,Open Spaces,"Equipment, Tools & Materials",28-Mar-22,2122/12,SME,N,
10046560,CLARKES OF WALSHAM LTD,"1,618.94",Building Services,Repairs,04-Mar-22,2122/12,SME,N,
10046070,D W ADAMS LTD,617,Building Services,Repairs,15-Feb-22,2122/12,SME,N,
10046249,D W ADAMS LTD,"4,301.00",Building Services,Repairs,22-Feb-22,2122/12,SME,N,
10046541,D W ADAMS LTD,815,Building Services,Repairs,04-Mar-22,2122/12,SME,N,
10046548,D W ADAMS LTD,"3,854.00",Major Imps,Improvements,04-Mar-22,2122/12,SME,N,
10046572,D W ADAMS LTD,"4,347.00",Council House Adaptions,Improvements,07-Mar-22,2122/12,SME,N,
10046947,D W ADAMS LTD,"4,936.00",Council House Adaptions,Improvements,18-Mar-22,2122/12,SME,N,
10047032,D W ADAMS LTD,"2,695.00",Insulation Imps,Improvements,23-Mar-22,2122/12,SME,N,
10047048,D W ADAMS LTD,"3,847.00",Major Imps,Improvements,24-Mar-22,2122/12,SME,N,
10047174,D W ADAMS LTD,"2,244.00",Voids Maintenance,Repairs,30-Mar-22,2122/12,SME,N,
10046704,DMA HEALTH AND SAFETY LTD,870,Structural Works,Prof & Consultancy Fees,09-Mar-22,2122/12,SME,N,
10046705,DMA HEALTH AND SAFETY LTD,255,Environmental Imps,Prof & Consultancy Fees,09-Mar-22,2122/12,SME,N,
10046706,DMA HEALTH AND SAFETY LTD,356,"Schoolfield, Glemsford",Prof & Consultancy Fees,09-Mar-22,2122/12,SME,N,
10046419,DOLPHIN STAIRLIFTS (EAST ANGLIA) LTD,"2,461.00",Mand Disabled Facilities Grant,Grants,01-Mar-22,2122/12,SME,N,
10045963,ENER-G SWITCH2 LTD,311.66,Building Services,Repairs,10-Feb-22,2122/12,SME,N,
10046557,ENER-G SWITCH2 LTD,201.23,Temporary Accommodation,Repairs,04-Mar-22,2122/12,SME,N,
10046557,ENER-G SWITCH2 LTD,250.55,Temporary Accommodation,Repairs,04-Mar-22,2122/12,SME,N,
10046863,ENER-G SWITCH2 LTD,680,Temporary Accommodation,Repairs,14-Mar-22,2122/12,SME,N,
10046260,ENGLISH SECURITY,299.68,Old School House,Fire Prevention,18-Feb-22,2122/12,SME,N,
10046261,ENGLISH SECURITY,304.96,Sheltered Accommodation,Emergency Lighting,17-Feb-22,2122/12,SME,N,
10046262,ENGLISH SECURITY,304.28,Sheltered Accommodation,Emergency Lighting,17-Feb-22,2122/12,SME,N,
10046758,ENGLISH SECURITY,103.45,Tenancy Services,Emergency Lighting,02-Mar-22,2122/12,SME,N,
10046758,ENGLISH SECURITY,98.44,Sheltered Accommodation,Emergency Lighting,02-Mar-22,2122/12,SME,N,
10046758,ENGLISH SECURITY,48.69,Tenancy Services,Emergency Lighting,02-Mar-22,2122/12,SME,N,
10046971,ENGLISH SECURITY,155,Temporary Accommodation,Fire Prevention,18-Mar-22,2122/12,SME,N,
10046971,ENGLISH SECURITY,75,Temporary Accommodation,Fire Prevention,18-Mar-22,2122/12,SME,N,
10046971,ENGLISH SECURITY,16.21,Sheltered Accommodation,Fire Prevention,18-Mar-22,2122/12,SME,N,
10046971,ENGLISH SECURITY,0.61,Temporary Accommodation,Fire Prevention,18-Mar-22,2122/12,SME,N,
10046971,ENGLISH SECURITY,203.17,Sheltered Accommodation,Fire Prevention,18-Mar-22,2122/12,SME,N,
10046971,ENGLISH SECURITY,75,Sheltered Accommodation,Fire Prevention,18-Mar-22,2122/12,SME,N,
10046971,ENGLISH SECURITY,120,Sheltered Accommodation,Fire Prevention,18-Mar-22,2122/12,SME,N,
10046971,ENGLISH SECURITY,280,Sheltered Accommodation,Fire Prevention,18-Mar-22,2122/12,SME,N,
10046971,ENGLISH SECURITY,165,Sheltered Accommodation,Fire Prevention,18-Mar-22,2122/12,SME,N,
10046971,ENGLISH SECURITY,334.02,Sheltered Accommodation,Fire Prevention,18-Mar-22,2122/12,SME,N,
10046971,ENGLISH SECURITY,127.07,HQ Repairs,Fire Prevention,18-Mar-22,2122/12,SME,N,
10046971,ENGLISH SECURITY,203.17,Sheltered Accommodation,Fire Prevention,18-Mar-22,2122/12,SME,N,
10046971,ENGLISH SECURITY,75,Temporary Accommodation,Fire Prevention,18-Mar-22,2122/12,SME,N,
10046269,ENVIROVENT LTD,460,Building Services,Repairs,11-Feb-22,2122/12,SME,N,
10046485,ENVIROVENT LTD,460,Dampness & Condensation,Repairs,28-Feb-22,2122/12,SME,N,
10046570,ENVIROVENT LTD,"1,177.36",Building Services,Repairs,28-Feb-22,2122/12,SME,N,
10046571,ENVIROVENT LTD,460,Building Services,Repairs,28-Feb-22,2122/12,SME,N,
10046378,FELGAINS CARE CENTRE,"2,739.00",Mand Disabled Facilities Grant,Grants,28-Feb-22,2122/12,SME,N,
10046224,FELLBRIDGE BUILDING SERVICES,"2,095.43",Building Services,Repairs,21-Feb-22,2122/12,SME,N,
10046225,FELLBRIDGE BUILDING SERVICES,"1,163.00",Building Services,Repairs,21-Feb-22,2122/12,SME,N,
10046227,FELLBRIDGE BUILDING SERVICES,698.16,Building Services,Repairs,21-Feb-22,2122/12,SME,N,
10046304,FELLBRIDGE BUILDING SERVICES,772.64,Building Services,Contracted Services,24-Feb-22,2122/12,SME,N,
10046306,FELLBRIDGE BUILDING SERVICES,"1,468.35",Building Services,Repairs,24-Feb-22,2122/12,SME,N,
10046382,FELLBRIDGE BUILDING SERVICES,381.12,Building Services,Repairs,24-Feb-22,2122/12,SME,N,
10046720,FELLBRIDGE BUILDING SERVICES,"22,530.70",Building Services,Repairs,10-Mar-22,2122/12,SME,N,
10046721,FELLBRIDGE BUILDING SERVICES,"11,279.36",Building Services,Repairs,10-Mar-22,2122/12,SME,N,
10046754,FELLBRIDGE BUILDING SERVICES,"1,703.04",Building Services,Repairs,10-Mar-22,2122/12,SME,N,
10046916,FELLBRIDGE BUILDING SERVICES,288,Building Services,Repairs,17-Mar-22,2122/12,SME,N,
10046917,FELLBRIDGE BUILDING SERVICES,263.65,Building Services,Repairs,17-Mar-22,2122/12,SME,N,
10047075,FELLBRIDGE BUILDING SERVICES,"15,322.03",Major Imps,Improvements,24-Mar-22,2122/12,SME,N,
10045775,FORE-MOST GARAGE DOORS LTD,565.33,Building Services,Repairs,31-Jan-22,2122/12,SME,N,
10045775,FORE-MOST GARAGE DOORS LTD,568.04,Building Services,Repairs,31-Jan-22,2122/12,SME,N,
10045775,FORE-MOST GARAGE DOORS LTD,45,Building Services,Repairs,31-Jan-22,2122/12,SME,N,
10045775,FORE-MOST GARAGE DOORS LTD,70,Building Services,Repairs,31-Jan-22,2122/12,SME,N,
10045775,FORE-MOST GARAGE DOORS LTD,70,Building Services,Repairs,31-Jan-22,2122/12,SME,N,
10045775,FORE-MOST GARAGE DOORS LTD,142,Building Services,Repairs,31-Jan-22,2122/12,SME,N,
10045775,FORE-MOST GARAGE DOORS LTD,142,Building Services,Repairs,31-Jan-22,2122/12,SME,N,
10045775,FORE-MOST GARAGE DOORS LTD,142,Building Services,Repairs,31-Jan-22,2122/12,SME,N,
10045775,FORE-MOST GARAGE DOORS LTD,142,Building Services,Repairs,31-Jan-22,2122/12,SME,N,
10045775,FORE-MOST GARAGE DOORS LTD,142,Building Services,Repairs,31-Jan-22,2122/12,SME,N,
10045775,FORE-MOST GARAGE DOORS LTD,45,Building Services,Repairs,31-Jan-22,2122/12,SME,N,
10045775,FORE-MOST GARAGE DOORS LTD,95,Building Services,Repairs,31-Jan-22,2122/12,SME,N,
10045775,FORE-MOST GARAGE DOORS LTD,73,Building Services,Repairs,31-Jan-22,2122/12,SME,N,
10045775,FORE-MOST GARAGE DOORS LTD,75,Building Services,Repairs,31-Jan-22,2122/12,SME,N,
10046407,FORE-MOST GARAGE DOORS LTD,45,Building Services,Repairs,28-Feb-22,2122/12,SME,N,
10046407,FORE-MOST GARAGE DOORS LTD,649,Building Services,Repairs,28-Feb-22,2122/12,SME,N,
10046407,FORE-MOST GARAGE DOORS LTD,649,Building Services,Repairs,28-Feb-22,2122/12,SME,N,
10046407,FORE-MOST GARAGE DOORS LTD,649,Building Services,Repairs,28-Feb-22,2122/12,SME,N,
10046407,FORE-MOST GARAGE DOORS LTD,512.33,Building Services,Repairs,28-Feb-22,2122/12,SME,N,
10046407,FORE-MOST GARAGE DOORS LTD,512.33,Building Services,Repairs,28-Feb-22,2122/12,SME,N,
10046407,FORE-MOST GARAGE DOORS LTD,45,Building Services,Repairs,28-Feb-22,2122/12,SME,N,
10046407,FORE-MOST GARAGE DOORS LTD,85,Building Services,Repairs,28-Feb-22,2122/12,SME,N,
10046407,FORE-MOST GARAGE DOORS LTD,85,Building Services,Repairs,28-Feb-22,2122/12,SME,N,
10046407,FORE-MOST GARAGE DOORS LTD,85,Building Services,Repairs,28-Feb-22,2122/12,SME,N,
10046852,G & G SIGNS,497.75,Street Naming & Numbering,Signs,11-Mar-22,2122/12,SME,N,
10046498,GB ADAPTIONS LTD,"5,884.00",Mand Disabled Facilities Grant,Grants,02-Mar-22,2122/12,SME,N,
10046613,GB ADAPTIONS LTD,"6,908.00",Mand Disabled Facilities Grant,Grants,07-Mar-22,2122/12,SME,N,
10046700,GB ADAPTIONS LTD,"6,972.00",Mand Disabled Facilities Grant,Grants,09-Mar-22,2122/12,SME,N,
10047063,GB ADAPTIONS LTD,"6,041.00",Mand Disabled Facilities Grant,Grants,24-Mar-22,2122/12,SME,N,
10039026,GHB ROOFING,"4,990.00",Roofing,Improvements,28-Feb-21,2122/12,SME,N,
10039026,GHB ROOFING,"3,770.00",Roofing,Improvements,28-Feb-21,2122/12,SME,N,
10046531,GHB ROOFING,"12,136.00",Major Imps,Improvements,28-Feb-22,2122/12,SME,N,
10046532,GHB ROOFING,"1,640.00",Building Services,Repairs,28-Feb-22,2122/12,SME,N,
10046533,GHB ROOFING,"1,880.00",Building Services,Repairs,28-Feb-22,2122/12,SME,N,
10046534,GHB ROOFING,"2,510.00",Building Services,Repairs,28-Feb-22,2122/12,SME,N,
10047208,GHB ROOFING,"13,467.50",Major Imps,Improvements,31-Mar-22,2122/12,SME,N,
10046520,HAVEBURY HOUSING PARTNERSHIP,"1,682.67",Homeless Prevention Fund,Misc Supplies & Services Costs,03-Mar-22,2122/12,SME,N,
10046222,HAYES DIGGINS BUILDERS,840,Insulation Imps,Improvements,21-Feb-22,2122/12,SME,N,
10046231,HAYES DIGGINS BUILDERS,350,Kingfisher Leisure Centre,Repairs,21-Feb-22,2122/12,SME,N,
10046486,HAYES DIGGINS BUILDERS,725,Estate Imps/parking areas,Improvements,02-Mar-22,2122/12,SME,N,
10046621,HAYES DIGGINS BUILDERS,610,Insulation Imps,Improvements,07-Mar-22,2122/12,SME,N,
10046892,HAYES DIGGINS BUILDERS,550,Insulation Imps,Improvements,16-Mar-22,2122/12,SME,N,
10047115,HAYES DIGGINS BUILDERS,415,Building Services,Repairs,28-Mar-22,2122/12,SME,N,
10046891,HQN LTD,350,Building Services,Training,16-Mar-22,2122/12,SME,Y,50%
10045494,JMP SERVICES LTD,420,Street & Major Road Cleansing,Contracted Services,25-Jan-22,2122/12,SME,N,
10046035,KEN GRIME & SON LTD,993.43,Building Services,Repairs,14-Feb-22,2122/12,SME,N,
10046432,KEN GRIME & SON LTD,"1,199.55",Building Services,Repairs,01-Mar-22,2122/12,SME,N,
10046922,KEN GRIME & SON LTD,"1,342.20",Building Services,Repairs,17-Mar-22,2122/12,SME,N,
10046517,KENDA-CLEAN,14,Chilton Depot,Window Cleaning,01-Mar-22,2122/12,SME,Y,50%
10046517,KENDA-CLEAN,120,Sheltered Accommodation,Window Cleaning,01-Mar-22,2122/12,SME,N,
10046517,KENDA-CLEAN,61,Sheltered Accommodation,Window Cleaning,01-Mar-22,2122/12,SME,N,
10046517,KENDA-CLEAN,51,Sheltered Accommodation,Window Cleaning,01-Mar-22,2122/12,SME,N,
10046517,KENDA-CLEAN,95,Sheltered Accommodation,Window Cleaning,01-Mar-22,2122/12,SME,N,
10046517,KENDA-CLEAN,62,Sheltered Accommodation,Window Cleaning,01-Mar-22,2122/12,SME,N,
10046517,KENDA-CLEAN,85,Sheltered Accommodation,Window Cleaning,01-Mar-22,2122/12,SME,N,
10046517,KENDA-CLEAN,89,Sheltered Accommodation,Window Cleaning,01-Mar-22,2122/12,SME,N,
10046517,KENDA-CLEAN,113,Sheltered Accommodation,Window Cleaning,01-Mar-22,2122/12,SME,N,
10046517,KENDA-CLEAN,105,Sheltered Accommodation,Window Cleaning,01-Mar-22,2122/12,SME,N,
10046517,KENDA-CLEAN,115,Sheltered Accommodation,Window Cleaning,01-Mar-22,2122/12,SME,N,
10046517,KENDA-CLEAN,58,Sheltered Accommodation,Window Cleaning,01-Mar-22,2122/12,SME,N,
10046517,KENDA-CLEAN,64,Temporary Accommodation,Window Cleaning,01-Mar-22,2122/12,SME,N,
10046517,KENDA-CLEAN,29,Old School House,Window Cleaning,01-Mar-22,2122/12,SME,N,
10046517,KENDA-CLEAN,431,Tenancy Services,Window Cleaning,01-Mar-22,2122/12,SME,N,
10046517,KENDA-CLEAN,13,Chilton Depot,Window Cleaning,01-Mar-22,2122/12,SME,Y,50%
10046517,KENDA-CLEAN,8,Sheltered Accommodation,Window Cleaning,01-Mar-22,2122/12,SME,N,
10046517,KENDA-CLEAN,35,Sheltered Accommodation,Window Cleaning,01-Mar-22,2122/12,SME,N,
10046517,KENDA-CLEAN,10,Sheltered Accommodation,Window Cleaning,01-Mar-22,2122/12,SME,N,
10046517,KENDA-CLEAN,17,Sheltered Accommodation,Window Cleaning,01-Mar-22,2122/12,SME,N,
10046517,KENDA-CLEAN,27,Sheltered Accommodation,Window Cleaning,01-Mar-22,2122/12,SME,N,
10046517,KENDA-CLEAN,14,Sheltered Accommodation,Window Cleaning,01-Mar-22,2122/12,SME,N,
10046517,KENDA-CLEAN,34,Sheltered Accommodation,Window Cleaning,01-Mar-22,2122/12,SME,N,
10046517,KENDA-CLEAN,60,Sheltered Accommodation,Window Cleaning,01-Mar-22,2122/12,SME,N,
10046517,KENDA-CLEAN,58,Sheltered Accommodation,Window Cleaning,01-Mar-22,2122/12,SME,N,
10046517,KENDA-CLEAN,14,Old School House,Window Cleaning,01-Mar-22,2122/12,SME,N,
10046517,KENDA-CLEAN,16,Temporary Accommodation,Window Cleaning,01-Mar-22,2122/12,SME,N,
10046517,KENDA-CLEAN,340,Tenancy Services,Window Cleaning,01-Mar-22,2122/12,SME,N,
10047171,KINGSLEY HOUSE HOTEL,"4,594.00",Homelessness Private Sector,B&B Costs,23-Mar-22,2122/12,SME,N,
10046258,M & H CIVIL ENGINEERING LTD,"2,575.20",Building Services,Repairs,16-Feb-22,2122/12,SME,N,
10046914,M & H CIVIL ENGINEERING LTD,582.56,Building Services,Repairs,15-Mar-22,2122/12,SME,N,
10046858,MALJON TIMBER PRESERVATION LTD,70,Building Services,Repairs,14-Mar-22,2122/12,SME,N,
10046858,MALJON TIMBER PRESERVATION LTD,"1,467.00",Building Services,Repairs,14-Mar-22,2122/12,SME,N,
10046420,MATERIAL CHANGE COMPOSTING LTD,"2,187.75",Open Spaces,Waste Disposal,28-Feb-22,2122/12,LGE,N,
10047152,MB TREES (EAST ANGLIA) LTD,"1,675.00",Neighbourhood Services,Grounds & Site Maintenance,29-Mar-22,2122/12,SME,N,
10047153,MB TREES (EAST ANGLIA) LTD,480,Public Tree Programme,Tree felling/maintenance,29-Mar-22,2122/12,SME,N,
10046608,MERCURY BUILDING SERVICES LTD,"6,243.00",Pld Maint/Enhncmts-Kingfisher,Improvements,07-Mar-22,2122/12,SME,N,
10046895,MERCURY BUILDING SERVICES LTD,"8,415.00",Pld Maint/Enhncmts-Kingfisher,Improvements,16-Mar-22,2122/12,SME,N,
10047202,MERCURY BUILDING SERVICES LTD,531,Hadleigh Pool,Repairs,14-Mar-22,2122/12,SME,N,
10047202,MERCURY BUILDING SERVICES LTD,756,Kingfisher Leisure Centre,Repairs,14-Mar-22,2122/12,SME,N,
10046974,MIXBROW LTD,"13,805.87",Council House Adaptions,Improvements,09-Mar-22,2122/12,SME,N,
10046908,MONTHIND CLEAN LTD,624.43,Jnt Waste Contract,General Cleaning,15-Mar-22,2122/12,LGE,Y,50%
10046385,ORWELL HOUSING ASSOCIATION LTD,"34,991.76","Mackenzie Place, Cockfield",Prof & Consultancy Fees,06-Jan-22,2122/12,LGE,N,
10046330,PHS GROUP PLC,443.14,Wenham Depot,Contracted Services,11-Feb-22,2122/12,LGE,Y,50%
10046542,PITMAN BROTHERS (DECORATORS) LTD,"2,280.00",Building Services,Repairs,04-Mar-22,2122/12,SME,N,
10046805,PITMAN BROTHERS (DECORATORS) LTD,400,Building Services,Repairs,11-Mar-22,2122/12,SME,N,
10046402,PRO-FLAT SPECIALIST SERVICES LTD,"1,091.00",Major Imps,Improvements,28-Feb-22,2122/12,SME,N,
10046403,PRO-FLAT SPECIALIST SERVICES LTD,"3,487.50",Major Imps,Improvements,28-Feb-22,2122/12,SME,N,
10046404,PRO-FLAT SPECIALIST SERVICES LTD,"3,487.50",Major Imps,Improvements,28-Feb-22,2122/12,SME,N,
10046641,PRO-FLAT SPECIALIST SERVICES LTD,868,Major Imps,Repairs,07-Mar-22,2122/12,SME,N,
10046864,PRO-FLAT SPECIALIST SERVICES LTD,964,Major Imps,Repairs,14-Mar-22,2122/12,SME,N,
10047000,PRO-FLAT SPECIALIST SERVICES LTD,578.5,Roofing,Improvements,17-Mar-22,2122/12,SME,N,
10047001,PRO-FLAT SPECIALIST SERVICES LTD,867,Roofing,Improvements,18-Mar-22,2122/12,SME,N,
10045946,REID PLUMBING & HEATING CONTRACTORS LTD,"15,140.54",Central Heating,Major Contracts,09-Feb-22,2122/12,SME,N,
10046132,REID PLUMBING & HEATING CONTRACTORS LTD,"15,959.01",Central Heating,Major Contracts,16-Feb-22,2122/12,SME,N,
10046268,REID PLUMBING & HEATING CONTRACTORS LTD,"8,946.27",Central Heating,Major Contracts,22-Feb-22,2122/12,SME,N,
10046273,REID PLUMBING & HEATING CONTRACTORS LTD,"5,239.49",Central Heating,Major Contracts,23-Feb-22,2122/12,SME,N,
10046290,REID PLUMBING & HEATING CONTRACTORS LTD,"9,450.44",Central Heating,Major Contracts,23-Feb-22,2122/12,SME,N,
10046647,REID PLUMBING & HEATING CONTRACTORS LTD,"21,429.01",Central Heating,Major Contracts,08-Mar-22,2122/12,SME,N,
10046878,REID PLUMBING & HEATING CONTRACTORS LTD,"19,786.05",Central Heating,Major Contracts,16-Mar-22,2122/12,SME,N,
10046927,REID PLUMBING & HEATING CONTRACTORS LTD,"8,822.29",Central Heating,Major Contracts,16-Mar-22,2122/12,SME,N,
10047038,REID PLUMBING & HEATING CONTRACTORS LTD,975,Council House Adaptions,Improvements,23-Mar-22,2122/12,SME,N,
10046554,ROYAL INSTITUTION OF CHARTERED SURVEYORS,935,Jnt Waste Contract,Subscriptions,04-Mar-22,2122/12,LGE,Y,50%
10046648,SANDY LANE NURSERY,729.95,Public Tree Programme,Tree felling/maintenance,04-Mar-22,2122/12,SME,N,
10046354,SOLACE GROUP LTD,"22,175.00",Organisational Devt,Training,25-Feb-22,2122/12,SME,Y,50%
10046289,SOLUTIONS ON SECURITY SERVICES,"5,981.20",Creeting Rd Depot,Security Systems,23-Feb-22,2122/12,SME,Y,50%
10046160,SPALDINGS LTD,572.09,Open Spaces,Grounds & Site Maintenance,17-Feb-22,2122/12,SME,N,
10047190,SUFFOLK LIBRARIES IPS LTD HADLEIGH,"1,000.00",Visitor Economy,Contracted Services,26-Jan-22,2122/12,SME,N,
10046662,SUFFOLK TREE SERVICES LTD,350,Public Tree Programme,Tree felling/maintenance,08-Mar-22,2122/12,SME,N,
10046667,SUFFOLK TREE SERVICES LTD,300,Public Tree Programme,Tree felling/maintenance,08-Mar-22,2122/12,SME,N,
10045831,SUREFIX,454.55,Building Services,Repairs,01-Feb-22,2122/12,SME,N,
10046166,SUREFIX,282.63,Building Services,Repairs,08-Feb-22,2122/12,SME,N,
10046168,SUREFIX,800,Window & Door Rplcmts,Improvements,09-Feb-22,2122/12,SME,N,
10046168,SUREFIX,800,Window & Door Rplcmts,Improvements,09-Feb-22,2122/12,SME,N,
10046184,SUREFIX,750,Building Services,Repairs,14-Feb-22,2122/12,SME,N,
10046190,SUREFIX,316.44,Building Services,Repairs,16-Feb-22,2122/12,SME,N,
10046192,SUREFIX,251.44,Building Services,Repairs,15-Feb-22,2122/12,SME,N,
10046196,SUREFIX,474.66,Building Services,Repairs,16-Feb-22,2122/12,SME,N,
10046337,SUREFIX,"1,700.00",Major Imps,Improvements,21-Feb-22,2122/12,SME,N,
10046338,SUREFIX,850,Building Services,Repairs,23-Feb-22,2122/12,SME,N,
10046340,SUREFIX,725,Building Services,Repairs,24-Feb-22,2122/12,SME,N,
10046577,SUREFIX,"1,600.00",Major Imps,Improvements,04-Mar-22,2122/12,SME,N,
10046578,SUREFIX,"1,600.00",Building Services,Repairs,04-Mar-22,2122/12,SME,N,
10046580,SUREFIX,876.26,Building Services,Repairs,28-Feb-22,2122/12,SME,N,
10046581,SUREFIX,850,Building Services,Repairs,23-Feb-22,2122/12,SME,N,
10046582,SUREFIX,"1,875.00",Building Services,Repairs,03-Mar-22,2122/12,SME,N,
10046583,SUREFIX,850,Building Services,Repairs,03-Mar-22,2122/12,SME,N,
10046584,SUREFIX,850,Major Imps,Improvements,01-Mar-22,2122/12,SME,N,
10046585,SUREFIX,"1,600.00",Building Services,Repairs,28-Feb-22,2122/12,SME,N,
10046590,SUREFIX,580.67,Building Services,Repairs,21-Feb-22,2122/12,SME,N,
10046820,SUREFIX,"1,700.00",Major Imps,Improvements,08-Mar-22,2122/12,SME,N,
10046821,SUREFIX,850,Major Imps,Improvements,08-Mar-22,2122/12,SME,N,
10046823,SUREFIX,886.16,Building Services,Repairs,09-Mar-22,2122/12,SME,N,
10046824,SUREFIX,800,Major Imps,Improvements,10-Mar-22,2122/12,SME,N,
10046828,SUREFIX,527.4,Building Services,Repairs,14-Mar-22,2122/12,SME,N,
10046830,SUREFIX,708.7,Building Services,Repairs,03-Mar-22,2122/12,SME,N,
10046938,SUREFIX,355.96,Building Services,Repairs,16-Mar-22,2122/12,SME,N,
10046939,SUREFIX,760,Building Services,Repairs,15-Mar-22,2122/12,SME,N,
10046940,SUREFIX,750,Major Imps,Improvements,14-Mar-22,2122/12,SME,N,
10046941,SUREFIX,514.07,Building Services,Repairs,16-Mar-22,2122/12,SME,N,
10046945,SUREFIX,750,Major Imps,Improvements,18-Mar-22,2122/12,SME,N,
10047083,SUREFIX,800,Major Imps,Repairs,22-Mar-22,2122/12,SME,N,
10047085,SUREFIX,563.66,Building Services,Repairs,21-Mar-22,2122/12,SME,N,
10047087,SUREFIX,"1,110.96",Major Imps,Improvements,21-Mar-22,2122/12,SME,N,
10046218,TANKCHANGE LTD,445,Building Services,Repairs,20-Feb-22,2122/12,SME,N,
10046239,TANKCHANGE LTD,375,Central Heating,Improvements,20-Feb-22,2122/12,SME,N,
10046816,TANKCHANGE LTD,"2,345.00",Central Heating,Improvements,02-Mar-22,2122/12,SME,N,
10046833,TANKCHANGE LTD,"2,195.00",Central Heating,Improvements,02-Mar-22,2122/12,SME,N,
10046838,TANKCHANGE LTD,"2,175.00",Central Heating,Improvements,02-Mar-22,2122/12,SME,N,
10047193,TANKCHANGE LTD,345,Building Services,Repairs,02-Mar-22,2122/12,SME,N,
10047194,TANKCHANGE LTD,345,Central Heating,Improvements,02-Mar-22,2122/12,SME,N,
10046950,THERMATECH,"2,960.00",Sheltered Accommodation,Fire Prevention,18-Mar-22,2122/12,SME,N,
10046951,THERMATECH,395,Sheltered Accommodation,Fire Prevention,18-Mar-22,2122/12,SME,N,
10047148,VISIT EAST ANGLIA LTD,"2,500.00",RHSSF,Advertising&mkting (non-staff),24-Mar-22,2122/12,SME,N,
10046423,WEST END REHOMING,448.12,Dog Control,Collection Charges,01-Mar-22,2122/12,SME,N,
10046535,WINDIMAN LTD,302.43,Building Services,Repairs,03-Mar-22,2122/12,SME,N,
10046783,WINDIMAN LTD,"1,030.67",Building Services,Repairs,17-Feb-22,2122/12,SME,N,
10046784,WINDIMAN LTD,735,Building Services,Repairs,17-Feb-22,2122/12,SME,N,
10046785,WINDIMAN LTD,735,Building Services,Repairs,17-Feb-22,2122/12,SME,N,
10047072,WINDIMAN LTD,735,Building Services,Repairs,24-Mar-22,2122/12,SME,N,
10047073,WINDIMAN LTD,"1,282.00",Building Services,Repairs,24-Mar-22,2122/12,SME,N,
10046503,ARCHANT COMMUNITY MEDIA LTD,500.6,Devt Management -Applications,Advertising&mkting (non-staff),28-Feb-22,2122/12,LGE,N,
10046695,ARCHANT COMMUNITY MEDIA LTD,995,Devt Management -Applications,Advertising&mkting (non-staff),05-Mar-22,2122/12,LGE,N,
10046696,ARCHANT COMMUNITY MEDIA LTD,"1,365.80",Council Tax Collection,Advertising&mkting (non-staff),05-Mar-22,2122/12,LGE,N,
10046984,ARCHANT COMMUNITY MEDIA LTD,834.3,Devt Management -Applications,Advertising&mkting (non-staff),12-Mar-22,2122/12,LGE,N,
10047147,ARCHANT COMMUNITY MEDIA LTD,840.5,Devt Management -Applications,Advertising&mkting (non-staff),19-Mar-22,2122/12,LGE,N,
10046395,COMMAND PEST CONTROL LTD,"2,415.00",Building Services,Repairs,24-Feb-22,2122/12,SME,N,
10046553,MITIE PROPERTY SERVICES (UK) LTD,"21,118.00",Planned Maint - Ext Painting,External Painting,04-Mar-22,2122/12,SME,N,
10046099,NEWAUTO LTD T/A MOGO UK,505.61,Taxi & Private Hire Licensing,"Equipment, Tools & Materials",15-Feb-22,2122/12,SME,N,
10046099,NEWAUTO LTD T/A MOGO UK,758.42,Taxi & Private Hire Licensing,"Equipment, Tools & Materials",15-Feb-22,2122/12,SME,N,
10046099,NEWAUTO LTD T/A MOGO UK,493.52,Taxi & Private Hire Licensing,"Equipment, Tools & Materials",15-Feb-22,2122/12,SME,N,
10046099,NEWAUTO LTD T/A MOGO UK,52.37,Taxi & Private Hire Licensing,"Equipment, Tools & Materials",15-Feb-22,2122/12,SME,N,
10046099,NEWAUTO LTD T/A MOGO UK,390.79,Taxi & Private Hire Licensing,"Equipment, Tools & Materials",15-Feb-22,2122/12,SME,N,
10046099,NEWAUTO LTD T/A MOGO UK,586.19,Taxi & Private Hire Licensing,"Equipment, Tools & Materials",15-Feb-22,2122/12,SME,N,
10046539,ESSEX COUNTY COUNCIL,906,Devt Management -Applications,(Urban) Design  Consultancy,03-Mar-22,2122/12,LGE,N,
10046953,ESSEX COUNTY COUNCIL,589,Pre App Charging,Ecology Consultancy,18-Mar-22,2122/12,LGE,Y,1%
10046995,ESSEX COUNTY COUNCIL,"1,548.00",Pre App Charging,Landscape Consultancy,21-Mar-22,2122/12,LGE,N,
10046996,ESSEX COUNTY COUNCIL,"1,104.00",Pre App Charging,Landscape Consultancy,21-Mar-22,2122/12,LGE,N,
10046997,ESSEX COUNTY COUNCIL,"7,427.00",Devt Management -Applications,Landscape Consultancy,21-Mar-22,2122/12,LGE,N,
10047018,ESSEX COUNTY COUNCIL,"3,004.00",Devt Management -Applications,Landscape Consultancy,21-Mar-22,2122/12,LGE,N,
10047095,ESSEX COUNTY COUNCIL,"1,139.00",Conservation,Prof & Consultancy Fees,26-Mar-22,2122/12,LGE,N,
10047097,ESSEX COUNTY COUNCIL,"1,220.00",Pre App Charging,Heritage Consultancy ,26-Mar-22,2122/12,LGE,N,
10047158,ESSEX COUNTY COUNCIL,"6,902.20",Devt Management -Applications,Ecology Consultancy,29-Mar-22,2122/12,LGE,N,
10047159,ESSEX COUNTY COUNCIL,500,Conservation,Prof & Consultancy Fees,29-Mar-22,2122/12,LGE,N,
10047210,ESSEX COUNTY COUNCIL,"5,000.00",Management Team,Subscriptions,30-Mar-22,2122/12,LGE,N,
10046871,IDOX SOFTWARE LTD,950,ICT - CapsUniform,Prof & Consultancy Fees,15-Mar-22,2122/12,SME,Y,50%
10047020,IDOX SOFTWARE LTD,"1,900.00",ICT - CapsUniform,Prof & Consultancy Fees,22-Mar-22,2122/12,SME,Y,50%
10046980,CIPFA BUSINESS LTD,"7,982.50",Financial Servs,Subscriptions,10-Mar-22,2122/12,LGE,Y,50%
10046412,BUILDBASE,282,Assets & Development,Repairs,28-Feb-22,2122/12,LGE,N,
10047214,IPSWICH BOROUGH COUNCIL,"1,303.00",Shared Revenues Partnership,Contributions to other Bodies,30-Mar-22,2122/12,LGE,N,
10046527,SERCO LTD,"15,170.00",Rplcmt Ref Freighters-Jnt Schm,Plant & Vehicle - Purchase,01-Mar-22,2122/12,LGE,N,
20027840,EDF ENERGY,9.74,Headquarters General,Electricity,14-Mar-22,2122/12,LGE,N,
20027840,EDF ENERGY,62.77,Belle Vue House,Electricity,14-Mar-22,2122/12,LGE,N,
20027840,EDF ENERGY,14.8,Hadl Market,Electricity,14-Mar-22,2122/12,LGE,N,
20027840,EDF ENERGY,888.7,HQ Energy,Electricity,14-Mar-22,2122/12,LGE,N,
20027840,EDF ENERGY,6.36,Wenham Depot,Electricity,14-Mar-22,2122/12,LGE,Y,
20027840,EDF ENERGY,"1,078.80",Chilton Depot,Electricity,14-Mar-22,2122/12,LGE,Y,50%
20027840,EDF ENERGY,3.54,Calais St Depot,Electricity,14-Mar-22,2122/12,LGE,N,
20027840,EDF ENERGY,45.3,Old School House,Electricity,14-Mar-22,2122/12,LGE,N,
20027840,EDF ENERGY,"3,597.23",Hadleigh Pool,Electricity,14-Mar-22,2122/12,LGE,N,
20027840,EDF ENERGY,"7,162.97",Kingfisher Leisure Centre,Electricity,14-Mar-22,2122/12,LGE,N,
20027840,EDF ENERGY,78.46,Community Safety-CCTV,Electricity,14-Mar-22,2122/12,LGE,N,
20027840,EDF ENERGY,410.34,Climate Change and Sustainabil,Electricity,14-Mar-22,2122/12,LGE,N,
20027840,EDF ENERGY,248.14,Public Conveniences,Electricity,14-Mar-22,2122/12,LGE,N,
20027840,EDF ENERGY,906.19,C Parks General,Electricity,14-Mar-22,2122/12,LGE,N,
20027840,EDF ENERGY,-376.1,Sewage Treatment Works,Electricity,14-Mar-22,2122/12,LGE,N,
20027840,EDF ENERGY,172.49,SP Comm Alarms (Non-SH),Electricity,14-Mar-22,2122/12,LGE,N,
20027840,EDF ENERGY,"1,757.27",Sheltered Accommodation,Electricity,14-Mar-22,2122/12,LGE,N,
20027840,EDF ENERGY,210.89,Sheltered Accommodation,Electricity,14-Mar-22,2122/12,LGE,N,
20027840,EDF ENERGY,255.66,Sheltered Accommodation,Electricity,14-Mar-22,2122/12,LGE,N,
20027840,EDF ENERGY,326.94,Sheltered Accommodation,Electricity,14-Mar-22,2122/12,LGE,N,
20027840,EDF ENERGY,220.46,Sheltered Accommodation,Electricity,14-Mar-22,2122/12,LGE,N,
20027840,EDF ENERGY,"1,263.19",Sheltered Accommodation,Electricity,14-Mar-22,2122/12,LGE,N,
20027840,EDF ENERGY,"1,326.42",Sheltered Accommodation,Electricity,14-Mar-22,2122/12,LGE,N,
20027840,EDF ENERGY,"1,582.31",Sheltered Accommodation,Electricity,14-Mar-22,2122/12,LGE,N,
20027840,EDF ENERGY,"1,602.02",Sheltered Accommodation,Electricity,14-Mar-22,2122/12,LGE,N,
20027840,EDF ENERGY,135.15,Temporary Accommodation,Electricity,14-Mar-22,2122/12,LGE,N,
20027840,EDF ENERGY,206.79,Temporary Accommodation,Electricity,14-Mar-22,2122/12,LGE,N,
20027840,EDF ENERGY,"4,294.30",Tenancy Services,Electricity,14-Mar-22,2122/12,LGE,N,
10046873,ERNST & YOUNG LLP,"53,360.00",Ext Audit,Audit Fees,14-Mar-22,2122/12,LGE,N,
20027838,GPC BARCLAYS,"7,013.89",Current Assets,Barclaycard Control,16-Mar-22,2122/12,LGE,Y,7%
10046371,STANNAH STAIRLIFTS LTD,"2,921.00",Council House Adaptions,Improvements,27-Feb-22,2122/12,LGE,N,
10046972,STANNAH STAIRLIFTS LTD,"2,595.00",Mand Disabled Facilities Grant,Grants,21-Mar-22,2122/12,LGE,N,
10047071,STANNAH STAIRLIFTS LTD,"2,230.00",Mand Disabled Facilities Grant,Grants,24-Mar-22,2122/12,LGE,N,
20027764,COMPUTERSHARE ,636,Current Assets,ChildCare Vouchers-Control,28-Feb-22,2122/12,LGE,N,
20027843,COMPUTERSHARE ,636,Current Assets,ChildCare Vouchers-Control,24-Mar-22,2122/12,LGE,N,
20027772,1ST BURES SCOUT GROUP,703.18,Bring Sites,Contributions & Donations,02-Mar-22,2122/12,SME,N,
20027769,BENTLEY VILLAGE HALL,305.35,Bring Sites,Contributions & Donations,02-Mar-22,2122/12,SME,N,
10047060,BOXFORD VILLAGE HALL,"1,000.00",Grants & Contrbns,Grants,24-Mar-22,2122/12,SME,N,
20027802,BURES ST MARY PARISH COUNCIL,347.49,Street & Major Road Cleansing,Contributions & Donations,09-Mar-22,2122/12,SME,N,
20027852,CAPEL ST MARY PARISH COUNCIL,575.28,Bring Sites,Contributions & Donations,24-Mar-22,2122/12,SME,N,
20027858,CHELMONDISTON PARISH COUNCIL,618.96,Bring Sites,Contributions & Donations,30-Mar-22,2122/12,SME,N,
20027804,EAST BERGHOLT PARISH COUNCIL,"1,158.30",Street & Major Road Cleansing,Contributions & Donations,09-Mar-22,2122/12,SME,N,
20027835,ELMSETT PRIMARY SCHOOL RECYCLING CENTRE,343.25,Bring Sites,Contributions & Donations,16-Mar-22,2122/12,SME,N,
20027820,GREAT CORNARD PARISH COUNCIL,493.18,Bring Sites,Contributions & Donations,09-Mar-22,2122/12,SME,N,
20027790,GREAT WALDINGFIELD BOWLS & SOCIAL CLUB,341.47,Bring Sites,Contributions & Donations,02-Mar-22,2122/12,SME,N,
10047033,HADLEIGH TOWN COUNCIL,"2,997.50",Headquarters General,Rent Payable,23-Mar-22,2122/12,SME,N,
20027812,HITCHAM VILLAGE HALL,252.91,Bring Sites,Contributions & Donations,09-Mar-22,2122/12,SME,N,
20027805,HOLBROOK PARISH COUNCIL,752.9,Street & Major Road Cleansing,Contributions & Donations,09-Mar-22,2122/12,SME,N,
10046710,LAVENHAM PARISH COUNCIL,"17,892.78",CIL Funded REFCUS,Grants,09-Mar-22,2122/12,SME,N,
10046775,LAVENHAM PARISH COUNCIL,405,Grants & Contrbns,Contributions & Donations,11-Mar-22,2122/12,SME,N,
10046876,LAVENHAM PARISH COUNCIL,"7,744.00",CIL Funded REFCUS,Grants,16-Mar-22,2122/12,SME,N,
10046877,LAVENHAM PARISH COUNCIL,"33,576.56",CIL Funded REFCUS,Grants,16-Mar-22,2122/12,SME,N,
10046913,LAVENHAM PARISH COUNCIL,"17,000.00",CIL Funded REFCUS,Grants,17-Mar-22,2122/12,SME,N,
20027807,LAVENHAM PARISH COUNCIL,"2,432.43",Street & Major Road Cleansing,Contributions & Donations,09-Mar-22,2122/12,SME,N,
20027793,LAWSHALL PARISH COUNCIL,301.2,Bring Sites,Contributions & Donations,02-Mar-22,2122/12,SME,N,
20027778,LEAVENHEATH VILLAGE HALL,399.91,Bring Sites,Contributions & Donations,02-Mar-22,2122/12,SME,N,
10046776,LITTLE WALDINGFIELD PARISH COUNCIL,500,Grants & Contrbns,Contributions & Donations,11-Mar-22,2122/12,SME,N,
10046375,LONG MELFORD PARISH COUNCIL,900,Grants & Contrbns,Contributions & Donations,27-Feb-22,2122/12,SME,N,
20027808,LONG MELFORD PARISH COUNCIL,"1,042.47",Street & Major Road Cleansing,Contributions & Donations,09-Mar-22,2122/12,SME,N,
20027815,LONG MELFORD PARISH COUNCIL,546.96,Bring Sites,Contributions & Donations,09-Mar-22,2122/12,SME,N,
10046809,MONKS ELEIGH PARISH COUNCIL,450,Grants & Contrbns,Contributions & Donations,13-Mar-22,2122/12,SME,N,
20027794,NEWTON PARISH COUNCIL,321.43,Bring Sites,Contributions & Donations,02-Mar-22,2122/12,SME,N,
10047059,PRESTON ST MARY PARISH COUNCIL,800,Grants & Contrbns,Grants,24-Mar-22,2122/12,SME,N,
10046899,SHIMPLING PARISH COUNCIL,"1,106.00",Suffolk Community Restart Fund,Grants,16-Mar-22,2122/12,SME,N,
20027806,STRATFORD ST MARY PARISH COUNCIL,289.58,Street & Major Road Cleansing,Contributions & Donations,09-Mar-22,2122/12,SME,N,
20027781,STUTTON PARISH COUNCIL,284.92,Bring Sites,Contributions & Donations,02-Mar-22,2122/12,SME,N,
20027823,SUDBURY TOWN COUNCIL,994.99,Bring Sites,Contributions & Donations,09-Mar-22,2122/12,SME,N,
10046949,SUFFOLK FAMILY CARERS LTD,"2,258.37",Suffolk Community Restart Fund,Grants,18-Mar-22,2122/12,SME,N,
20027780,TEENAGE CANCER TRUST,295.12,Bring Sites,Contributions & Donations,02-Mar-22,2122/12,LGE,N,
10045745,SUFFOLK COUNTY COUNCIL,"8,087.43",ICT,Computer Equpt Purchases,02-Feb-22,2122/12,LGE,Y,50%
10046101,SUFFOLK COUNTY COUNCIL,775,Land Chgs,Contracted Services,14-Feb-22,2122/12,LGE,N,
10046219,SUFFOLK COUNTY COUNCIL,"7,213.66",Pld Maint/Enhncmts-Corp Bldgs,Improvements,18-Feb-22,2122/12,LGE,Y,50%
10046311,SUFFOLK COUNTY COUNCIL,834,ICT,Desktop Software,24-Feb-22,2122/12,LGE,Y,50%
10046390,SUFFOLK COUNTY COUNCIL,"4,019.00",ICT,Telephone Costs,25-Feb-22,2122/12,LGE,Y,50%
10046391,SUFFOLK COUNTY COUNCIL,832.58,ICT,Telephone Costs,25-Feb-22,2122/12,LGE,Y,50%
10046427,SUFFOLK COUNTY COUNCIL,"6,325.00",Cost of Democracy,Software Licnse (Line of Bus) ,01-Mar-22,2122/12,LGE,Y,50%
10046466,SUFFOLK COUNTY COUNCIL,"13,526.73",Domestic Waste,MRF Disposal,01-Mar-22,2122/12,LGE,N,
10046466,SUFFOLK COUNTY COUNCIL,"6,389.57",Garden Waste,Garden Waste Disposal,01-Mar-22,2122/12,LGE,N,
10046467,SUFFOLK COUNTY COUNCIL,"63,011.71",Trade Waste,Trade Waste Disposal,01-Mar-22,2122/12,LGE,N,
10046468,SUFFOLK COUNTY COUNCIL,"4,480.00",ICT,Photocopying,01-Mar-22,2122/12,LGE,Y,50%
10046550,SUFFOLK COUNTY COUNCIL,"167,892.50",ICT,Major Contracts,04-Mar-22,2122/12,LGE,Y,50%
10046625,SUFFOLK COUNTY COUNCIL,"1,315.00",Land Chgs,Contracted Services,08-Mar-22,2122/12,LGE,N,
10046707,SUFFOLK COUNTY COUNCIL,"2,104.66",ICT,Contracted Services,08-Mar-22,2122/12,LGE,Y,50%
10046716,SUFFOLK COUNTY COUNCIL,"1,967.83",Tenancy Services,Electricity,08-Mar-22,2122/12,LGE,N,
10046889,SUFFOLK COUNTY COUNCIL,"9,517.22",Domestic Waste,MRF Disposal,15-Mar-22,2122/12,LGE,N,
10046889,SUFFOLK COUNTY COUNCIL,"5,023.40",Garden Waste,Garden Waste Disposal,15-Mar-22,2122/12,LGE,N,
10047005,SUFFOLK COUNTY COUNCIL,"10,657.64",Organisational Devt,Contracted Services,21-Mar-22,2122/12,LGE,Y,50%
10047006,SUFFOLK COUNTY COUNCIL,"10,657.64",Organisational Devt,Contracted Services,21-Mar-22,2122/12,LGE,Y,50%
10047007,SUFFOLK COUNTY COUNCIL,"10,657.64",Organisational Devt,Contracted Services,21-Mar-22,2122/12,LGE,Y,50%
10047049,SUFFOLK COUNTY COUNCIL,"6,950.67",Domestic Waste,MRF Disposal,23-Mar-22,2122/12,LGE,N,
10047049,SUFFOLK COUNTY COUNCIL,"5,885.51",Garden Waste,Garden Waste Disposal,23-Mar-22,2122/12,LGE,N,
10047050,SUFFOLK COUNTY COUNCIL,"1,940.95",ICT,Telephone Costs,23-Mar-22,2122/12,LGE,Y,50%
10047117,SUFFOLK COUNTY COUNCIL,397.96,ICT,Desktop Software,25-Mar-22,2122/12,LGE,Y,50%
10047225,SUFFOLK COUNTY COUNCIL,"7,928.00",Organisational Devt,Training,30-Mar-22,2122/12,LGE,Y,51%
10046426,FENN WRIGHT LLP,450,General/Supervision & Mgmt,Prof & Consultancy Fees,01-Mar-22,2122/12,SME,N,
10047041,FENN WRIGHT LLP,400,Home Ownership,Prof & Consultancy Fees,23-Mar-22,2122/12,SME,N,
10047176,FENN WRIGHT LLP,675,General/Supervision & Mgmt,Prof & Consultancy Fees,29-Mar-22,2122/12,SME,N,
10047099,ROYAL MAIL,423.72,Elections,Postage,28-Mar-22,2122/12,LGE,Y,100%
10046212,REED SPECIALIST RECRUITMENT LTD,858.03,Bus Imp (Corp),Agency Staff,11-Feb-22,2122/12,LGE,Y,50%
10046213,REED SPECIALIST RECRUITMENT LTD,823.25,Bus Imp (Corp),Agency Staff,11-Feb-22,2122/12,LGE,Y,50%
10046355,REED SPECIALIST RECRUITMENT LTD,745.88,Financial Servs,Agency Staff,18-Feb-22,2122/12,LGE,Y,50%
10046356,REED SPECIALIST RECRUITMENT LTD,695.7,Bus Imp (Corp),Agency Staff,18-Feb-22,2122/12,LGE,Y,50%
10046357,REED SPECIALIST RECRUITMENT LTD,695.7,Bus Imp (Corp),Agency Staff,18-Feb-22,2122/12,LGE,Y,50%
10046358,REED SPECIALIST RECRUITMENT LTD,707.3,Bus Imp (Corp),Agency Staff,18-Feb-22,2122/12,LGE,Y,50%
10046595,REED SPECIALIST RECRUITMENT LTD,745.88,Financial Servs,Agency Staff,25-Feb-22,2122/12,LGE,Y,50%
10046602,REED SPECIALIST RECRUITMENT LTD,858.03,Bus Imp (Corp),Agency Staff,25-Feb-22,2122/12,LGE,Y,50%
10046603,REED SPECIALIST RECRUITMENT LTD,858.03,Bus Imp (Corp),Agency Staff,25-Feb-22,2122/12,LGE,Y,50%
10046604,REED SPECIALIST RECRUITMENT LTD,695.7,Governance,Agency Staff,25-Feb-22,2122/12,LGE,Y,50%
10046800,REED SPECIALIST RECRUITMENT LTD,676.26,Financial Servs,Agency Staff,11-Mar-22,2122/12,LGE,Y,50%
10046801,REED SPECIALIST RECRUITMENT LTD,846.44,Bus Imp (Corp),Agency Staff,11-Mar-22,2122/12,LGE,Y,50%
10046802,REED SPECIALIST RECRUITMENT LTD,858.03,Bus Imp (Corp),Agency Staff,11-Mar-22,2122/12,LGE,Y,50%
10046803,REED SPECIALIST RECRUITMENT LTD,858.03,Bus Imp (Corp),Agency Staff,11-Mar-22,2122/12,LGE,Y,50%
10046954,REED SPECIALIST RECRUITMENT LTD,735.93,Financial Servs,Agency Staff,18-Mar-22,2122/12,LGE,Y,50%
10046955,REED SPECIALIST RECRUITMENT LTD,869.63,Bus Imp (Corp),Agency Staff,18-Mar-22,2122/12,LGE,Y,50%
10047094,REED SPECIALIST RECRUITMENT LTD,725.99,Financial Servs,Agency Staff,25-Mar-22,2122/12,LGE,Y,50%
10046360,TELEFONICA UK LIMITED - O2,358.97,ICT,Telephone Costs,27-Feb-22,2122/12,LGE,Y,50%
10047108,TELEFONICA UK LIMITED - O2,358.35,ICT,Telephone Costs,27-Mar-22,2122/12,LGE,Y,50%
10046328,LEX AUTOLEASE,297.8,Building Services,Lease Cars - Payment,18-Feb-22,2122/12,SME,Y,50%
10046818,LEX AUTOLEASE,995.04,Building Services,Lease Cars - Payment,20-Feb-22,2122/12,SME,Y,50%
20027853,GAZPROM ENERGY,262.57,Belle Vue House,Gas,16-Mar-22,2122/12,SME,N,
20027853,GAZPROM ENERGY,61.91,HQ Energy,Gas,16-Mar-22,2122/12,SME,N,
20027853,GAZPROM ENERGY,"1,049.08",Sheltered Accommodation,Gas,16-Mar-22,2122/12,SME,N,
20027853,GAZPROM ENERGY,300.96,Sheltered Accommodation,Gas,16-Mar-22,2122/12,SME,N,
20027853,GAZPROM ENERGY,53.02,Sheltered Accommodation,Gas,16-Mar-22,2122/12,SME,N,
20027853,GAZPROM ENERGY,534.63,Sheltered Accommodation,Gas,16-Mar-22,2122/12,SME,N,
20027853,GAZPROM ENERGY,823.75,Sheltered Accommodation,Gas,16-Mar-22,2122/12,SME,N,
20027853,GAZPROM ENERGY,769.28,Sheltered Accommodation,Gas,16-Mar-22,2122/12,SME,N,
20027853,GAZPROM ENERGY,929.15,Sheltered Accommodation,Gas,16-Mar-22,2122/12,SME,N,
20027853,GAZPROM ENERGY,261.45,Temporary Accommodation,Gas,16-Mar-22,2122/12,SME,N,
10046546,ERNEST DOE & SONS LTD,"1,638.85",Public Realm TransitionProject,"Equipment, Tools & Materials",02-Mar-22,2122/12,LGE,N,
10046632,ERNEST DOE & SONS LTD,"1,440.00",Public Realm TransitionProject,"Equipment, Tools & Materials",07-Mar-22,2122/12,LGE,N,
10046633,ERNEST DOE & SONS LTD,"6,902.96",Public Realm TransitionProject,"Equipment, Tools & Materials",07-Mar-22,2122/12,LGE,N,
10046966,ERNEST DOE & SONS LTD,"10,540.00",Vehicle and Plant Renewals,"Equipment, Tools & Materials",14-Mar-22,2122/12,LGE,N,
10047134,PATHFINDER DEVELOPMENT CONSULTANTS LTD,"1,948.43","Norman Way, Lavenham S106",Prof & Consultancy Fees,18-Mar-22,2122/12,SME,N,
10045887,WHYBROW PROPERTY SOLUTIONS LTD,"7,000.00",Building Services,Repairs,07-Feb-22,2122/12,SME,N,
10045888,WHYBROW PROPERTY SOLUTIONS LTD,"2,988.00",Council House Adaptions,Improvements,07-Feb-22,2122/12,SME,N,
10046116,WHYBROW PROPERTY SOLUTIONS LTD,"4,341.81",Building Services,Repairs,14-Feb-22,2122/12,SME,N,
10046347,WHYBROW PROPERTY SOLUTIONS LTD,"10,000.00",Kitchens/Bathrooms,Improvements,22-Feb-22,2122/12,SME,N,
10046348,WHYBROW PROPERTY SOLUTIONS LTD,"6,500.00",Kitchens/Bathrooms,Improvements,22-Feb-22,2122/12,SME,N,
10046349,WHYBROW PROPERTY SOLUTIONS LTD,"5,624.20",Kitchens/Bathrooms,Improvements,22-Feb-22,2122/12,SME,N,
10046392,WHYBROW PROPERTY SOLUTIONS LTD,950,Building Services,Repairs,28-Feb-22,2122/12,SME,N,
10046393,WHYBROW PROPERTY SOLUTIONS LTD,"6,277.29",Building Services,Repairs,28-Feb-22,2122/12,SME,N,
10046394,WHYBROW PROPERTY SOLUTIONS LTD,"3,330.00",Council House Adaptions,Improvements,28-Feb-22,2122/12,SME,N,
10046396,WHYBROW PROPERTY SOLUTIONS LTD,"4,000.00",Building Services,Repairs,28-Feb-22,2122/12,SME,N,
10046661,WHYBROW PROPERTY SOLUTIONS LTD,"7,517.87",Building Services,Repairs,07-Mar-22,2122/12,SME,N,
10046755,WHYBROW PROPERTY SOLUTIONS LTD,"7,282.00",Mand Disabled Facilities Grant,Grants,10-Mar-22,2122/12,SME,N,
10046757,WHYBROW PROPERTY SOLUTIONS LTD,580,Kitchens/Bathrooms,Improvements,07-Mar-22,2122/12,SME,N,
10046793,WHYBROW PROPERTY SOLUTIONS LTD,"11,244.19",Building Services,Repairs,11-Mar-22,2122/12,SME,N,
10046926,WHYBROW PROPERTY SOLUTIONS LTD,220.84,Building Services,Repairs,14-Mar-22,2122/12,SME,N,
10046926,WHYBROW PROPERTY SOLUTIONS LTD,134,Building Services,Repairs,14-Mar-22,2122/12,SME,N,
10046926,WHYBROW PROPERTY SOLUTIONS LTD,134,Building Services,Repairs,14-Mar-22,2122/12,SME,N,
10046926,WHYBROW PROPERTY SOLUTIONS LTD,475,Building Services,Repairs,14-Mar-22,2122/12,SME,N,
10046926,WHYBROW PROPERTY SOLUTIONS LTD,134,Building Services,Repairs,14-Mar-22,2122/12,SME,N,
10046926,WHYBROW PROPERTY SOLUTIONS LTD,174,Building Services,Repairs,14-Mar-22,2122/12,SME,N,
10046926,WHYBROW PROPERTY SOLUTIONS LTD,655,Building Services,Repairs,14-Mar-22,2122/12,SME,N,
10046926,WHYBROW PROPERTY SOLUTIONS LTD,300,Building Services,Repairs,14-Mar-22,2122/12,SME,N,
10046926,WHYBROW PROPERTY SOLUTIONS LTD,134,Building Services,Repairs,14-Mar-22,2122/12,SME,N,
10046926,WHYBROW PROPERTY SOLUTIONS LTD,134,Building Services,Repairs,14-Mar-22,2122/12,SME,N,
10046926,WHYBROW PROPERTY SOLUTIONS LTD,255.32,Building Services,Repairs,14-Mar-22,2122/12,SME,N,
10046926,WHYBROW PROPERTY SOLUTIONS LTD,175,Building Services,Repairs,14-Mar-22,2122/12,SME,N,
10046926,WHYBROW PROPERTY SOLUTIONS LTD,191,Building Services,Repairs,14-Mar-22,2122/12,SME,N,
10046926,WHYBROW PROPERTY SOLUTIONS LTD,221.53,Building Services,Repairs,14-Mar-22,2122/12,SME,N,
10046926,WHYBROW PROPERTY SOLUTIONS LTD,321.75,Building Services,Repairs,14-Mar-22,2122/12,SME,N,
10046926,WHYBROW PROPERTY SOLUTIONS LTD,424,Building Services,Repairs,14-Mar-22,2122/12,SME,N,
10046926,WHYBROW PROPERTY SOLUTIONS LTD,"4,013.00",Building Services,Repairs,14-Mar-22,2122/12,SME,N,
10047008,WHYBROW PROPERTY SOLUTIONS LTD,"5,249.67",Building Services,Repairs,21-Mar-22,2122/12,SME,N,
10047017,WHYBROW PROPERTY SOLUTIONS LTD,"2,207.12",Building Services,Repairs,21-Mar-22,2122/12,SME,N,
10045514,L A C CLEANING CONTRACTORS LIMITED,633.33,Sheltered Accommodation,General Cleaning,24-Jan-22,2122/12,SME,N,
10046206,L A C CLEANING CONTRACTORS LIMITED,668,Wenham Depot TDP,General Cleaning,21-Feb-22,2122/12,SME,Y,50%
10046411,L A C CLEANING CONTRACTORS LIMITED,"1,246.12",Building Services,Repairs,28-Feb-22,2122/12,SME,N,
10046493,L A C CLEANING CONTRACTORS LIMITED,"1,110.00",Building Services,Repairs,02-Mar-22,2122/12,SME,N,
10046698,L A C CLEANING CONTRACTORS LIMITED,335.5,Neighbourhood Services,Neighbourhood Improvement Proj,08-Mar-22,2122/12,SME,N,
10046699,L A C CLEANING CONTRACTORS LIMITED,565.5,Neighbourhood Services,Neighbourhood Improvement Proj,08-Mar-22,2122/12,SME,N,
10047047,L A C CLEANING CONTRACTORS LIMITED,425.5,Building Services,Repairs,24-Mar-22,2122/12,SME,N,
10046601,BRITISH GAS (GAS),594.79,Voids Maintenance,Electricity,25-Nov-20,2122/12,LGE,N,
10046778,ARMSTRONG YORK ASBESTOS ENVIRONMENTAL,"6,195.02",Asbestos Survey & Reinspection,Prof & Consultancy Fees,28-Feb-22,2122/12,SME,N,
10047201,ARMSTRONG YORK ASBESTOS ENVIRONMENTAL,529.93,Asbestos Survey & Reinspection,Prof & Consultancy Fees,28-Feb-22,2122/12,SME,N,
20027850,LONG MELFORD ROYAL BRITISH LEGION,"3,077.74",Bring Sites,Contributions & Donations,24-Mar-22,2122/12,LGE,N,
10046413,TRADITION (UK) LTD,"3,876.71",Treasury Management,Prof & Consultancy Fees,28-Feb-22,2122/12,LGE,N,
20027816,ST HELENA HOSPICE,276.25,Bring Sites,Contributions & Donations,09-Mar-22,2122/12,SME,N,
10046562,WEST SUFFOLK COLLEGE,"3,000.00",Organisational Devt,Post-Entry Training,04-Mar-22,2122/12,LGE,Y,50%
20027784,SUFFOLK COMMUNITY FOUNDATION,329.8,Bring Sites,Contributions & Donations,02-Mar-22,2122/12,SME,N,
20027829,SHOTLEY C P SCHOOL,463.08,Bring Sites,Contributions & Donations,09-Mar-22,2122/12,SME,N,
10047052,ESRI UK LTD,"3,819.00",ICT,Software Licnse (Line of Bus) ,24-Mar-22,2122/12,LGE,Y,50%
10047035,ORSIS UK LTD,"6,384.00",PV Panels,Contracted Services,23-Mar-22,2122/12,SME,N,
10046372,NEDGING WITH NAUGHTON VILLAGE HALL & COM,"2,335.40",Comm Devt Grants,Grants,27-Feb-22,2122/12,SME,N,
10046807,NEDGING WITH NAUGHTON VILLAGE HALL & COM,"1,000.00",Grants & Contrbns,Contributions & Donations,13-Mar-22,2122/12,SME,N,
10046896,NEDGING WITH NAUGHTON VILLAGE HALL & COM,"2,124.62",Comm Devt Grants,Grants,16-Mar-22,2122/12,SME,N,
10047125,GAINSBOROUGH HOUSE SOCIETY,"200,746.00",CIL Funded REFCUS,Grants,25-Mar-22,2122/12,SME,N,
10046900,LAWSHALL VILLAGE HALL MANAGEMENT COMMITT,296,Suffolk Community Restart Fund,Grants,16-Mar-22,2122/12,SME,N,
10047053,DALROD (UK) LTD,"3,954.00",Creeting Rd Depot,Grounds & Site Maintenance,24-Mar-22,2122/12,SME,N,
10047054,DALROD (UK) LTD,"1,700.00",Creeting Rd Depot,Grounds & Site Maintenance,24-Mar-22,2122/12,SME,N,
20027839,NPOWER LTD,360,Climate Change and Sustainabil,Electricity,17-Mar-22,2122/12,LGE,N,
10046386,OPUS PEOPLE SOLUTIONS LTD,974.8,Current Liabilities,Agency Staff Holding A/C,24-Feb-22,2122/12,SME,N,
10046646,OPUS PEOPLE SOLUTIONS LTD,974.81,Current Liabilities,Agency Staff Holding A/C,03-Mar-22,2122/12,SME,N,
10046883,OPUS PEOPLE SOLUTIONS LTD,734.68,Current Liabilities,Agency Staff Holding A/C,10-Mar-22,2122/12,SME,N,
10046932,OPUS PEOPLE SOLUTIONS LTD,678.11,Current Liabilities,Agency Staff Holding A/C,17-Mar-22,2122/12,SME,N,
10047156,OPUS PEOPLE SOLUTIONS LTD,678.11,Current Liabilities,Agency Staff Holding A/C,24-Mar-22,2122/12,SME,N,
10047219,OPUS PEOPLE SOLUTIONS LTD,678.11,Current Liabilities,Agency Staff Holding A/C,31-Mar-22,2122/12,SME,N,
10046291,ROSE BUILDERS LTD,"4,000.00",Hadleigh Pool,Repairs,23-Feb-22,2122/12,SME,N,
10046429,ROSE BUILDERS LTD,"33,743.43",Structural Works,Major Contracts,23-Feb-22,2122/12,SME,N,
10045676,ECOSYSTEMS TREE & GROUNDS CARE,275,Neighbourhood Services,Grounds & Site Maintenance,30-Jan-21,2122/12,SME,N,
10046672,ECOSYSTEMS TREE & GROUNDS CARE,635,Tenancy Services,Tree felling/maintenance,17-Feb-22,2122/12,SME,N,
10046673,ECOSYSTEMS TREE & GROUNDS CARE,"2,785.00",Amenity Areas,Tree felling/maintenance,08-Mar-22,2122/12,SME,N,
10046674,ECOSYSTEMS TREE & GROUNDS CARE,630,Amenity Areas,Tree felling/maintenance,08-Mar-22,2122/12,SME,N,
10046675,ECOSYSTEMS TREE & GROUNDS CARE,835,Public Tree Programme,Tree felling/maintenance,08-Mar-22,2122/12,SME,N,
10046676,ECOSYSTEMS TREE & GROUNDS CARE,835,Public Tree Programme,Tree felling/maintenance,09-Mar-22,2122/12,SME,N,
10046681,ECOSYSTEMS TREE & GROUNDS CARE,675,Amenity Areas,Tree felling/maintenance,08-Mar-22,2122/12,SME,N,
10046682,ECOSYSTEMS TREE & GROUNDS CARE,875,Public Tree Programme,Tree felling/maintenance,08-Mar-22,2122/12,SME,N,
10046683,ECOSYSTEMS TREE & GROUNDS CARE,350,Public Tree Programme,Tree felling/maintenance,08-Mar-22,2122/12,SME,N,
10046686,ECOSYSTEMS TREE & GROUNDS CARE,425,Amenity Areas,Tree felling/maintenance,08-Mar-22,2122/12,SME,N,
10046689,ECOSYSTEMS TREE & GROUNDS CARE,425,Public Tree Programme,Tree felling/maintenance,08-Mar-22,2122/12,SME,N,
10046835,ECOSYSTEMS TREE & GROUNDS CARE,755,Amenity Areas,Tree felling/maintenance,13-Mar-22,2122/12,SME,N,
10046836,ECOSYSTEMS TREE & GROUNDS CARE,535,Amenity Areas,Tree felling/maintenance,13-Mar-22,2122/12,SME,N,
10046867,ECOSYSTEMS TREE & GROUNDS CARE,"1,600.00",Public Tree Programme,Tree felling/maintenance,14-Mar-22,2122/12,SME,N,
10047205,ECOSYSTEMS TREE & GROUNDS CARE,"4,500.00",Public Tree Programme,Tree felling/maintenance,29-Mar-22,2122/12,SME,N,
10047206,ECOSYSTEMS TREE & GROUNDS CARE,915,Public Tree Programme,Tree felling/maintenance,30-Mar-22,2122/12,SME,N,
10047207,ECOSYSTEMS TREE & GROUNDS CARE,"1,450.00",Tenancy Services,Tree felling/maintenance,30-Mar-22,2122/12,SME,N,
10047172,DOTTED EYES LTD,"3,990.00",ICT,Software Licnse (Line of Bus) ,29-Mar-22,2122/12,SME,Y,50%
10046307,VERTAS GROUP LTD,"4,296.92",Central Postal Serv,Postage,24-Feb-22,2122/12,SME,Y,50%
10046461,VERTAS GROUP LTD,"11,404.80",Unapportionable Central OHs,Security Systems,31-Jan-22,2122/12,SME,N,
10046568,VERTAS GROUP LTD,"9,676.80",Unapportionable Central OHs,Security Systems,28-Feb-22,2122/12,SME,N,
10046792,VERTAS GROUP LTD,340,General/Supervision & Mgmt,"Equipment, Tools & Materials",11-Mar-22,2122/12,SME,Y,50%
10046036,COLLINS SKIP HIRE,"1,665.00",Building Services,Waste Disposal,14-Feb-22,2122/12,SME,Y,50%
10046216,COLLINS SKIP HIRE,275,Building Services,Waste Disposal,21-Feb-22,2122/12,SME,Y,50%
10046415,COLLINS SKIP HIRE,"1,375.00",Building Services,Waste Disposal,28-Feb-22,2122/12,SME,Y,50%
10046660,COLLINS SKIP HIRE,825,Building Services,Waste Disposal,08-Mar-22,2122/12,SME,Y,50%
10046844,COLLINS SKIP HIRE,550,Building Services,Waste Disposal,14-Mar-22,2122/12,SME,Y,50%
10046975,COLLINS SKIP HIRE,550,Building Services,Waste Disposal,21-Mar-22,2122/12,SME,Y,50%
10047121,COLLINS SKIP HIRE,385,Tenancy Services,Removal Expenses,28-Mar-22,2122/12,SME,N,
10047227,POSTURITE LTD,"3,652.29",Health & Safety,"Equipment, Tools & Materials",31-Mar-22,2122/12,SME,Y,50%
10047204,4PRINCIPLES CONSTRUCTION LTD,"6,834.51",Mand Disabled Facilities Grant,Grants,30-Mar-22,2122/12,SME,N,
10046697,MATT ALLMAN LTD T/A MOVEITCLEARITFINDIT,458.33,Tenancy Services,Contracted Services,09-Mar-22,2122/12,SME,N,
10046381,FORESOLUTIONS LTD,770,Street & Major Road Cleansing,Plant & Vehicle - Other costs,24-Feb-22,2122/12,SME,N,
10046555,PENNA PLC,"1,154.12",Food & Safety (General),Agency Staff,28-Feb-22,2122/12,SME,Y,50%
10046555,PENNA PLC,"1,154.13",Animal Welfare Licensing,Agency Staff,28-Feb-22,2122/12,SME,Y,50%
10046556,PENNA PLC,"1,208.32",Food & Safety (General),Agency Staff,28-Feb-22,2122/12,SME,Y,50%
10046556,PENNA PLC,"1,208.34",Animal Welfare Licensing,Agency Staff,28-Feb-22,2122/12,SME,Y,50%
10046506,"DUNCAN, CAMERON AND HUTCHINSON LTD","4,875.00","11-12 Ipswich, Brantham",Major Contracts,28-Feb-22,2122/12,SME,N,
10046902,HADLEIGH CRICKET CLUB,604.4,Suffolk Community Restart Fund,Grants,16-Mar-22,2122/12,SME,N,
10046903,LOFTY HEIGHTS LTD,500,Suffolk Community Restart Fund,Grants,16-Mar-22,2122/12,SME,N,
10046860,SUFFOLK MARKET EVENTS,500,Economy & Business,Prof & Consultancy Fees,20-Feb-22,2122/12,SME,N,
10047129,SUFFOLK MARKET EVENTS,500,Economy & Business,Prof & Consultancy Fees,20-Mar-22,2122/12,SME,N,
10045856,ADVANCE SUPPLIES,17.03,Open Spaces,Cleaning Materials,03-Feb-22,2122/12,SME,N,
10045856,ADVANCE SUPPLIES,9.07,Open Spaces,Cleaning Materials,03-Feb-22,2122/12,SME,N,
10045856,ADVANCE SUPPLIES,6.92,Open Spaces,Cleaning Materials,03-Feb-22,2122/12,SME,N,
10045856,ADVANCE SUPPLIES,44.29,Open Spaces,Cleaning Materials,03-Feb-22,2122/12,SME,N,
10045856,ADVANCE SUPPLIES,37.05,Open Spaces,Cleaning Materials,03-Feb-22,2122/12,SME,N,
10045856,ADVANCE SUPPLIES,119.55,Open Spaces,Cleaning Materials,03-Feb-22,2122/12,SME,N,
10045856,ADVANCE SUPPLIES,50.57,Open Spaces,Cleaning Materials,03-Feb-22,2122/12,SME,N,
10045856,ADVANCE SUPPLIES,8.69,Open Spaces,Cleaning Materials,03-Feb-22,2122/12,SME,N,
10046383,PRESTON ST MARY VILLAGE HALL COMMITTEE,"4,423.27",Comm Devt Grants,Grants,28-Feb-22,2122/12,SME,N,
10046409,HAYS SPECIALIST RECRUITMENT LTD,400,Financial Servs,Agency Staff,28-Feb-22,2122/12,LGE,Y,50%
10046409,HAYS SPECIALIST RECRUITMENT LTD,600,HRA Accountancy,Agency Staff,28-Feb-22,2122/12,LGE,Y,50%
10046410,HAYS SPECIALIST RECRUITMENT LTD,800,Financial Servs,Agency Staff,28-Feb-22,2122/12,LGE,Y,50%
10046410,HAYS SPECIALIST RECRUITMENT LTD,"1,200.00",HRA Accountancy,Agency Staff,28-Feb-22,2122/12,LGE,Y,50%
10046605,HAYS SPECIALIST RECRUITMENT LTD,"1,890.00",Financial Servs,Agency Staff,04-Mar-22,2122/12,LGE,Y,50%
10046714,HAYS SPECIALIST RECRUITMENT LTD,"1,512.00",Financial Servs,Agency Staff,09-Mar-22,2122/12,LGE,Y,50%
10046906,HAYS SPECIALIST RECRUITMENT LTD,"1,890.00",Financial Servs,Agency Staff,17-Mar-22,2122/12,LGE,Y,50%
10047042,HAYS SPECIALIST RECRUITMENT LTD,300,Financial Servs,Agency Staff,23-Mar-22,2122/12,LGE,Y,50%
10047042,HAYS SPECIALIST RECRUITMENT LTD,450,HRA Accountancy,Agency Staff,23-Mar-22,2122/12,LGE,Y,50%
10047044,HAYS SPECIALIST RECRUITMENT LTD,300,Financial Servs,Agency Staff,23-Mar-22,2122/12,LGE,Y,50%
10047044,HAYS SPECIALIST RECRUITMENT LTD,450,HRA Accountancy,Agency Staff,23-Mar-22,2122/12,LGE,Y,50%
10047045,HAYS SPECIALIST RECRUITMENT LTD,200,Financial Servs,Agency Staff,23-Mar-22,2122/12,LGE,Y,50%
10047045,HAYS SPECIALIST RECRUITMENT LTD,300,HRA Accountancy,Agency Staff,23-Mar-22,2122/12,LGE,Y,50%
10047093,HAYS SPECIALIST RECRUITMENT LTD,"1,890.00",Financial Servs,Agency Staff,25-Mar-22,2122/12,LGE,Y,50%
10046525,RICHARD UTTING ASSOCIATES LLP,"1,889.18",Waldingfield Rd S106 Andersons,Prof & Consultancy Fees,28-Feb-22,2122/12,SME,N,
10047079,RICHARD UTTING ASSOCIATES LLP,"2,890.00",Bourne Hill Wherstead S106 acq,Prof & Consultancy Fees,13-Mar-22,2122/12,SME,N,
10046446,PUBLIC SEWER SERVICES,408.24,Building Services,Repairs,24-Feb-22,2122/12,SME,N,
10046650,PUBLIC SEWER SERVICES,"2,000.00",Assets & Development,Repairs,28-Feb-22,2122/12,SME,N,
10046370,PRIVATE LANDLORD,650,Guaranteed Rent Scheme,Rent Payable,28-Feb-22,2122/12,SME,N,
10046246,PLACE SERVICES,"5,425.00",Devt Policy & Local Plans,Prof & Consultancy Fees,21-Feb-22,2122/12,SME,Y,50%
10046794,PLACE SERVICES,840,Nghbrhd Plan Designations,Prof & Consultancy Fees,11-Mar-22,2122/12,SME,N,
10046795,PLACE SERVICES,840,Nghbrhd Plan Designations,Prof & Consultancy Fees,11-Mar-22,2122/12,SME,N,
10046796,PLACE SERVICES,840,Nghbrhd Plan Designations,Prof & Consultancy Fees,11-Mar-22,2122/12,SME,N,
10046797,PLACE SERVICES,840,Nghbrhd Plan Designations,Prof & Consultancy Fees,11-Mar-22,2122/12,SME,N,
10046798,PLACE SERVICES,840,Nghbrhd Plan Designations,Prof & Consultancy Fees,11-Mar-22,2122/12,SME,N,
10046799,PLACE SERVICES,840,Nghbrhd Plan Designations,Prof & Consultancy Fees,11-Mar-22,2122/12,SME,N,
10047031,PLACE SERVICES,840,Nghbrhd Plan Designations,Prof & Consultancy Fees,22-Mar-22,2122/12,SME,N,
10046472,THE STOWMARKET GLASS COMPANY LTD,943.95,Building Services,Repairs,23-Feb-22,2122/12,SME,N,
10046476,THE STOWMARKET GLASS COMPANY LTD,771.4,Building Services,Repairs,02-Feb-22,2122/12,SME,N,
10046482,THE STOWMARKET GLASS COMPANY LTD,254.5,Building Services,Repairs,10-Feb-22,2122/12,SME,N,
10046346,RESTORE DATASHRED LIMITED,"1,367.81",Blue Flame Hadleigh TDP,Contracted Services,16-Feb-22,2122/12,SME,Y,50%
10046915,ASPECT CONTRACTS LTD,"3,684.00",Asbestos,Improvements,17-Mar-22,2122/12,LGE,N,
10047064,SUDBURY RUGBY UNION FOOTBALL CLUB,"2,500.00",Suffolk Community Restart Fund,Grants,24-Mar-22,2122/12,SME,N,
20027799,RIX PETROLEUM (EAST ANGLIA) LTD,341.82,Wenham Depot,Heating Oil,02-Mar-22,2122/12,SME,Y,
20027799,RIX PETROLEUM (EAST ANGLIA) LTD,"2,329.14",Tenancy Services,Heating Oil,02-Mar-22,2122/12,SME,N,
10047009,NEIL ANDREW OFFICE SOLUTIONS LTD,676,Public Realm TransitionProject,"Equipment, Tools & Materials",04-Mar-22,2122/12,SME,N,
10046639,KNOWLES ASSOCIATES TFM LTD,660,Public Realm TransitionProject,"Equipment, Tools & Materials",03-Mar-22,2122/12,SME,N,
10046640,KNOWLES ASSOCIATES TFM LTD,660,Public Realm TransitionProject,"Equipment, Tools & Materials",03-Mar-22,2122/12,SME,N,
10046918,KNOWLES ASSOCIATES TFM LTD,"7,904.00",Building Services,Vehicle Hire,09-Mar-22,2122/12,SME,Y,50%
10046502,NORTHUMBRIAN WATER LTD,34.15,Sheltered Accommodation,Legionella Testing,02-Mar-22,2122/12,LGE,N,
10046502,NORTHUMBRIAN WATER LTD,34.15,Public Conveniences,Legionella Testing,02-Mar-22,2122/12,LGE,N,
10046502,NORTHUMBRIAN WATER LTD,28.9,Temporary Accommodation,Legionella Testing,02-Mar-22,2122/12,LGE,N,
10046502,NORTHUMBRIAN WATER LTD,34.15,Temporary Accommodation,Legionella Testing,02-Mar-22,2122/12,LGE,N,
10046502,NORTHUMBRIAN WATER LTD,37.83,Sheltered Accommodation,Legionella Testing,02-Mar-22,2122/12,LGE,N,
10046502,NORTHUMBRIAN WATER LTD,21.02,Public Conveniences,Legionella Testing,02-Mar-22,2122/12,LGE,N,
10046502,NORTHUMBRIAN WATER LTD,63.05,Chilton Depot,Legionella Testing,02-Mar-22,2122/12,LGE,Y,50%
10046502,NORTHUMBRIAN WATER LTD,21.02,Public Conveniences,Legionella Testing,02-Mar-22,2122/12,LGE,N,
10046502,NORTHUMBRIAN WATER LTD,28.9,Sheltered Accommodation,Legionella Testing,02-Mar-22,2122/12,LGE,N,
10046502,NORTHUMBRIAN WATER LTD,21.02,Public Conveniences,Legionella Testing,02-Mar-22,2122/12,LGE,N,
10046502,NORTHUMBRIAN WATER LTD,21.02,Public Conveniences,Legionella Testing,02-Mar-22,2122/12,LGE,N,
10046502,NORTHUMBRIAN WATER LTD,21.02,Public Conveniences,Legionella Testing,02-Mar-22,2122/12,LGE,N,
10046502,NORTHUMBRIAN WATER LTD,21.02,Public Conveniences,Legionella Testing,02-Mar-22,2122/12,LGE,N,
10046502,NORTHUMBRIAN WATER LTD,28.9,Old School House,Legionella Testing,02-Mar-22,2122/12,LGE,N,
10046502,NORTHUMBRIAN WATER LTD,34.15,Sheltered Accommodation,Legionella Testing,02-Mar-22,2122/12,LGE,N,
10046502,NORTHUMBRIAN WATER LTD,34.15,HQ Energy,Legionella Testing,02-Mar-22,2122/12,LGE,N,
10046502,NORTHUMBRIAN WATER LTD,34.15,Sheltered Accommodation,Legionella Testing,02-Mar-22,2122/12,LGE,N,
10046502,NORTHUMBRIAN WATER LTD,34.15,Sheltered Accommodation,Legionella Testing,02-Mar-22,2122/12,LGE,N,
10046502,NORTHUMBRIAN WATER LTD,28.9,Sheltered Accommodation,Legionella Testing,02-Mar-22,2122/12,LGE,N,
10046502,NORTHUMBRIAN WATER LTD,34.15,Sheltered Accommodation,Legionella Testing,02-Mar-22,2122/12,LGE,N,
10046502,NORTHUMBRIAN WATER LTD,21.02,Public Conveniences,Legionella Testing,02-Mar-22,2122/12,LGE,N,
10046502,NORTHUMBRIAN WATER LTD,28.9,Responsive maintenance,Legionella Testing,02-Mar-22,2122/12,LGE,N,
10046502,NORTHUMBRIAN WATER LTD,21.02,Public Conveniences,Legionella Testing,02-Mar-22,2122/12,LGE,N,
10046502,NORTHUMBRIAN WATER LTD,18.9,Wenham Depot,Legionella Testing,02-Mar-22,2122/12,LGE,Y,50%
10047135,NORTHUMBRIAN WATER LTD,34.15,Sheltered Accommodation,Legionella Testing,28-Mar-22,2122/12,LGE,N,
10047135,NORTHUMBRIAN WATER LTD,34.15,Public Conveniences,Legionella Testing,28-Mar-22,2122/12,LGE,N,
10047135,NORTHUMBRIAN WATER LTD,28.9,Temporary Accommodation,Legionella Testing,28-Mar-22,2122/12,LGE,N,
10047135,NORTHUMBRIAN WATER LTD,34.15,Temporary Accommodation,Legionella Testing,28-Mar-22,2122/12,LGE,N,
10047135,NORTHUMBRIAN WATER LTD,37.83,Sheltered Accommodation,Legionella Testing,28-Mar-22,2122/12,LGE,N,
10047135,NORTHUMBRIAN WATER LTD,21.02,Public Conveniences,Legionella Testing,28-Mar-22,2122/12,LGE,N,
10047135,NORTHUMBRIAN WATER LTD,53.05,Chilton Depot,Legionella Testing,28-Mar-22,2122/12,LGE,Y,50%
10047135,NORTHUMBRIAN WATER LTD,21.02,Public Conveniences,Legionella Testing,28-Mar-22,2122/12,LGE,N,
10047135,NORTHUMBRIAN WATER LTD,28.9,Sheltered Accommodation,Legionella Testing,28-Mar-22,2122/12,LGE,N,
10047135,NORTHUMBRIAN WATER LTD,21.02,Public Conveniences,Legionella Testing,28-Mar-22,2122/12,LGE,N,
10047135,NORTHUMBRIAN WATER LTD,21.02,Public Conveniences,Legionella Testing,28-Mar-22,2122/12,LGE,N,
10047135,NORTHUMBRIAN WATER LTD,21.02,Public Conveniences,Legionella Testing,28-Mar-22,2122/12,LGE,N,
10047135,NORTHUMBRIAN WATER LTD,21.02,Public Conveniences,Legionella Testing,28-Mar-22,2122/12,LGE,N,
10047135,NORTHUMBRIAN WATER LTD,28.9,Old School House,Legionella Testing,28-Mar-22,2122/12,LGE,N,
10047135,NORTHUMBRIAN WATER LTD,34.15,Sheltered Accommodation,Legionella Testing,28-Mar-22,2122/12,LGE,N,
10047135,NORTHUMBRIAN WATER LTD,34.15,HQ Energy,Legionella Testing,28-Mar-22,2122/12,LGE,N,
10047135,NORTHUMBRIAN WATER LTD,34.15,Sheltered Accommodation,Legionella Testing,28-Mar-22,2122/12,LGE,N,
10047135,NORTHUMBRIAN WATER LTD,34.15,Sheltered Accommodation,Legionella Testing,28-Mar-22,2122/12,LGE,N,
10047135,NORTHUMBRIAN WATER LTD,28.9,Sheltered Accommodation,Legionella Testing,28-Mar-22,2122/12,LGE,N,
10047135,NORTHUMBRIAN WATER LTD,34.15,Sheltered Accommodation,Legionella Testing,28-Mar-22,2122/12,LGE,N,
10047135,NORTHUMBRIAN WATER LTD,21.02,Public Conveniences,Legionella Testing,28-Mar-22,2122/12,LGE,N,
10047135,NORTHUMBRIAN WATER LTD,28.9,Responsive maintenance,Legionella Testing,28-Mar-22,2122/12,LGE,N,
10047135,NORTHUMBRIAN WATER LTD,21.02,Public Conveniences,Legionella Testing,28-Mar-22,2122/12,LGE,N,
10047135,NORTHUMBRIAN WATER LTD,18.9,Wenham Depot,Legionella Testing,28-Mar-22,2122/12,LGE,Y,50%
10045954,STORETEC SERVICES LTD,635.11,ICT,"Equipment, Tools & Materials",31-Jan-22,2122/12,SME,Y,50%
10046638,STORETEC SERVICES LTD,741.97,ICT,"Equipment, Tools & Materials",28-Feb-22,2122/12,SME,Y,50%
10047003,SOLO HOUSING (EAST ANGLIA) LTD,"4,015.00",Homeless Prevention Fund,Misc Supplies & Services Costs,22-Mar-22,2122/12,SME,N,
10047151,GIPPING OCCUPATIONAL HEALTH LTD,648,Health & Safety,Contracted Services,04-Mar-22,2122/12,SME,Y,50%
10047151,GIPPING OCCUPATIONAL HEALTH LTD,720,Health & Safety,Subsistence,04-Mar-22,2122/12,SME,Y,50%
10046465,AIRMAX REMOTE LTD,459.24,Building Services,Plant & Vehicle - Other costs,28-Feb-22,2122/12,SME,Y,50%
10047002,Gravitas Recruitment Group Ltd,"2,000.00",ICT,Agency Staff,21-Mar-22,2122/12,LGE,Y,50%
10047119,Gravitas Recruitment Group Ltd,"8,000.00",ICT,Agency Staff,11-Mar-22,2122/12,LGE,Y,50%
10047150,Gravitas Recruitment Group Ltd,"2,000.00",ICT,Agency Staff,29-Mar-22,2122/12,LGE,Y,50%
10046905,WS TRAINING LTD,800,RHSSF,Prof & Consultancy Fees,16-Mar-22,2122/12,SME,N,
10046620,JOHN FORD GROUP LTD,"7,438.67",Mand Disabled Facilities Grant,Grants,07-Mar-22,2122/12,SME,N,
10047055,RESIDENTIALLY CHARTERED SURVEYORS,"1,600.00",Waldingfield Rd S106 Andersons,Prof & Consultancy Fees,23-Mar-22,2122/12,SME,N,
10047188,RESIDENTIALLY CHARTERED SURVEYORS,350,Tenants Forum,Prof & Consultancy Fees,30-Mar-22,2122/12,SME,N,
10047189,RESIDENTIALLY CHARTERED SURVEYORS,500,"Churchfield, Monks Eleigh S106",Prof & Consultancy Fees,30-Mar-22,2122/12,SME,N,
10046960,SUDBURYS,440,Guaranteed Rent Scheme,Rent Payable,21-Mar-22,2122/12,SME,N,
10046406,TPAS LTD,"1,831.00",Capita System Support,Subscriptions,01-Feb-22,2122/12,SME,Y,50%
10046973,COASTLINE GRAPHICS LTD,498,Street & Major Road Cleansing,Plant & Vehicle - Other costs,18-Mar-22,2122/12,SME,N,
10046973,COASTLINE GRAPHICS LTD,498,Open Spaces,Plant & Vehicle - Other costs,18-Mar-22,2122/12,SME,N,
10046618,WILLIAM H BROWN ESTATE AGENTS - SUDBURY,725,Guaranteed Rent Scheme,Rent Payable,07-Mar-22,2122/12,SME,N,
10046496,AQUAM WATER SERVICES LTD,274.7,Street & Major Road Cleansing,"Equipment, Tools & Materials",28-Feb-22,2122/12,SME,N,
10046433,ESSEX & SUFFOLK PEST SOLUTIONS,462,Tenancy Services,Contracted Services,01-Mar-22,2122/12,SME,N,
10046434,ABBEYCROFT LEISURE,"1,873.00",Holiday Activity Funding,"Equipment, Tools & Materials",01-Mar-22,2122/12,LGE,N,
10046637,ABBEYCROFT LEISURE,617.55,Holiday Activity Funding,"Equipment, Tools & Materials",01-Mar-22,2122/12,LGE,N,
10047065,ABBEYCROFT LEISURE,"2,460.00",Suffolk Community Restart Fund,Grants,24-Mar-22,2122/12,LGE,N,
10046968,A C LEIGH (NORWICH) LTD,568.14,Building Services,"Equipment, Tools & Materials",16-Mar-22,2122/12,SME,N,
10047105,A C LEIGH (NORWICH) LTD,278.1,Building Services,"Equipment, Tools & Materials",23-Mar-22,2122/12,SME,N,
20027785,BOXFORD PLAYING FIELDS MANAGEMENT COMMIT,427.04,Bring Sites,Contributions & Donations,02-Mar-22,2122/12,SME,N,
10046422,DAVID STAGG & ASSOCIATES LTD T/A DSA ELE,"7,249.52",Rewiring,Major Contracts,28-Feb-22,2122/12,SME,N,
10046766,3 POINT PROPERTY MANAGEMENT LTD,550,Guaranteed Rent Scheme,Rent Payable,11-Mar-22,2122/12,SME,N,
10045742,WEST SUFFOLK COUNCIL,315,CCTV Cameras,"Equipment, Tools & Materials",03-Feb-22,2122/12,LGE,N,
10046504,WEST SUFFOLK COUNCIL,"138,997.04",Legal,Contributions to other Bodies,03-Mar-22,2122/12,LGE,Y,50%
10046522,WEST SUFFOLK COUNCIL,500,Community Safety-CCTV,"Equipment, Tools & Materials",24-Jan-22,2122/12,LGE,N,
10046718,WEST SUFFOLK COUNCIL,"1,166.00",Community Safety-CCTV,"Equipment, Tools & Materials",15-Nov-21,2122/12,LGE,N,
10046104,HUGHES TRADE,410.79,Planned Maint - Heating,Property Servicing,15-Feb-22,2122/12,LGE,N,
10046398,APTL ENTERPRISES LTD,"4,648.00",PV Panels,Contracted Services,28-Feb-22,2122/12,SME,Y,44%
10046399,APTL ENTERPRISES LTD,"3,652.00",PV Panels,Contracted Services,28-Feb-22,2122/12,SME,Y,44%
10046565,APTL ENTERPRISES LTD,"3,630.00",PV Panels,Repairs,28-Feb-22,2122/12,SME,N,
10046717,ANGLIA COMMERCIAL FLOORING LTD,321.03,Building Services,Repairs,08-Mar-22,2122/12,SME,N,
10046719,ANGLIA COMMERCIAL FLOORING LTD,452.58,Building Services,Repairs,08-Mar-22,2122/12,SME,N,
10046722,ANGLIA COMMERCIAL FLOORING LTD,796.94,Building Services,Repairs,08-Mar-22,2122/12,SME,N,
10046724,ANGLIA COMMERCIAL FLOORING LTD,787.1,Building Services,Repairs,08-Mar-22,2122/12,SME,N,
10046726,ANGLIA COMMERCIAL FLOORING LTD,385.24,Building Services,Repairs,08-Mar-22,2122/12,SME,N,
10046729,ANGLIA COMMERCIAL FLOORING LTD,346.71,Building Services,Repairs,08-Mar-22,2122/12,SME,N,
10046750,ANGLIA COMMERCIAL FLOORING LTD,821.54,Building Services,Repairs,08-Mar-22,2122/12,SME,N,
10046751,ANGLIA COMMERCIAL FLOORING LTD,886,Building Services,Repairs,08-Mar-22,2122/12,SME,N,
20027837,ANGLIAN WATER BUS (NAT) LTD T/A WAVE,35.44,General Rechargeable Works,Misc Supplies & Services Costs,12-Mar-22,2122/12,LGE,N,
20027837,ANGLIAN WATER BUS (NAT) LTD T/A WAVE,25.66,Belle Vue House,Water Rates - Metered,12-Mar-22,2122/12,LGE,N,
20027837,ANGLIAN WATER BUS (NAT) LTD T/A WAVE,51.19,HQ Energy,Water Rates - Metered,12-Mar-22,2122/12,LGE,N,
20027837,ANGLIAN WATER BUS (NAT) LTD T/A WAVE,581.21,Chilton Depot,Water Rates - Metered,12-Mar-22,2122/12,LGE,Y,
20027837,ANGLIAN WATER BUS (NAT) LTD T/A WAVE,867.21,Old School House,Water Rates - Metered,12-Mar-22,2122/12,LGE,N,
20027837,ANGLIAN WATER BUS (NAT) LTD T/A WAVE,647.83,Public Conveniences,Water Rates - Metered,12-Mar-22,2122/12,LGE,N,
20027837,ANGLIAN WATER BUS (NAT) LTD T/A WAVE,112.24,C Parks General,Water Rates - Metered,12-Mar-22,2122/12,LGE,N,
20027837,ANGLIAN WATER BUS (NAT) LTD T/A WAVE,3.67,Friars Meadow Sudb,Water Rates - Metered,12-Mar-22,2122/12,LGE,N,
20027837,ANGLIAN WATER BUS (NAT) LTD T/A WAVE,363.73,Sheltered Accommodation,Water Rates - Metered,12-Mar-22,2122/12,LGE,N,
20027837,ANGLIAN WATER BUS (NAT) LTD T/A WAVE,12.19,Sheltered Accommodation,Water Rates - Unmetered,12-Mar-22,2122/12,LGE,N,
20027837,ANGLIAN WATER BUS (NAT) LTD T/A WAVE,327.98,Sheltered Accommodation,Water Rates - Metered,12-Mar-22,2122/12,LGE,N,
20027837,ANGLIAN WATER BUS (NAT) LTD T/A WAVE,485.89,Sheltered Accommodation,Water Rates - Metered,12-Mar-22,2122/12,LGE,N,
20027837,ANGLIAN WATER BUS (NAT) LTD T/A WAVE,584.19,Sheltered Accommodation,Water Rates - Metered,12-Mar-22,2122/12,LGE,N,
20027837,ANGLIAN WATER BUS (NAT) LTD T/A WAVE,113.48,Sheltered Accommodation,Water Rates - Metered,12-Mar-22,2122/12,LGE,N,
20027837,ANGLIAN WATER BUS (NAT) LTD T/A WAVE,39.28,Temporary Accommodation,Water Rates - Other Charges,12-Mar-22,2122/12,LGE,N,
20027837,ANGLIAN WATER BUS (NAT) LTD T/A WAVE,122.7,Tenancy Services,Water Rates - Metered,12-Mar-22,2122/12,LGE,N,
20027837,ANGLIAN WATER BUS (NAT) LTD T/A WAVE,18.15,Tenancy Services,Water Rates - Unmetered,12-Mar-22,2122/12,LGE,N,
10047070,ABACUS FIRE & SECURITY LTD,257.98,Street & Major Road Cleansing,"Equipment, Tools & Materials",24-Mar-22,2122/12,SME,N,
10046421,STUDLEY CAPITAL LIMITED,"3,600.00","BRRP-Hamilton,Boreham&BelleVue",Prof & Consultancy Fees,01-Mar-22,2122/12,ST,N,
10046687,SMARTSHEET,293.65,Strategic Housing,Software Licnse (Line of Bus) ,25-Jan-22,2122/12,LGE,Y,50%
10046688,SMARTSHEET,"3,024.00",General/Supervision & Mgmt,Contracted Services,09-Dec-21,2122/12,LGE,Y,44%
10046294,GREENACRE RECRUITMENT LTD,"3,100.00",Building Services,Agency Staff,23-Feb-22,2122/12,SME,Y,50%
10046497,GREENACRE RECRUITMENT LTD,"2,480.00",Building Services,Agency Staff,02-Mar-22,2122/12,SME,Y,50%
10046709,GREENACRE RECRUITMENT LTD,"2,480.00",Building Services,Agency Staff,09-Mar-22,2122/12,SME,Y,50%
10046888,GREENACRE RECRUITMENT LTD,"2,480.00",Building Services,Agency Staff,16-Mar-22,2122/12,SME,Y,50%
10047051,GREENACRE RECRUITMENT LTD,"2,480.00",Building Services,Agency Staff,23-Mar-22,2122/12,SME,Y,50%
10047199,GREENACRE RECRUITMENT LTD,"1,860.00",Building Services,Agency Staff,30-Mar-22,2122/12,SME,Y,50%
10046376,BRANTHAM VILLAGE HALL,500,Grants & Contrbns,Contributions & Donations,27-Feb-22,2122/12,SME,N,
10046324,SHIMPLING VILLAGE HALL,500,Grants & Contrbns,Contributions & Donations,25-Feb-22,2122/12,SME,N,
10046499,TIAA LTD,"4,275.50",Internal Audit,Contracted Services,02-Mar-22,2122/12,SME,Y,50%
10046387,DEMOCRACY COUNTS LTD,"4,600.00",Electoral Registration,Software Licnse (Line of Bus) ,22-Feb-22,2122/12,SME,N,
10046607,DEMOCRACY COUNTS LTD,"8,050.00",Electoral Registration,Returning Officer Fees,31-Jan-22,2122/12,SME,N,
10046893,SPRYTAR LTD,333.33,RHSSF,Advertising&mkting (non-staff),07-Dec-21,2122/12,SME,N,
10047213,SPRYTAR LTD,"2,000.00",RHSSF,Advertising&mkting (non-staff),30-Mar-22,2122/12,SME,N,
10046501,WADDINGTON BROWN LTD,750.6,Organisational Devt,Agency Staff,28-Feb-22,2122/12,SME,Y,50%
10046753,WADDINGTON BROWN LTD,750.6,Organisational Devt,Agency Staff,07-Mar-22,2122/12,SME,Y,50%
10047197,ACORN MOBILITY SERVICES LTD,"2,495.00",Mand Disabled Facilities Grant,Grants,30-Mar-22,2122/12,LGE,N,
10047021,CS ESTATE & PROPERTY MANAGEMENT T/A,304.6,Tenancy Services,Other Service Charges,20-Jan-22,2122/12,SME,N,
10047022,CS ESTATE & PROPERTY MANAGEMENT T/A,256.35,Tenancy Services,Other Service Charges,20-Jan-22,2122/12,SME,N,
10047023,CS ESTATE & PROPERTY MANAGEMENT T/A,304.6,Tenancy Services,Other Service Charges,20-Jan-22,2122/12,SME,N,
10047024,CS ESTATE & PROPERTY MANAGEMENT T/A,256.35,Tenancy Services,Other Service Charges,20-Jan-22,2122/12,SME,N,
10047025,CS ESTATE & PROPERTY MANAGEMENT T/A,256.35,Tenancy Services,Other Service Charges,20-Jan-22,2122/12,SME,N,
10047026,CS ESTATE & PROPERTY MANAGEMENT T/A,256.35,Tenancy Services,Other Service Charges,20-Jan-22,2122/12,SME,N,
10047027,CS ESTATE & PROPERTY MANAGEMENT T/A,256.35,Tenancy Services,Other Service Charges,20-Jan-22,2122/12,SME,N,
10047028,CS ESTATE & PROPERTY MANAGEMENT T/A,256.35,Tenancy Services,Other Service Charges,20-Jan-22,2122/12,SME,N,
10046367,PRIVATE LANDLORD,490,Guaranteed Rent Scheme,Rent Payable,28-Feb-22,2122/12,SME,N,
10047145,PRIVATE LANDLORD,490,Guaranteed Rent Scheme,Rent Payable,29-Mar-22,2122/12,SME,N,
10047144,PRIVATE LANDLORD,675,Guaranteed Rent Scheme,Rent Payable,29-Mar-22,2122/12,ST,N,
10046959,PRIVATE LANDLORD,650,Guaranteed Rent Scheme,Rent Payable,21-Mar-22,2122/12,SME,N,
10046342,EASTLIGHT COMMUNITY HOMES,"5,260.00","Angel Court, Hadleigh",Prof & Consultancy Fees,25-Feb-22,2122/12,SME,N,
10046343,EASTLIGHT COMMUNITY HOMES,"2,400.00","Melford Rd, Lavenham S106",Prof & Consultancy Fees,25-Feb-22,2122/12,SME,N,
10046343,EASTLIGHT COMMUNITY HOMES,"2,400.00",Waldingfield Rd S106 Andersons,Prof & Consultancy Fees,25-Feb-22,2122/12,SME,N,
10046343,EASTLIGHT COMMUNITY HOMES,"2,000.00","Bantocks Rd, Gt Walding S106",Prof & Consultancy Fees,25-Feb-22,2122/12,SME,N,
10046344,EASTLIGHT COMMUNITY HOMES,"8,960.00","Wolsey Grange, Sproughton S106",Prof & Consultancy Fees,25-Feb-22,2122/12,SME,N,
10046965,PRIVATE LANDLORD,"1,198.00",Guaranteed Rent Scheme,Rent Payable,21-Mar-22,2122/12,ST,N,
10046098,CAPITA BUSINESS SERVICES LTD (PAY360),"1,044.53",Bank Chgs,Bank Charges,15-Feb-22,2122/12,LGE,N,
10046854,CAPITA BUSINESS SERVICES LTD (PAY360),"2,983.54",Bank Chgs,Bank Charges,14-Mar-22,2122/12,LGE,N,
10046870,CAPITA BUSINESS SERVICES LTD (PAY360),"2,825.00",ICT,Software Licnse (Line of Bus) ,15-Mar-22,2122/12,LGE,N,
10046870,CAPITA BUSINESS SERVICES LTD (PAY360),"2,825.00",ICT,Line of Business Applications,15-Mar-22,2122/12,LGE,Y,
10046887,CAPITA BUSINESS SERVICES LTD (PAY360),754.25,Bank Chgs,Bank Charges,16-Mar-22,2122/12,LGE,N,
10047101,SEQUENCE UK LTD (WILLIAM H BROWN),700,Guaranteed Rent Scheme,Rent Payable,28-Mar-22,2122/12,LGE,N,
10046962,PRIVATE LANDLORD,550,Guaranteed Rent Scheme,Rent Payable,21-Mar-22,2122/12,ST,N,
10047111,PRIVATE LANDLORD,700,Guaranteed Rent Scheme,Rent Payable,28-Mar-22,2122/12,ST,N,
10046563,LNRS DATA SERVICES LTD,"1,775.00",Organisational Devt,Contracted Services,31-Jan-22,2122/12,LGE,Y,50%
10046405,PRIVATE LANDLORD,490,Guaranteed Rent Scheme,Rent Payable,01-Mar-22,2122/12,SME,N,
10047146,PRIVATE LANDLORD,490,Guaranteed Rent Scheme,Rent Payable,29-Mar-22,2122/12,SME,N,
10046046,AMPLIS CONSTRUCTION LTD,"21,913.50","Fences, Gates and Walls",Improvements,14-Feb-22,2122/12,SME,N,
10046159,SUFFOLK DOORS & WINDOWS LTD,"3,080.00",Major Imps,Improvements,15-Feb-22,2122/12,SME,N,
10046159,SUFFOLK DOORS & WINDOWS LTD,"2,140.00",Major Imps,Improvements,15-Feb-22,2122/12,SME,N,
10046600,PRIVATE LANDLORD,786.5,Guaranteed Rent Scheme,Rent Payable,07-Mar-22,2122/12,ST,N,
10047232,PRIVATE LANDLORD,786.5,Guaranteed Rent Scheme,Rent Payable,31-Mar-22,2122/12,ST,N,
10047034,DUNMOW SKIPS LTD T/A DUNMOW GROUP,"1,100.00",Domestic Waste,Refuse Contract,21-Mar-22,2122/12,LGE,N,
10046769,PRIVATE LANDLORD,650,Guaranteed Rent Scheme,Rent Payable,11-Mar-22,2122/12,ST,N,
10046489,CORENERGY LIMITED,"3,808.70",Public Sector Decarbonisation,Contracted Services,28-Feb-22,2122/12,SME,N,
10046643,CORENERGY LIMITED,"4,243.33",Public Sector Decarbonisation,Contracted Services,28-Feb-22,2122/12,SME,N,
10046521,COUNTRYSTYLE RECYCLING LTD,"4,246.60",Bring Sites,Contracted Services,28-Feb-22,2122/12,SME,N,
10047233,COUNTRYSTYLE RECYCLING LTD,"4,708.96",Bring Sites,Contracted Services,31-Mar-22,2122/12,SME,N,
10047234,COUNTRYSTYLE RECYCLING LTD,"4,793.63",Bring Sites,Contracted Services,31-Mar-22,2122/12,SME,N,
10046443,ANDERSON DESIGN & BUILD LIMITED,"131,144.73",Waldingfield Rd S106 Andersons,Prof & Consultancy Fees,25-Feb-22,2122/12,SME,N,
10047231,PRIVATE LANDLORD,700,Guaranteed Rent Scheme,Rent Payable,31-Mar-22,2122/12,ST,N,
20027830,PRIVATE LANDLORD,700,Guaranteed Rent Scheme,Rent Payable,11-Mar-22,2122/12,ST,N,
20027830,PRIVATE LANDLORD,750,Guaranteed Rent Scheme,Misc Supplies & Services Costs,11-Mar-22,2122/12,ST,N,
20027856,PRIVATE LANDLORD,800,Guaranteed Rent Scheme,Rent Payable,30-Mar-22,2122/12,ST,N,
10046617,PRIVATE LANDLORD,800,Guaranteed Rent Scheme,Rent Payable,07-Mar-22,2122/12,SME,N,
10046302,ARAN INSULATION LTD,"1,552.55",Insulation Imps,Improvements,24-Feb-22,2122/12,SME,N,
10046494,ARAN INSULATION LTD,"370,575.55",Insulation Imps,Major Contracts,02-Mar-22,2122/12,SME,N,
10046840,ARAN INSULATION LTD,"1,036.00",Building Services,Repairs,06-Jan-22,2122/12,SME,N,
10046865,ARAN INSULATION LTD,521.34,Insulation Imps,Improvements,14-Mar-22,2122/12,SME,N,
10046982,THE SPACEMAN,612,Tenancy Services,Removal Expenses,21-Mar-22,2122/12,ST,N,
10046978,PRIVATE LANDLORD,550,Guaranteed Rent Scheme,Rent Payable,22-Mar-22,2122/12,ST,N,
10047229,PRIVATE LANDLORD,500,Guaranteed Rent Scheme,Rent Payable,31-Mar-22,2122/12,ST,N,
20027801,PRIVATE LANDLORD,500,Guaranteed Rent Scheme,Rent Payable,07-Mar-22,2122/12,ST,N,
20027801,PRIVATE LANDLORD,750,Guaranteed Rent Scheme,Misc Supplies & Services Costs,07-Mar-22,2122/12,ST,N,
10046492,NWES PROPERTY SERVICES LTD,620,Major Imps,Rent Payable,01-Mar-22,2122/12,SME,N,
10046910,IHASCO LTD,400,Organisational Devt,Corporate Training,21-Dec-21,2122/12,SME,Y,50%
10045884,VERSE FACILITIES MANAGEMENT LTD,493,Building Services,Commercial Printing,07-Feb-22,2122/12,SME,Y,50%
10046904,COMPASSION,"2,496.00",Suffolk Community Restart Fund,Grants,16-Mar-22,2122/12,SME,N,
10046369,PRIVATE LANDLORD,"1,200.00",Guaranteed Rent Scheme,Rent Payable,28-Feb-22,2122/12,SME,N,
10047113,PRIVATE LANDLORD,"1,200.00",Guaranteed Rent Scheme,Rent Payable,28-Mar-22,2122/12,SME,N,
10046368,PRIVATE LANDLORD,550,Guaranteed Rent Scheme,Rent Payable,28-Feb-22,2122/12,ST,N,
10047112,PRIVATE LANDLORD,550,Guaranteed Rent Scheme,Rent Payable,28-Mar-22,2122/12,ST,N,
10046536,POLYSOLAR LTD,"76,951.97",Public Sector Decarbonisation,Contracted Services,28-Jan-22,2122/12,SME,N,
10046624,POLYSOLAR LTD,"153,407.83",Public Sector Decarbonisation,Contracted Services,25-Feb-22,2122/12,SME,N,
10046549,URBA,"5,000.00",Devt Management -Applications,Viability,04-Mar-22,2122/12,SME,N,
10046428,IPSERV LTD,171.75,Central Printing,Commercial Printing,01-Mar-22,2122/12,SME,Y,14%
10046428,IPSERV LTD,107.83,Communications,Commercial Printing,01-Mar-22,2122/12,SME,Y,57%
10046418,THE OPEN UNIVERSITY,"1,584.00",Organisational Devt,Post-Entry Training,18-Oct-21,2122/12,LGE,Y,50%
10046537,JACKSON LIFT SERVICES LTD,208.33,Sheltered Accommodation,Plant Maintenance,03-Mar-22,2122/12,LGE,N,
10046537,JACKSON LIFT SERVICES LTD,208.33,Sheltered Accommodation,Plant Maintenance,03-Mar-22,2122/12,LGE,N,
10046537,JACKSON LIFT SERVICES LTD,208.33,Sheltered Accommodation,Plant Maintenance,03-Mar-22,2122/12,LGE,N,
10046537,JACKSON LIFT SERVICES LTD,208.33,Sheltered Accommodation,Plant Maintenance,03-Mar-22,2122/12,LGE,N,
10046537,JACKSON LIFT SERVICES LTD,208.33,Sheltered Accommodation,Plant Maintenance,03-Mar-22,2122/12,LGE,N,
10046619,DAVID BURR LETTINGS,700,Guaranteed Rent Scheme,Rent Payable,07-Mar-22,2122/12,SME,N,
10046979,HENLEY BUSINESS SCHOOL LTD,"1,390.00",Organisational Devt,Training,20-Sep-21,2122/12,LGE,Y,50%
10046505,RICHARD WILLS TRAINING ASSOCIATES LTD,610,Governance,Prof & Consultancy Fees,03-Mar-22,2122/12,ST,N,
10046694,FOURWAYS VEHICLE SOLUTIONS LTD,511,Building Services,Lease Cars - Payment,29-Dec-21,2122/12,SME,Y,50%
10046936,FOURWAYS VEHICLE SOLUTIONS LTD,511,Building Services,Lease Cars - Payment,14-Mar-22,2122/12,SME,Y,50%
10046628,HIGGINS REMOVALS,850,Homeless Prevention Fund,Removal Expenses,07-Mar-22,2122/12,ST,N,
10046488,START AFRESH CLEANING LTD,515.67,Street & Major Road Cleansing,General Cleaning,28-Feb-22,2122/12,SME,N,
10046547,REGENCY GUARDING & EVENTS LTD,560,Open Spaces,Contracted Services,03-Mar-22,2122/12,SME,N,
10046770,PRIVATE LANDLORD,715,Guaranteed Rent Scheme,Rent Payable,11-Mar-22,2122/12,SME,N,
10047154,THE PLANNING INSPECTORATE,"23,871.72",Devt Policy & Local Plans,Prof & Consultancy Fees,29-Mar-22,2122/12,LGE,N,
10047154,THE PLANNING INSPECTORATE,"23,871.72",Local Plans,Prof & Consultancy Fees,29-Mar-22,2122/12,LGE,Y,100%
10046594,BADENOCH & CLARK LTD T/A ADECCO,"2,440.00",Commissioning & Procurement,Agency Staff,28-Feb-22,2122/12,SME,Y,50%
10046701,BADENOCH & CLARK LTD T/A ADECCO,"2,440.00",Commissioning & Procurement,Agency Staff,08-Mar-22,2122/12,SME,Y,50%
10046702,BADENOCH & CLARK LTD T/A ADECCO,"2,440.00",Commissioning & Procurement,Agency Staff,08-Mar-22,2122/12,SME,Y,50%
10047046,BADENOCH & CLARK LTD T/A ADECCO,"2,440.00",Commissioning & Procurement,Agency Staff,21-Mar-22,2122/12,SME,Y,50%
10046611,SHJ HOMES LTD,500,Guaranteed Rent Scheme,Rent Payable,07-Mar-22,2122/12,SME,N,
10047230,SHJ HOMES LTD,500,Guaranteed Rent Scheme,Rent Payable,31-Mar-22,2122/12,SME,N,
10046308,METRIC GROUP LTD,"66,278.75",Pld Maint/ Enhncmts-C Parks,"Equipment, Tools & Materials",08-Feb-22,2122/12,SME,N,
10046663,METRIC GROUP LTD,"1,200.00",C Parks General,Software Licnse (Line of Bus) ,28-Feb-22,2122/12,SME,N,
10046664,METRIC GROUP LTD,"2,000.00",C Parks General,Software Licnse (Line of Bus) ,28-Feb-22,2122/12,SME,N,
10046881,ANGLIA SPORTS MANAGEMENT LTD,"3,750.00",Holiday Activity Funding,"Equipment, Tools & Materials",15-Mar-22,2122/12,SME,N,
10047089,NAGELS UK LTD,680,C Parks General,Stationery,25-Mar-22,2122/12,SME,N,
10046771,PRIVATE LANDLORD,675,Guaranteed Rent Scheme,Rent Payable,11-Mar-22,2122/12,ST,N,
10046768,PRIVATE LANDLORD,500,Guaranteed Rent Scheme,Rent Payable,11-Mar-22,2122/12,ST,N,
10046977,PROTECT AND DETECT SYSTEMS LTD,350,Kingfisher Leisure Centre,Repairs,21-Mar-22,2122/12,SME,N,
10046774,PRIVATE LANDLORD,650,Guaranteed Rent Scheme,Rent Payable,11-Mar-22,2122/12,ST,N,
10046963,PRIVATE LANDLORD,650,Guaranteed Rent Scheme,Rent Payable,21-Mar-22,2122/12,ST,N,
10047220,BRAIN IN HAND LTD,"1,225.00",Health & Safety,Furniture,31-Mar-22,2122/12,SME,Y,50%
10046529,T MAN WITH A VAN,420,Homeless Prevention Fund,Removal Expenses,24-Feb-22,2122/12,ST,N,
10046530,T MAN WITH A VAN,400,Homeless Prevention Fund,Removal Expenses,24-Feb-22,2122/12,ST,N,
10046765,COPDOCK AND WASHBROOK PRE SCHOOL,"2,000.00",Grants & Contrbns,Contributions & Donations,11-Mar-22,2122/12,SME,N,
10046897,COPDOCK AND WASHBROOK PRE SCHOOL,"2,480.00",Suffolk Community Restart Fund,Grants,16-Mar-22,2122/12,SME,N,
10046564,FUNKY LEMON DESIGN,"2,500.00",Business Innovation Grants,Grants,28-Feb-22,2122/12,SME,N,
10046523,HINTLESHAM HALL HOTEL LTD,475,Cost of Democracy,Chairman's Expenses,03-Mar-22,2122/12,SME,N,
10047177,FOXEARTH HOMES LTD,"20,000.00",Renovation/Home Repair Grants,Grants,30-Mar-22,2122/12,SME,N,
10046781,ESE DIRECT LTD,270,CIL Funded REFCUS,Grants,11-Mar-22,2122/12,SME,N,
10047016,MAXIM SPORTS COACHING,720,Holiday Activity Funding,"Equipment, Tools & Materials",21-Mar-22,2122/12,SME,N,
10046948,SUDBURY SCUBA CLUB,"2,155.00",Suffolk Community Restart Fund,Grants,18-Mar-22,2122/12,SME,N,
10047066,THE PIE CLUB OF LITTLE EGYPT,270,Grants & Contrbns,Contributions & Donations,24-Mar-22,2122/12,SME,N,
10047061,COPDOCK & WASHBROOK BOWLS CLUB,"2,500.00",Suffolk Community Restart Fund,Grants,24-Mar-22,2122/12,SME,N,
10047062,SUFFOLK SCOUTS,"1,500.00",Suffolk Community Restart Fund,Grants,24-Mar-22,2122/12,SME,N,
10047058,PRIVATE LANDLORD,695,Guaranteed Rent Scheme,Rent Payable,23-Mar-22,2122/12,ST,N,
10047058,PRIVATE LANDLORD,750,Guaranteed Rent Scheme,Misc Supplies & Services Costs,23-Mar-22,2122/12,ST,N,
20027854,PRIVATE LANDLORD,750,Guaranteed Rent Scheme,Misc Supplies & Services Costs,25-Mar-22,2122/12,ST,N,
10047077,DLUHC,"113,414.00",GF Non-Specific Grant Income,Contributions to other Bodies,08-Mar-22,2122/12,LGE,N,
10047057,PRIVATE LANDLORD,469.98,Homeless Prevention Fund,Misc Supplies & Services Costs,22-Mar-22,2122/12,ST,N,
10047136,INDIGO ROSS DESIGN & PRINT LTD,"1,500.00",RHSSF,Advertising&mkting (non-staff),25-Mar-22,2122/12,SME,N,
10047215,QUILL & INKLING THEATRE CO LTD,"1,800.00",RHSSF,Advertising&mkting (non-staff),31-Mar-22,2122/12,SME,N,
EBX0043095,BOXFORD VILLAGE HALL,227.04,Current Assets,LLOYDS GENERAL PAYMENTS,10-Mar-22,2122/12,SME,N,
10046327,LEX AUTOLEASE,"-1,786.80",Building Services,Lease Cars - Payment,18-Feb-22,2122/12,SME,Y,50%
10046819,LEX AUTOLEASE,-591.95,Building Services,Lease Cars - Payment,18-Feb-22,2122/12,SME,Y,50%
1003,KNOWLES ASSOCIATES TFM LTD,-39.58,Building Services,Lease Cars - Payment,21-Mar-22,2122/12,SME,Y,50%
1003,KNOWLES ASSOCIATES TFM LTD,-7.92,RHSSF,"Equipment, Tools & Materials",21-Mar-22,2122/12,SME,N,
1003,KNOWLES ASSOCIATES TFM LTD,-15.83,Vehicle and Plant Renewals,Plant & Vehicle - Purchase,21-Mar-22,2122/12,SME,N,
1004,KNOWLES ASSOCIATES TFM LTD,39.58,Building Services,Lease Cars - Payment,21-Mar-22,2122/12,SME,Y,50%
1004,KNOWLES ASSOCIATES TFM LTD,7.92,RHSSF,"Equipment, Tools & Materials",21-Mar-22,2122/12,SME,N,
1004,KNOWLES ASSOCIATES TFM LTD,15.83,Vehicle and Plant Renewals,Plant & Vehicle - Purchase,21-Mar-22,2122/12,SME,Y,100%
10046487,NORTHUMBRIAN WATER LTD,-375.65,Lavenham TIC,Legionella Testing,02-Mar-22,2122/12,LGE,N,
1007,SKYGUARD LTD T/A PEOPLESAFE,-360,Health & Safety,"Equipment, Tools & Materials",30-Mar-22,2122/12,SME,Y,50%
1005,DAVID BROWN & CO ESTATE AGENTS LTD,-175,Asset Management,Prof & Consultancy Fees,22-Mar-22,2122/12,SME,N,
EBX0043385,DAVID BROWN & CO ESTATE AGENTS LTD,175,Current Assets,LLOYDS GENERAL PAYMENTS,23-Mar-22,2122/12,SME,N,
